Workbook

Sheet AER Notes
B4: AER Notes
B5: 'Input|General'!J9 | D5: Changed state to draft decision
B6: 'Input|Historical Inflation'!I43:I46 | D6: Updated historical CPI
B7: 'Input|Prices'!L21:M21 | D7: Updated forecast inflation for August 2023 RBA Statement on Monetary Policy and draft decision inflation
B8: 'Input|Prices'!I39:I40 | D8: Set labour cost escalator weightings to 100% AER
B9: 'Input|Prices'!K39:Q39 | D9: Updated for draft decision labour cost escalators
B10: 'Input|Prices'!K50:Q50 | D10: Updated for draft decision labour cost escalators
B11: 'Input|Comms, IT, Other'!O132:Q132 | D11: Updated to remove single site consolidation project. Allocation unknown, calculated average of previous 4 years.
B13: PWC Notes
B14: Input|General, J9 | D14: Changed state to revised proposal
B15: Input|General, R2:S2 | D15: Updated key to include colour format applied to 'PWC RP Changes' and updated related images in 'Input| Historical Inflation', 'Input| Prices', 'Input | Meter-Opex BST', 'Input | Meters Vols & Costs', 'Input | Comms, IT, Other', 'Input | Workings', 'Output | PTRM', 'Output | RFM', 'Output | Other'
B16: Input| Prices, D39 | D16: Updated label from 'AER' to 'Average of KPMG forecast + updated BIS Oxford forecast (including Superannuation)'
B17: Input| Prices, D39:Q39 | D17: Aligned the real labour price change forecast to SCS Opex Model
B18: Input| Prices, D40:Q40 | D18: Removed redundant inputs to avoid the potential for confusion
B19: Input| Prices, D45:D46 | D19: Removed redundant labels
B20: Input| Prices, K45:Q46 | D20: Removed redundant inputs to avoid the potential for confusion
B21: Input| Prices, K50:Q50 | D21: Set to equal updated inputs in K39:Q39
B22: Input | Meter-Opex BST, R23:V30 | D22: Updated corporate step change forecasts to align with the updated corporate step change forecasts in the SCS Opex Model and updated other step changes to account for revised smart meter population forecasts
B23: Input | Meter-Opex BST, P35:V35 | D23: Updated the customer number inputs to incorporate actual values for 2022-23 and to reflect the revised forecasts for 2023-24 to 2028-29.
B24: Input | Meters Vols & Costs, O46:O47, O172:O186, O192:O206, O212:O226, O232:O246, O252:O266, O272:O286, O292:O306 and O332:O346 | D24: Removed forecast for FY23 as actuals are now available
B25: Input | Meters Vols & Costs, P46:U47, Q192:U197, P212:U215, P232:U237, P332:U346 | D25: Updated meter replacement forecast to accelerate the rollout of smart meters
B26: Input | Comms, IT, Other, K110 and M110:Q110 | D26: Removed forecast for FY23 and updated the Non network IT and communications forecast for ACS Metering share of OT Capability Uplift
B27: Input | Comms, IT, Other, K132 and O132:Q132 | D27: Removed forecast for FY23 and updated the Property forecast for ACS Metering share of Single Site Consolidation
B28: Input | Comms, IT, Other, K131 | D28: Removed forecast for FY23 as actuals are now available
B29: Input | Comms, IT, Other, K138 | D29: Removed forecast for FY23 as actuals are now available
B30: Input | Workings, F36:F41, F60, F63:F65, F84, F87 | D30: Removed forecast for FY23 communications installation costs
B31: Input | Workings, G36:L41, G60:G65, G84:G89 | D31: Updated forecast to incorporate the accelerated rollout of smart meters.
B32: Calc | Capex Meters, R49 and O90 | D32: Updated error checks to apply rounding to four decimal places to avoid it flagging an immaterial error.
B33: Calc | Capex Meters, O163 | D33: Removed formula to remove forecast for FY23 meter costs

Sheet Title Page
B6: Final Standardised Metering Capex and Opex Model
B9: Version | D9: 1.08
B10: Date | D10: 44589
B13: Status
B15: Notes:
B16: Current model version contains test data.
C18: Locked Sheets Pwd:
B24: Changelog
B26: Date | C26: Version | D26: Author | E26: Changes
B28: 44589 | C28: 1.08 | D28: AER | E28: Minor changes from further Feedback
B29: 44575 | C29: 1.07 | D29: AER | E29: Updates following consultation
B30: 44494 | C30: 1 | D30: AER | E30: Consultation version (contains anonymised input data)
E32: Extended the summary on rows 160 to 164 on 'Calc | Capex Meters'
E33: Added missing FY23 and FY24 years to the 'Output | PTRM' worksheet to support the requirements on 'Output | RFM'
E34: Added missing FY23 and FY24 years to the 'Output | RFM' worksheet
E35: Added 'Output | Other' to capture immediately expensed capex required for PTRM and Depreciation Model
E36: Added 'Input | Workings' to provide the workings for asbestos removal costs, communications replacement forecasts and communication equipment and installation rates

Sheet Input|General
B1: AER Metering Opex & Capex Forecasting Model
B2: Ver: | D2: 1.08 | H2: Key: | I2: Input | J2: External Link | L2: Internal Link | N2: NSP New Data | P2: AER Addition | R2: PWC RP Change
B3: =MID(CELL("filename",A1),FIND("]",CELL("filename",A1))+1,255) -> Input|General
B5: Input | General inputs
E7: Inputs | G7: Source | J7: Value | N7: Note
E8: NSP name | G8: NSP | J8: Power and Water | V8: =IF(COUNTBLANK($J8),0,1) -> 1
E9: Decision stage | G9: NSP | J9: revised proposal | V9: =IF(COUNTBLANK($J9),0,1) -> 1
C11: Current Period
E12: Previous regulatory control period, first year | G12: NSP | J12: 2019-20 | N12: Enter either YYYY-YY (for June YE) or YYYY (for calendar year) | V12: =IF(COUNTBLANK($J12),0,1) -> 1
E13: Previous regulatory control period, last year | G13: NSP | J13: =(LEFT(PPFirstYear,4)+4&IF(MID(PPFirstYear,5,1)="","","-"&TEXT(MOD(MID(PPFirstYear,6,2)+4,100),"00"))) -> 2023-24 | V13: =IF(COUNTBLANK($J13),0,1) -> 1
E14: Year ending for current regulatory period | G14: NSP | J14: =IF(MID(PPFirstYear,5,1)="",DATE(2000,12,1),DATE(2000,6,1)) -> 2000-06-01 | V14: =IF(COUNTBLANK($J14),0,1) -> 1
E15: Notation Adjustment (YYYY or YYYY-YY) | J15: =IF(MID(PPFirstYear,5,1)="",0,1) -> 1
C17: Base Year | J17: End Year | L17: Base Year
E18: Opex - Forecast base year | G18: NSP | J18: 2022 | L18: =IF(MONTH('Input|General'!$J$14)=6,J18-1&"-"&RIGHT(J18,2),$J18) -> 2021-22 | V18: =IF(AND(NOT(COUNTBLANK($L18)),(IFERROR(SEARCH("-",PPFirstYear,1),-5)=IFERROR(SEARCH("-",$L18,1),-5)))/1,1,0) -> 1
E19: Capex - Forecast base year | G19: NSP | J19: 2022 | L19: =IF(MONTH('Input|General'!$J$14)=6,J19-1&"-"&RIGHT(J19,2),$J19) -> 2021-22 | V19: =IF(AND(NOT(COUNTBLANK($L19)),(IFERROR(SEARCH("-",PPFirstYear,1),-5)=IFERROR(SEARCH("-",$L19,1),-5)))/1,1,0) -> 1
C22: Forecast Regulatory Period
E23: Forecast regulatory control period, first year | G23: NSP | J23: =IF(MONTH('Input|General'!$J$14)=6,(LEFT(PPLastYear,4)+1&IF(MID(PPLastYear,5,1)="","","-"&TEXT(MOD(MID(PPLastYear,6,2)+1,100),"00"))),PPLastYear+1) -> 2024-25 | V23: =IF(COUNTBLANK($J23),0,1) -> 1
E24: Forecast regulatory control period, last year | G24: NSP | J24: =IF(MONTH('Input|General'!$J$14)=6,(LEFT(PPLastYear,4)+5&IF(MID(PPLastYear,5,1)="","","-"&TEXT(MOD(MID(PPLastYear,6,2)+5,100),"00"))),PPLastYear+5) -> 2028-29 | V24: =IF(COUNTBLANK($J24),0,1) -> 1
C27: Cost Basis | J27: $Basis, End Year | L27: $Basis
D28: Inputs
E29: Opex (Historical) | J29: nominal | L29: =IF(J29="nominal","nominal",DATE($J29,MONTH($J$14),1)) -> nominal | V29: =IF(COUNTBLANK($J29),0,1) -> 1
E30: Opex (Forecast) | J30: 2024 | L30: =DATE($J30,MONTH($J$14),1) -> 2024-06-01 | V30: =IF(COUNTBLANK($J30),0,1) -> 1
E31: Capex | V31: =IF(COUNTBLANK($J32),0,1) -> 1
F32: Input Year | J32: 2022
F33: Cash Flow Timing | J33: Mid Year | L33: =EDATE(DATE($J32,MONTH($J$14),1),IF($J$33="Mid Year",-6,0)) -> 2021-12-01
D34: Output Basis
E35: PTRM | J35: 2024 | L35: =DATE($J35,MONTH($J$14),1) -> 2024-06-01 | V35: =IF(COUNTBLANK($J35),0,1) -> 1
E36: RFM | J36: nominal | L36: =IF(J36="nominal","nominal",DATE($J36,MONTH($J$14),1)) -> nominal | V36: =IF(COUNTBLANK($J36),0,1) -> 1
C39: Validation
H40: Model | J40: =PRODUCT(J42:J45) -> 1
H42: Input|General | J42: =PRODUCT(V8:V9,V12:V14,V18:V19,V23:V24,V29:V31,V35:V36) -> 1
H43: Input| Prices | J43: ='Input| Prices'!A4 -> 1
H44: Input | Meter-Opex BST | J44: ='Input | Meter-Opex BST'!A5 -> 1
H45: Calc | Capex Meters | J45: ='Calc | Capex Meters'!A4 -> 1
B47: End

Sheet Input| Historical Inflation
B1: ='Input|General'!B1&" v"&'Input|General'!$D$2 -> AER Metering Opex & Capex Forecasting Model v1.08
B2: =MID(CELL("filename",B2),FIND("]",CELL("filename",B2))+1,255) -> Input| Historical Inflation
B5: Input | General inputs
D7: Added Calc | G7: Index value, new base | H7: Percentage Change from Corresponding Quarter of Previous Year | I7: Index value, new base | J7: Percentage Change from Corresponding Quarter of Previous Year
F8: Source | G8: ABS | H8: Calculated | I8: ABS | J8: Calculated
D9: Year | E9: Month | F9: Unit | G9: index | H9: Percent | I9: index2 | J9: Percent3
D10: =YEAR(F10) -> 2014 | E10: =MONTH(F10) -> 6 | F10: 2014-06-30 | I10: 105.9
D11: 2014 | E11: 9 | F11: 2014-09-30 | I11: 106.4
D12: 2014 | E12: 12 | F12: 2014-12-31 | I12: 106.6
D13: 2015 | E13: 3 | F13: 2015-03-31 | I13: 106.8
D14: 2015 | E14: 6 | F14: 2015-06-30 | I14: 107.5 | J14: =IF(ISBLANK(I14),0,I14/I10-1) -> 0.01510859301
D15: 2015 | E15: 9 | F15: 2015-09-30 | I15: 108 | J15: =IF(ISBLANK(I15),0,I15/I11-1) -> 0.01503759398
D16: 2015 | E16: 12 | F16: 2015-12-31 | I16: 108.4 | J16: 0.01688555347
D17: 2016 | E17: 3 | F17: 2016-03-31 | I17: 108.2 | J17: 0.01310861423
D18: 2016 | E18: 6 | F18: 2016-06-30 | I18: 108.6 | J18: 0.01023255814
D19: 2016 | E19: 9 | F19: 2016-09-30 | I19: 109.4 | J19: 0.01296296296
D20: 2016 | E20: 12 | F20: 2016-12-31 | I20: 110 | J20: 0.0147601476
D21: 2017 | E21: 3 | F21: 2017-03-31 | I21: 110.5 | J21: 0.02125693161
D22: 2017 | E22: 6 | F22: 2017-06-30 | I22: 110.7 | J22: 0.01933701657
D23: 2017 | E23: 9 | F23: 2017-09-30 | I23: 111.4 | J23: 0.01828153565
D24: 2017 | E24: 12 | F24: 2017-12-31 | I24: 112.1 | J24: 0.01909090909
D25: 2018 | E25: 3 | F25: 2018-03-31 | I25: 112.6 | J25: 0.01900452489
D26: 2018 | E26: 6 | F26: 2018-06-30 | I26: 113 | J26: 0.02077687444
D27: 2018 | E27: 9 | F27: 2018-09-30 | I27: 113.5 | J27: 0.01885098743
D28: 2018 | E28: 12 | F28: 2018-12-31 | I28: 114.1 | J28: 0.0178412132
D29: 2019 | E29: 3 | F29: 2019-03-31 | I29: 114.1 | J29: 0.01332149201
D30: 2019 | E30: 6 | F30: 2019-06-30 | I30: 114.8 | J30: 0.01592920354
D31: 2019 | E31: 9 | F31: 2019-09-30 | I31: 115.4 | J31: 0.01674008811
D32: 2019 | E32: 12 | F32: 2019-12-31 | I32: 116.2 | J32: 0.01840490798
D33: =YEAR(F33) -> 2020 | E33: =MONTH(F33) -> 3 | F33: 2020-03-31 | I33: 116.6 | J33: 0.02191060473
D34: 2020 | E34: 6 | F34: 2020-06-30 | I34: 114.4 | J34: -0.003484320557
D35: 2020 | E35: 9 | F35: 2020-09-30 | I35: 116.2 | J35: 0.006932409012
D36: 2020 | E36: 12 | F36: 2020-12-31 | I36: 117.2 | J36: 0.008605851979
D37: 2021 | E37: 3 | F37: 2021-03-31 | I37: 117.9 | J37: 0.01114922813
D38: 2021 | E38: 6 | F38: 2021-06-30 | I38: 118.8 | J38: 0.03846153846
D39: 2021 | E39: 9 | F39: 2021-09-30 | I39: 119.7 | J39: 0.03012048193
D40: 2021 | E40: 12 | F40: 2021-12-31 | I40: 121.3 | J40: 0.03498293515
D41: 2022 | E41: 3 | F41: 2022-03-31 | I41: 123.9 | J41: 0.05089058524
D42: 2022 | E42: 6 | F42: 2022-06-30 | I42: 126.1 | J42: 0.06144781145
D43: 2022 | E43: 9 | F43: 2022-09-30 | I43: 128.4 | J43: 0.07268170426
D44: 2022 | E44: 12 | F44: 2022-12-31 | I44: 130.8 | J44: 0.07831821929
D45: 2023 | E45: 3 | F45: 2023-03-31 | I45: 132.6 | J45: 0.07021791768
D46: 2023 | E46: 6 | F46: 2023-06-30 | I46: 133.7 | J46: 0.06026962728
D47: 2023 | E47: 9 | F47: 2023-09-30 | J47: 0
D48: 2023 | E48: 12 | F48: 2023-12-31 | J48: 0
D49: 2024 | E49: 3 | F49: 2024-03-31 | J49: 0
D50: 2024 | E50: 6 | F50: 2024-06-30 | J50: 0
D51: 2024 | E51: 9 | F51: 2024-09-30 | J51: 0
D52: 2024 | E52: 12 | F52: 2024-12-31 | J52: 0
D53: 2025 | E53: 3 | F53: 2025-03-31 | J53: 0
D54: 2025 | E54: 6 | F54: 2025-06-30 | J54: 0
D55: 2025 | E55: 9 | F55: 2025-09-30 | J55: 0
D56: 2025 | E56: 12 | F56: 2025-12-31 | J56: 0
D57: 2026 | E57: 3 | F57: 2026-03-31 | J57: 0
D58: 2026 | E58: 6 | F58: 2026-06-30 | J58: 0
D59: 2026 | E59: 9 | F59: 2026-09-30 | J59: 0
D60: 2026 | E60: 12 | F60: 2026-12-31 | J60: 0
D61: 2027 | E61: 3 | F61: 2027-03-31 | J61: 0
D62: 2027 | E62: 6 | F62: 2027-06-30 | J62: 0
D63: 2027 | E63: 9 | F63: 2027-09-30 | J63: 0
D64: 2027 | E64: 12 | F64: 2027-12-31 | J64: 0
D65: 2028 | E65: 3 | F65: 2028-03-31 | J65: 0
D66: 2028 | E66: 6 | F66: 2028-06-30 | J66: 0
D67: 2028 | E67: 9 | F67: 2028-09-30 | J67: 0
D68: 2028 | E68: 12 | F68: 2028-12-31 | J68: 0
D69: 2029 | E69: 3 | F69: 2029-03-31 | J69: 0
D70: 2029 | E70: 6 | F70: 2029-06-30 | J70: 0
D71: 2029 | E71: 9 | F71: 2029-09-30 | J71: 0
D72: 2029 | E72: 12 | F72: 2029-12-31 | J72: 0
D73: 2030 | E73: 3 | F73: 2030-03-31 | J73: 0
B75: End

Sheet Input| Prices
B1: ='Input|General'!B1&" v"&'Input|General'!$D$2 -> AER Metering Opex & Capex Forecasting Model v1.08
B2: =MID(CELL("filename",A1),FIND("]",CELL("filename",A1))+1,255) -> Input| Prices
A4: =PRODUCT(A5:A61) -> 1
D6: 6. Inflation table setup
D8: First year of forecast regulatory control period | J8: =FPFirstYear -> 2024-25
D9: Year End | J9: ='Input|General'!J14 -> 2000-06-01
D10: Notation Adjustment | J10: =IF(MID(PPFirstYear,5,1)="",0,1) -> 1
D12: =LEFT(D6,1)+1&". Forecast CPI, Real Labour/Non-Labour Price Growth" -> 7. Forecast CPI, Real Labour/Non-Labour Price Growth
B14: Year Series | M14: Forecast RP
D15: Dynamic Notation | I15: =(LEFT(J15,4)-1&IF(MID(J15,5,1)="","","-"&TEXT(MOD(MID(J15,6,2)-1,100),"00"))) -> 2020-21 | J15: =(LEFT(K15,4)-1&IF(MID(K15,5,1)="","","-"&TEXT(MOD(MID(K15,6,2)-1,100),"00"))) -> 2021-22 | K15: =(LEFT(L15,4)-1&IF(MID(L15,5,1)="","","-"&TEXT(MOD(MID(L15,6,2)-1,100),"00"))) -> 2022-23 | L15: =(LEFT(M15,4)-1&IF(MID(M15,5,1)="","","-"&TEXT(MOD(MID(M15,6,2)-1,100),"00"))) -> 2023-24 | M15: =FPFirstYear -> 2024-25 | N15: =(LEFT(M15,4)+1&IF(MID(M15,5,1)="","","-"&TEXT(MOD(MID(M15,6,2)+1,100),"00"))) -> 2025-26 | O15: =(LEFT(N15,4)+1&IF(MID(N15,5,1)="","","-"&TEXT(MOD(MID(N15,6,2)+1,100),"00"))) -> 2026-27 | P15: 2027-28 | Q15: 2028-29
D16: End Year Notation | I16: =(LEFT(I$15,4)+$J$10)/1 -> 2021 | J16: 2022 | K16: 2023 | L16: 2024 | M16: 2025 | N16: 2026 | O16: 2027 | P16: 2028 | Q16: 2029
B19: CPI | M19: Forecast RP
D20: Forecast Inflation - 6 months lagged | G20: YE Index | H20: Source | I20: =I$15 -> 2020-21 | J20: =J$15 -> 2021-22 | K20: 2022-23 | L20: 2023-24 | M20: 2024-25 | N20: 2025-26 | O20: 2026-27 | P20: 2027-28 | Q20: 2028-29
D21: CPI year on year change (NSP Forecast) | G21: =(EDATE(Basis_Ptrm,-6)) -> 2023-12-01 | L21: 0.041 | M21: 0.02799781128
D22: CPI year on year change (ABS Data) | G22: =(EDATE(Basis_Ptrm,-6)) -> 2023-12-01 | I22: =INDEX('Input| Historical Inflation'!$J$10:$J$72, MATCH(1,('Input| Historical Inflation'!$E$10:$E$72=(IF(MONTH($J$9)=6,12,6)))* ('Input| Historical Inflation'!$D$10:$D$72=I$16+IF(MONTH($J$9)=6,-1,0)),0)) -> 0.008605851979 | J22: =INDEX('Input| Historical Inflation'!$J$10:$J$72, MATCH(1,('Input| Historical Inflation'!$E$10:$E$72=(IF(MONTH($J$9)=6,12,6)))* ('Input| Historical Inflation'!$D$10:$D$72=J$16+IF(MONTH($J$9)=6,-1,0)),0)) -> 0.03498293515 | K22: =INDEX('Input| Historical Inflation'!$J$10:$J$72, MATCH(1,('Input| Historical Inflation'!$E$10:$E$72=(IF(MONTH($J$9)=6,12,6)))* ('Input| Historical Inflation'!$D$10:$D$72=K$16+IF(MONTH($J$9)=6,-1,0)),0)) -> 0.07831821929 | L22: =INDEX('Input| Historical Inflation'!$J$10:$J$72, MATCH(1,('Input| Historical Inflation'!$E$10:$E$72=(IF(MONTH($J$9)=6,12,6)))* ('Input| Historical Inflation'!$D$10:$D$72=L$16+IF(MONTH($J$9)=6,-1,0)),0)) -> 0 | M22: =INDEX('Input| Historical Inflation'!$J$10:$J$72, MATCH(1,('Input| Historical Inflation'!$E$10:$E$72=(IF(MONTH($J$9)=6,12,6)))* ('Input| Historical Inflation'!$D$10:$D$72=M$16+IF(MONTH($J$9)=6,-1,0)),0)) -> 0 | N22: =INDEX('Input| Historical Inflation'!$J$10:$J$72, MATCH(1,('Input| Historical Inflation'!$E$10:$E$72=(IF(MONTH($J$9)=6,12,6)))* ('Input| Historical Inflation'!$D$10:$D$72=N$16+IF(MONTH($J$9)=6,-1,0)),0)) -> 0 | O22: =INDEX('Input| Historical Inflation'!$J$10:$J$72, MATCH(1,('Input| Historical Inflation'!$E$10:$E$72=(IF(MONTH($J$9)=6,12,6)))* ('Input| Historical Inflation'!$D$10:$D$72=O$16+IF(MONTH($J$9)=6,-1,0)),0)) -> 0 | P22: =INDEX('Input| Historical Inflation'!$J$10:$J$72, MATCH(1,('Input| Historical Inflation'!$E$10:$E$72=(IF(MONTH($J$9)=6,12,6)))* ('Input| Historical Inflation'!$D$10:$D$72=P$16+IF(MONTH($J$9)=6,-1,0)),0)) -> 0 | Q22: =INDEX('Input| Historical Inflation'!$J$10:$J$72, MATCH(1,('Input| Historical Inflation'!$E$10:$E$72=(IF(MONTH($J$9)=6,12,6)))* ('Input| Historical Inflation'!$D$10:$D$72=Q$16+IF(MONTH($J$9)=6,-1,0)),0)) -> 0
A23: =PRODUCT(($I$23:$Q$23<>0)/1) -> 1 | D23: CPI Calculated YoY change (ABS data where available) | H23: Calculated | I23: =IF(I$22>0,I$22,I$21) -> 0.008605851979 | J23: =IF(J$22>0,J$22,J$21) -> 0.03498293515 | K23: 0.07831821929 | L23: 0.041 | M23: 0.02799781128 | N23: =M23 -> 0.02799781128 | O23: =N23 -> 0.02799781128 | P23: =O23 -> 0.02799781128 | Q23: =P23 -> 0.02799781128
D26: Cumulative Inflation - 6 months lagged | G26: Cash Flow Timing | H26: Source | I26: =I$15 -> 2020-21 | J26: =J$15 -> 2021-22 | K26: 2022-23 | L26: 2023-24 | M26: 2024-25 | N26: 2025-26 | O26: 2026-27 | P26: 2027-28 | Q26: 2028-29
D27: Cumulative Inflation Index (Lagged) | G27: End Year | H27: Calculated | I27: 1 | J27: =I27*(1+J23) -> 1.034982935 | K27: 1.116040956 | L27: 1.161798635 | M27: 1.194326454 | N27: 1.22776498 | O27: 1.262139713 | P27: 1.297476862 | Q27: 1.333803374
D28: Cumulative Inflation Index (Lagged - Mid Year Input) | G28: Mid Year | H28: Calculated | I28: 1 | J28: =I27*((1+J23)^0.5) -> 1.017341111 | K28: 1.074748037 | L28: 1.138689975 | M28: 1.177950272 | N28: 1.210930301 | O28: 1.2448337 | P28: 1.279686319 | Q28: 1.315514735
D31: CPI - Basis Conversion Indexes | E31: Basis In - YE | F31: Basis Out - YE | G31: Note | H31: Source | I31: =I$15 -> 2020-21 | J31: =J$15 -> 2021-22 | K31: 2022-23 | L31: 2023-24 | M31: 2024-25 | N31: 2025-26 | O31: 2026-27 | P31: 2027-28 | Q31: 2028-29
D32: Opex Hist > Opex Forecast | E32: =Basis_OpexHistEY -> nominal | F32: =Basis_OpexForecastEY -> 2024 | G32: Lagged | H32: Calculated | J32: =IF($E32="nominal", (1+J$23)^0.5*INDEX($J$27:$Q$27,MATCH($F32,$J$16:$Q$16))/J$27, INDEX($J$27:$Q$27,MATCH($F32,$J$16:$Q$16))/INDEX($J$27:$Q$27,MATCH($E32,$J$16:$Q$16))) -> 1.14199517 | K32: 1.080996284 | L32: 1.020294075 | M32: 0.9862883539 | N32: 0.9594265115 | O32: 0.933296259 | P32: 0.9078776713 | Q32: 0.883151366
D33: Opex Forecast -> Output | E33: =Basis_OpexForecastEY -> 2024 | F33: =Basis_PtrmEY -> 2024 | G33: Lagged | H33: Calculated | J33: =IF($E33="nominal", (1+J23)^0.5*INDEX($J$27:$Q$27,MATCH($F33,$J$16:$Q$16))/J$27, INDEX($J$27:$Q$27,MATCH($F33,$J$16:$Q$16))/INDEX($J$27:$Q$27,MATCH($E33,$J$16:$Q$16))) -> 1 | K33: 1 | L33: 1 | M33: 1 | N33: 1 | O33: 1 | P33: 1 | Q33: 1
D34: Capex -> Output | E34: =Basis_CapexEY -> 2022 | F34: =Basis_PtrmEY -> 2024 | G34: ='Input|General'!J33&" Inputs" -> Mid Year Inputs | H34: Calculated | J34: =IF($E34="nominal", (1+J$23)^0.5*INDEX($J$27:$Q$27,MATCH($F34,$J$16:$Q$16))/J$27, INDEX($J$27:$Q$27,MATCH($F34,$J$16:$Q$16))/INDEX(IF('Input|General'!$J$33="Mid Year",$J$28:$Q$28,$J$27:$Q$27),MATCH($E34,$J$16:$Q$16))) -> 1.14199517 | K34: =IF($E34="nominal", (1+K$23)^0.5*INDEX($J$27:$Q$27,MATCH($F34,$J$16:$Q$16))/K$27, INDEX($J$27:$Q$27,MATCH($F34,$J$16:$Q$16))/INDEX(IF('Input|General'!$J$33="Mid Year",$J$28:$Q$28,$J$27:$Q$27),MATCH($E34,$J$16:$Q$16))) -> 1.14199517 | L34: =IF($E34="nominal", (1+L$23)^0.5*INDEX($J$27:$Q$27,MATCH($F34,$J$16:$Q$16))/L$27, INDEX($J$27:$Q$27,MATCH($F34,$J$16:$Q$16))/INDEX(IF('Input|General'!$J$33="Mid Year",$J$28:$Q$28,$J$27:$Q$27),MATCH($E34,$J$16:$Q$16))) -> 1.14199517 | M34: =IF($E34="nominal", (1+M$23)^0.5*INDEX($J$27:$Q$27,MATCH($F34,$J$16:$Q$16))/M$27, INDEX($J$27:$Q$27,MATCH($F34,$J$16:$Q$16))/INDEX(IF('Input|General'!$J$33="Mid Year",$J$28:$Q$28,$J$27:$Q$27),MATCH($E34,$J$16:$Q$16))) -> 1.14199517 | N34: =IF($E34="nominal", (1+N$23)^0.5*INDEX($J$27:$Q$27,MATCH($F34,$J$16:$Q$16))/N$27, INDEX($J$27:$Q$27,MATCH($F34,$J$16:$Q$16))/INDEX(IF('Input|General'!$J$33="Mid Year",$J$28:$Q$28,$J$27:$Q$27),MATCH($E34,$J$16:$Q$16))) -> 1.14199517 | O34: =IF($E34="nominal", (1+O$23)^0.5*INDEX($J$27:$Q$27,MATCH($F34,$J$16:$Q$16))/O$27, INDEX($J$27:$Q$27,MATCH($F34,$J$16:$Q$16))/INDEX(IF('Input|General'!$J$33="Mid Year",$J$28:$Q$28,$J$27:$Q$27),MATCH($E34,$J$16:$Q$16))) -> 1.14199517 | P34: =IF($E34="nominal", (1+P$23)^0.5*INDEX($J$27:$Q$27,MATCH($F34,$J$16:$Q$16))/P$27, INDEX($J$27:$Q$27,MATCH($F34,$J$16:$Q$16))/INDEX(IF('Input|General'!$J$33="Mid Year",$J$28:$Q$28,$J$27:$Q$27),MATCH($E34,$J$16:$Q$16))) -> 1.14199517 | Q34: =IF($E34="nominal", (1+Q$23)^0.5*INDEX($J$27:$Q$27,MATCH($F34,$J$16:$Q$16))/Q$27, INDEX($J$27:$Q$27,MATCH($F34,$J$16:$Q$16))/INDEX(IF('Input|General'!$J$33="Mid Year",$J$28:$Q$28,$J$27:$Q$27),MATCH($E34,$J$16:$Q$16))) -> 1.14199517
D35: PTRM -> RFM | E35: =Basis_PtrmEY -> 2024 | F35: =Basis_RfmEY -> nominal | H35: Calculated | J35: =J27/(INDEX($J$27:$Q$27,MATCH(YEAR(Basis_Ptrm),$J$16:$Q$16,0))) -> 0.8908453704 | K35: 0.9606147935 | L35: 1 | M35: 1.027997811 | N35: 1.0567795 | O35: 1.086367013 | P35: 1.116782912 | Q35: 1.148050389
B37: Opex Price Change
D38: Forecast Price Change Component | H38: Source | I38: Weights | J38: =J$15 -> 2021-22 | K38: 2022-23 | L38: 2023-24 | M38: 2024-25 | N38: 2025-26 | O38: 2026-27 | P38: 2027-28 | Q38: 2028-29
D39: Average of KPMG forecast + updated BIS Oxford forecast (including Superannuation) | I39: 0.592 | K39: -0.03094772517 | L39: 0.005365812951 | M39: 0.01316611938 | N39: 0.01430069117 | O39: 0.009227833745 | P39: 0.009073230528 | Q39: 0.01041938472
D41: Real Non-Labour Price Change | I41: 0.408
D42: Forecast Price Change 4
D43: Forecast Weighted Real Price Change | H43: Calculated | K43: =SUMPRODUCT(K$39:K$42,$I$39:$I$42) -> -0.0183210533 | L43: 0.003176561267 | M43: 0.007794342671 | N43: 0.008466009173 | O43: 0.005462877577 | P43: 0.005371352473 | Q43: 0.006168275752
A44: =I44 -> 1 | I44: =(SUM(I39:I42)=1)/1 -> 1
B48: Capex Price Change
D49: Forecast Price Change Component | H49: Source | I49: Weights | J49: =J$15 -> 2021-22 | K49: 2022-23 | L49: 2023-24 | M49: 2024-25 | N49: 2025-26 | O49: 2026-27 | P49: 2027-28 | Q49: 2028-29
D50: Real Labour Price Change | I50: Applied Directly | K50: =K39 -> -0.03094772517 | L50: =L39 -> 0.005365812951 | M50: 0.01316611938 | N50: 0.01430069117 | O50: 0.009227833745 | P50: 0.009073230528 | Q50: 0.01041938472
D51: Real Non-Labour Price Change | I51: Applied Directly | K51: =K41 -> 0 | L51: =L41 -> 0 | M51: 0 | N51: 0 | O51: 0 | P51: 0 | Q51: 0
C53: Labour Price Change
D54: Internal Real Price index | J54: =1 -> 1 | K54: =IFERROR(J54*(1+K50),"") -> 0.9690522748 | L54: =IFERROR(K54*(1+L50),"") -> 0.9742520281 | M54: 0.9870791466 | N54: 1.001195061 | O54: 1.010433922 | P54: 1.019601822 | Q54: 1.030225446
D55: Real Price index to input year | J55: =J$54/INDEX($J$54:$Q$54,MATCH(Basis_CapexEY,$J$16:$Q$16)) -> 1 | K55: 0.9690522748 | L55: 0.9742520281 | M55: 0.9870791466 | N55: 1.001195061 | O55: 1.010433922 | P55: 1.019601822 | Q55: 1.030225446
C57: Non-Labour Price Change
D58: Internal Real Price index | J58: =1 -> 1 | K58: =IFERROR(J58*(1+K51),"") -> 1 | L58: =IFERROR(K58*(1+L51),"") -> 1 | M58: 1 | N58: 1 | O58: 1 | P58: 1 | Q58: 1
D59: Real Price index to input year | J59: =J$58/INDEX($J$58:$Q$58,MATCH(Basis_CapexEY,$J$16:$Q$16)) -> 1 | K59: 1 | L59: 1 | M59: 1 | N59: 1 | O59: 1 | P59: 1 | Q59: 1

Sheet Opex Specific >

Sheet Input | Meter-Opex BST
B1: ='Input|General'!B1&" v"&'Input|General'!$D$2 -> AER Metering Opex & Capex Forecasting Model v1.08
B2: =MID(CELL("filename",A1),FIND("]",CELL("filename",A1))+1,255) -> Input | Meter-Opex BST
N4: =IF(N5=Opex_BaseYear,"Base Year","") ->  | O4: =IF(O5=Opex_BaseYear,"Base Year","") -> Base Year | P4: =IF(P5=Opex_BaseYear,"Base Year","") ->  | Q4: =IF(Q5=Opex_BaseYear,"Base Year","") ->  | R4: Forecast RP
A5: =PRODUCT($A$6:$A$56) -> 1 | J5: Value | L5: =IF(MONTH('Input|General'!$J$14)=6,LEFT(M5,4)-1&"-"&TEXT(MOD(MID(M5,6,2)-1,100),"00"),M5-1) -> 2018-19 | M5: =IF(MONTH('Input|General'!$J$14)=6,LEFT(N5,4)-1&"-"&TEXT(MOD(MID(N5,6,2)-1,100),"00"),N5-1) -> 2019-20 | N5: =IF(MONTH('Input|General'!$J$14)=6,LEFT(O5,4)-1&"-"&TEXT(MOD(MID(O5,6,2)-1,100),"00"),O5-1) -> 2020-21 | O5: =IF(MONTH('Input|General'!$J$14)=6,LEFT(P5,4)-1&"-"&TEXT(MOD(MID(P5,6,2)-1,100),"00"),P5-1) -> 2021-22 | P5: =IF(MONTH('Input|General'!$J$14)=6,LEFT(Q5,4)-1&"-"&TEXT(MOD(MID(Q5,6,2)-1,100),"00"),Q5-1) -> 2022-23 | Q5: =IF(MONTH('Input|General'!$J$14)=6,LEFT(R5,4)-1&"-"&TEXT(MOD(MID(R5,6,2)-1,100),"00"),R5-1) -> 2023-24 | R5: =FPFirstYear -> 2024-25 | S5: =IF(MONTH('Input|General'!$J$14)=6,LEFT(R5,4)+1&"-"&TEXT(MOD(MID(R5,6,2)+1,100),"00"),R5+1) -> 2025-26 | T5: =IF(MONTH('Input|General'!$J$14)=6,LEFT(S5,4)+1&"-"&TEXT(MOD(MID(S5,6,2)+1,100),"00"),S5+1) -> 2026-27 | U5: =IF(MONTH('Input|General'!$J$14)=6,LEFT(T5,4)+1&"-"&TEXT(MOD(MID(T5,6,2)+1,100),"00"),T5+1) -> 2027-28 | V5: =IF(MONTH('Input|General'!$J$14)=6,LEFT(U5,4)+1&"-"&TEXT(MOD(MID(U5,6,2)+1,100),"00"),U5+1) -> 2028-29
C7: Base
D8: Historical Opex
F9: Total opex | G9: $millions | H9: =Basis_OpexHist -> nominal | M9: 6.325029446 | N9: 6.614097283 | O9: 6.245427
D11: Adjustments
F12: One-off expenditure item in base year reversed | G12: =$G$9 -> $millions | H12: =Basis_OpexHist -> nominal | L12: 0 | M12: 0 | N12: 0 | O12: -0.6824184259
F13: Uncontrollable | G13: =$G$9 -> $millions | H13: =Basis_OpexHist -> nominal | L13: 0 | M13: 0 | N13: 0 | O13: 0 | Q13: 0
F14: Remove base level of capitalised overheads | G14: =$G$9 -> $millions | H14: =Basis_OpexHist -> nominal | L14: 0 | M14: 0 | N14: 0 | O14: =-SUM('Calc | Capex Meters'!Q162:U163)/5/10^6*0.61*0 -> 0 | Q14: 0
F15: Add back overheads already capitalised | G15: =$G$9 -> $millions | H15: =Basis_OpexHist -> nominal | L15: 0 | M15: 0 | N15: 0 | O15: 0 | P15: 0 | Q15: 0
F17: Base Opex (After Adjustment) | G17: =$G$9 -> $millions | H17: =Basis_OpexHist -> nominal | O17: =IF(O$5=Opex_BaseYear,(SUM(O12:O15,O9)),"") -> 5.563008574 | P17: =IF(P$5=Opex_BaseYear,(SUM(P12:P15,P9)),"") ->  | Q17: =IF(Q$5=Opex_BaseYear,(SUM(Q12:Q15,Q9)),"") -> 
A18: =(SUM(N18:Q18)<>0)/1 -> 1 | F18: Base Opex (After Adjustment) | G18: =$G$9 -> $millions | H18: =Basis_OpexForecast -> 2024-06-01 | O18: =IF(O$5=Opex_BaseYear,O17*'Input| Prices'!J$32,"") -> 6.352928924 | P18: =IF(P$5=Opex_BaseYear,P17*'Input| Prices'!K$32,"") ->  | Q18: =IF(Q$5=Opex_BaseYear,Q17*'Input| Prices'!L$32,"") -> 
C20: Step
D22: Step Changes & Specific Forecasts
F23: Reduction in manual readings | G23: =$G$9 -> $millions | H23: =Basis_OpexForecast -> 2024-06-01 | R23: -0.3567305249 | S23: -0.4699283453 | T23: -0.5800231667 | U23: -0.6877814033 | V23: -0.7546236592
F24: Reduction in special reads | G24: =$G$9 -> $millions | H24: 2024-06-01 | R24: -0.07315542761 | S24: -0.09636912641 | T24: -0.1189464871 | U24: -0.1410446798 | V24: -0.1547521522
F25: Increase in communication and software costs | G25: =$G$9 -> $millions | H25: 2024-06-01 | R25: 0.3592377153 | S25: 0.473003056 | T25: 0.5838542008 | U25: 0.692508892 | V25: 0.7623526355
F26: Cyber security | G26: =$G$9 -> $millions | H26: 2024-06-01 | R26: 0.04785485515 | S26: 0.04785485515 | T26: 0.04785485515 | U26: 0.04785485515 | V26: 0.04785485515
F27: Insurance | G27: $millions | H27: 2024-06-01 | R27: 0.03386638576 | S27: 0.04168658263 | T27: 0.04751568516 | U27: 0.0533312393 | V27: 0.05857062041
F28: Cloud migration | G28: $millions | H28: 2024-06-01 | R28: 0.03176265051 | S28: 0.03176265051 | T28: 0.03176265051 | U28: 0.03176265051 | V28: 0.03176265051
F29: Future Network | G29: $millions | H29: 2024-06-01 | R29: 0.01922769759 | S29: 0.01922769759 | T29: 0.04619454347 | U29: 0.07666828266 | V29: 0.07730149092
F30: Regulatory obligations | G30: $millions | H30: 2024-06-01 | R30: 0 | S30: 0 | T30: 0 | U30: 0 | V30: 0
C32: Trend
D34: Forecast output change
E35: Outputs | F35: Customer numbers (#) | G35: No. | O35: 84065 | P35: 85906 | Q35: 86516.01147 | R35: 86481.14484 | S35: 86769.95861 | T35: 87060.54385 | U35: 87350.87964 | V35: 87642.97976
E36: Outputs | F36: Circuit Length (km) | G36: No.
E37: Outputs | F37: Ratcheted Maximum Demand (MW) | G37: No.
E38: Outputs | F38: Output 4 | G38: No.
A40: =IF(SUM(O35:V35)<>0,(J40<>0)/1,1) -> 1 | E40: Weights | F40: =F35 -> Customer numbers (#) | G40: % | J40: 1
A41: =IF(SUM(O36:V36)<>0,(J41<>0)/1,1) -> 1 | E41: Weights | F41: =F36 -> Circuit Length (km) | G41: %
A42: 1 | E42: Weights | F42: =F37 -> Ratcheted Maximum Demand (MW) | G42: %
A43: 1 | E43: Weights | F43: =F38 -> Output 4 | G43: %
D45: Forecast Real Price Change
E46: Forecast price change | F46: Forecast Weighted Real Price Change | G46: % | P46: ='Input| Prices'!K43 -> -0.0183210533 | Q46: ='Input| Prices'!L43 -> 0.003176561267 | R46: ='Input| Prices'!M43 -> 0.007794342671 | S46: ='Input| Prices'!N43 -> 0.008466009173 | T46: ='Input| Prices'!O43 -> 0.005462877577 | U46: ='Input| Prices'!P43 -> 0.005371352473 | V46: ='Input| Prices'!Q43 -> 0.006168275752
D48: Forecast Productivity change
E49: Economy of Scale | F49: Economies of Scale Factor | G49: % | J49: 1
E50: Productivity | F50: Partial Factor Productivity - Annual improvement | G50: %

Sheet Capex Specific >

Sheet Input | Meters Vols & Costs
B1: ='Input|General'!B1&" v"&'Input|General'!$D$2 -> AER Metering Opex & Capex Forecasting Model v1.08
B2: =MID(CELL("filename",A1),FIND("]",CELL("filename",A1))+1,255) -> Input | Meters Vols & Costs
A4: =PRODUCT($A$5:$A$452) -> 1
B5: 1. Meter Types
F8: Meter Type | G8: RIN Subcategory 1 | H8: RIN Subcategory 2 | I8: AER Type | J8: RIN Subcategory 3 | K8: Meter Code | L8: % of existing meters with Asbestos
F9: Single phase Bottom connected (Smart) | G9: Single phase meter population | H9: Direct connected meter population | I9: Single phase single element (Smart) | J9: Type 4 | K9: SM 1ph DC | L9: 0.4
F10: Single phase Plug in (Smart) | G10: Single phase meter population | H10: Direct connected meter population | I10: Single phase single element (Smart) | J10: Type 4 | K10: SM 1ph DC | L10: 0
F11: Single phase Two element (Smart) | G11: Single phase meter population | H11: Direct connected meter population | I11: Single phase two element with contactor (Smart) | J11: Type 4 | K11: SM 1ph DC | L11: 0.4
F12: Three phase Whole Current (Smart) | G12: Multiphase meter population | H12: Direct connected meter population | I12: Three phase direct connected (smart) | J12: Type 3 or 4 | K12: SM 3ph DC | L12: 0.3
F13: Three phase LVCT (Smart) | G13: Multiphase meter population | H13: Current transformer connected meter population | I13: Three phase current transformer connected (smart) | J13: Type 3 or 4 | K13: SM 3ph CT | L13: 0.3
F14: Three phase HV (Smart) | G14: Multiphase meter population | H14: Current transformer connected meter population | I14: Three phase voltage transformer and current transformer connected (smart) | J14: Type 2, 3 or 4 | K14: SM 3ph HV | L14: 0.12
F15: Single phase Bottom connected (Electronic) | G15: Single phase meter population | H15: Direct connected meter population | I15: Single phase single element (Accumulation) | J15: Type 6 | K15: ACC 1ph DC | L15: 0
F16: Single phase Plug in (Electronic) | G16: Single phase meter population | H16: Direct connected meter population | I16: Single phase single element (Accumulation) | J16: Type 6 | K16: ACC 1ph DC | L16: 0
F17: Single phase Two element (Electronic) | G17: Single phase meter population | H17: Direct connected meter population | I17: Single phase two element with contactor (Accumulation) | J17: Type 6 | K17: ACC 1ph DC | L17: 0
F18: Three phase 3 X Single phase (Electronic) | G18: Multiphase meter population or single phase meter population | H18: Direct connected meter population | I18: Three phase direct connected (Accumulation) | J18: Type 6 | K18: ACC 3ph DC | L18: 0.4
F19: Three phase Whole Current (Electronic) | G19: Multiphase meter population | H19: Direct connected meter population | I19: Three phase direct connected (Accumulation) | J19: Type 6 | K19: ACC 3ph DC | L19: 0
F20: Three phase LVCT (Electronic) | G20: Multiphase meter population | H20: Current transformer connected meter population | I20: Three phase current transformer connected (Accumulation) | J20: Type 6 | K20: ACC 3ph CT | L20: 0
F21: Three phase HV (Electronic) | G21: Multiphase meter population | H21: Current transformer connected meter population | I21: Three phase voltage transformer and current transformer connected (Accumulation) | J21: Type 6 | K21: ACC 3ph HV | L21: 0
F22: Mechanical Meters | G22: Unallocated | H22: Unallocated | I22: Unallocated | J22: Type 6 | K22: Unallocated | L22: 0
F23: Unallocated | G23: Unallocated | H23: Unallocated | I23: Unallocated | J23: Unallocated | K23: Unallocated | L23: 0
B25: =LEFT(B5,1)+1&". Meter Actions" -> 2. Meter Actions
E28: # | F28: Action | G28: Action Name | H28: Impact on meter population | I28: Meter Equipment Cost? | J28: SCS Allocation | P28: (Calc) Impact on meter population | Q28: (Calc) Calc Equip Cost | R28: (Calc) Is New | S28: (Calc) Is Replacement | T28: (Calc) Is Other
A29: =IF(SUM(ICM_Vol1)<>0,(H29<>"")/1*(I29<>"")/1,1) -> 1 | E29: 1 | F29: New Meter Installations | G29: New Meter Installations - Growth | H29: Add | I29: Include | J29: 0 | P29: =IF(H29="Add",1,IF(H29="No Effect",0,IF(H29="Subtract",-1,IF(ISBLANK(H29),0)))) -> 1 | Q29: =IF(I29="Include",1,IF(I29="Exclude",0,IF(I29="Subtract",-1,IF(ISBLANK(I29),0)))) -> 1 | R29: =(P29=1)/1 -> 1 | S29: =ISNUMBER(SEARCH("Replacement",G29,1))/1 -> 0 | T29: =NOT(R29+S29)/1 -> 0
A30: =IF(SUM(ICM_Vol2)<>0,(H30<>"")/1,1) -> 1 | E30: 2 | F30: NSP Action 1 | G30: Replacement - End of life | H30: Add | I30: Include | J30: 0 | P30: =IF(H30="Add",1,IF(H30="No Effect",0,IF(H30="Subtract",-1,IF(ISBLANK(H30),0)))) -> 1 | Q30: =IF(I30="Include",1,IF(I30="Exclude",0,IF(I30="Subtract",-1,IF(ISBLANK(I30),0)))) -> 1 | R30: 1 | S30: 1 | T30: 0
A31: =IF(SUM(ICM_Vol3)<>0,(H31<>"")/1,1) -> 1 | E31: 3 | F31: NSP Action 2 | G31: Replacement - Failures and Faults (Mechanical and Electronic) | H31: Add | I31: Include | J31: 0 | P31: 1 | Q31: 1 | R31: 1 | S31: 1 | T31: 0
A32: =IF(SUM(ICM_Vol4)<>0,(H32<>"")/1,1) -> 1 | E32: 4 | F32: NSP Action 3 | G32: Replacement - Failures and Faults (Smart) | H32: Add | I32: Include | J32: 0 | P32: 1 | Q32: 1 | R32: 1 | S32: 1 | T32: 0
A33: =IF(SUM(ICM_Vol5)<>0,(H33<>"")/1,1) -> 1 | E33: 5 | F33: NSP Action 4 | G33: Replacement - Prepaid | H33: Add | I33: Include | J33: 0 | P33: 1 | Q33: 1 | R33: 1 | S33: 1 | T33: 0
A34: =IF(SUM(ICM_Vol6)<>0,(H34<>"")/1,1) -> 1 | E34: 6 | F34: NSP Action 5 | G34: Replacement - Other replacements | H34: Add | I34: Include | J34: 0 | P34: 1 | Q34: 1 | R34: 1 | S34: 1 | T34: 0
A35: =IF(SUM(ICM_Vol7)<>0,(H35<>"")/1,1) -> 1 | E35: 7 | F35: NSP Action 6 | G35: Additions and alterations - PV (Mechanical and Electronic) | H35: Add | I35: Exclude | J35: 0 | P35: 1 | Q35: 0 | R35: 1 | S35: 0 | T35: 0
A36: =IF(SUM(ICM_Vol8)<>0,(H36<>"")/1,1) -> 1 | E36: 8 | F36: NSP Action 7 | G36: Additions and alterations - PV (Existing Smart) | H36: Add | I36: Exclude | J36: 0 | P36: 1 | Q36: 0 | R36: 1 | S36: 0 | T36: 0
A37: =IF(SUM(ICM_Vol9)<>0,(H37<>"")/1,1) -> 1 | E37: 9 | F37: NSP Action 8 | G37: Failures and faults, end of life and targeted replacements | H37: Subtract | I37: Exclude | J37: 0 | P37: -1 | Q37: 0 | R37: 0 | S37: 1 | T37: 0
A38: =IF(SUM(ICM_Vol10)<>0,(H38<>"")/1,1) -> 1 | E38: 10 | F38: Abolishments | G38: Abolishments | H38: Subtract | I38: Exclude | J38: 0 | P38: -1 | Q38: 0 | R38: 0 | S38: 0 | T38: 1
B41: =LEFT(B25,1)+1&". Overheads and additional meter-related costs" -> 3. Overheads and additional meter-related costs
C44: b | D44: Meter Related Costs
K45: Additional Projects | L45: Units | M45: Basis | N45: =N$171 -> 2021-22 | O45: 2022-23 | P45: 2023-24 | Q45: 2024-25 | R45: 2025-26 | S45: 2026-27 | T45: 2027-28 | U45: 2028-29 | V45: Total
K46: Total cost of asbestos removal | L46: $dollars | M46: =Basis_Capex -> 2021-12-01 | P46: ='Input | Workings'!G29 -> 1473403.648 | Q46: ='Input | Workings'!H29 -> 1729449.467 | R46: ='Input | Workings'!I29 -> 1729968.372 | S46: ='Input | Workings'!J29 -> 1710582.254 | T46: ='Input | Workings'!K29 -> 1711093.844 | U46: ='Input | Workings'!L29 -> 1084952.27 | V46: =SUM(P46:U46) -> 9439449.854
K47: Removed meter storage and disposal | L47: =$L$46 -> $dollars | M47: =Basis_Capex -> 2021-12-01 | P47: 105824.2231 | Q47: 111244.8398 | R47: 111266.7214 | S47: 110688.0442 | T47: 110707.9973 | U47: 71537.79545 | V47: =SUM(P47:U47) -> 621269.6213
K48: Project 3 | L48: =$L$46 -> $dollars | M48: =Basis_Capex -> 2021-12-01 | V48: =SUM(P48:U48) -> 0
K49: Project 4 | L49: =$L$46 -> $dollars | M49: =Basis_Capex -> 2021-12-01 | V49: =SUM(P49:U49) -> 0
K50: Total | L50: =$L$46 -> $dollars | M50: =Basis_Capex -> 2021-12-01 | N50: =SUM(N46:N49) -> 0 | O50: 0 | P50: 1579227.871 | Q50: 1840694.306 | R50: 1841235.094 | S50: 1821270.298 | T50: 1821801.841 | U50: 1156490.065 | V50: =SUM(Q50:U50) -> 8481491.605
C52: a | D52: Metering Overheads
K53: Overheads Method | L53: Units | M53: Basis | O53: Value | Q53: =Q$171 -> 2024-25 | R53: =R$171 -> 2025-26 | S53: =S$171 -> 2026-27 | T53: =T$171 -> 2027-28 | U53: =U$171 -> 2028-29 | V53: Total
K54: Fixed proportion | L54: =IF(K54="Fixed proportion","%","$dollars") -> % | M54: =IF(L54="%","",Basis_Capex) ->  | O54: 0.4242793097 | Q54: =-'Input | Meter-Opex BST'!$O$14*10^6*'Calc | Opex'!R$43 -> 0 | R54: =-'Input | Meter-Opex BST'!$O$14*10^6*'Calc | Opex'!S$43 -> 0 | S54: =-'Input | Meter-Opex BST'!$O$14*10^6*'Calc | Opex'!T$43 -> 0 | T54: =-'Input | Meter-Opex BST'!$O$14*10^6*'Calc | Opex'!U$43 -> 0 | U54: =-'Input | Meter-Opex BST'!$O$14*10^6*'Calc | Opex'!V$43 -> 0
K55: Total | L55: =$L$46 -> $dollars | M55: =Basis_Capex -> 2021-12-01 | O55: =IF('Input | Meters Vols & Costs'!$K54="Fixed proportion",SUM('Calc | Capex Meters'!O$162:O$163)*$O54, IF('Input | Meters Vols & Costs'!$K54="Fixed number",$O54,O54 )) -> 0 | P55: =IF('Input | Meters Vols & Costs'!$K54="Fixed proportion",SUM('Calc | Capex Meters'!P$162:P$163)*$O54, IF('Input | Meters Vols & Costs'!$K54="Fixed number",$O54,P54 )) -> 2652097.204 | Q55: =IF('Input | Meters Vols & Costs'!$K54="Fixed proportion",SUM('Calc | Capex Meters'!Q$162:Q$163)*$O54, IF('Input | Meters Vols & Costs'!$K54="Fixed number",$O54,Q54 )) -> 2921010.703 | R55: =IF('Input | Meters Vols & Costs'!$K54="Fixed proportion",SUM('Calc | Capex Meters'!R$162:R$163)*$O54, IF('Input | Meters Vols & Costs'!$K54="Fixed number",$O54,R54 )) -> 2940078.378 | S55: =IF('Input | Meters Vols & Costs'!$K54="Fixed proportion",SUM('Calc | Capex Meters'!S$162:S$163)*$O54, IF('Input | Meters Vols & Costs'!$K54="Fixed number",$O54,S54 )) -> 2934866.495 | T55: =IF('Input | Meters Vols & Costs'!$K54="Fixed proportion",SUM('Calc | Capex Meters'!T$162:T$163)*$O54, IF('Input | Meters Vols & Costs'!$K54="Fixed number",$O54,T54 )) -> 2947779.313 | U55: =IF('Input | Meters Vols & Costs'!$K54="Fixed proportion",SUM('Calc | Capex Meters'!U$162:U$163)*$O54, IF('Input | Meters Vols & Costs'!$K54="Fixed number",$O54,U54 )) -> 1974927.554 | V55: =SUM(Q55:U55) -> 13718662.44
C57: c | D57: Asset Disposal
K58: =D57 -> Asset Disposal | L58: Units | M58: Basis | N58: =N$171 -> 2021-22 | O58: 2022-23 | P58: 2023-24 | Q58: 2024-25 | R58: 2025-26 | S58: 2026-27 | T58: 2027-28 | U58: 2028-29 | V58: Total
K59: Income from disposal of meters | L59: $dollars | M59: =Basis_Capex -> 2021-12-01 | V59: =SUM(P59:U59) -> 0
K60: Disposal 2 | L60: =$L$59 -> $dollars | M60: =Basis_Capex -> 2021-12-01 | V60: =SUM(P60:U60) -> 0
K61: Disposal 3 | L61: =$L$59 -> $dollars | M61: =Basis_Capex -> 2021-12-01 | V61: =SUM(P61:U61) -> 0
K62: Total | L62: $dollars | M62: =Basis_Capex -> 2021-12-01 | Q62: =SUM(Q59:Q61) -> 0 | R62: =SUM(R59:R61) -> 0 | S62: 0 | T62: 0 | U62: 0 | V62: =SUM(Q62:U62) -> 0
C63: d | D63: Capital Contributions
K64: =D63 -> Capital Contributions | L64: Units | M64: Basis | N64: =N$171 -> 2021-22 | O64: 2022-23 | P64: 2023-24 | Q64: 2024-25 | R64: 2025-26 | S64: 2026-27 | T64: 2027-28 | U64: 2028-29 | V64: Total
K65: CapCon 1 | L65: $dollars | M65: =Basis_Capex -> 2021-12-01 | V65: =SUM(P65:U65) -> 0
K66: CapCon 2 | L66: =$L$65 -> $dollars | M66: =Basis_Capex -> 2021-12-01 | V66: =SUM(P66:U66) -> 0
K67: CapCon 3 | L67: =$L$65 -> $dollars | M67: =Basis_Capex -> 2021-12-01 | V67: =SUM(P67:U67) -> 0
K68: Total | L68: $dollars | M68: =Basis_Capex -> 2021-12-01 | Q68: =SUM(Q65:Q67) -> 0 | R68: =SUM(R65:R67) -> 0 | S68: =SUM(S65:S67) -> 0 | T68: =SUM(T65:T67) -> 0 | U68: =SUM(U65:U67) -> 0 | V68: =SUM(Q68:U68) -> 0
B71: =LEFT(B41,1)+1&". Labour Rates, Hours & Costs" -> 4. Labour Rates, Hours & Costs
C73: a | D73: Labour Rates
K75: Input | L75: Units | M75: Basis | P75: Value
K76: Labour Rate | L76: $dollars/hr | M76: =Basis_Capex -> 2021-12-01 | P76: 1
K77: Apply Labour Cost Escalation | L77: Y/N | P77: Yes
C79: b | D79: Labour Time Required
P81: 1 | Q81: 2 | R81: 3 | S81: 4 | T81: 5 | U81: 6 | V81: 7 | W81: 8 | X81: 9 | Y81: 10
F82: =I_MeterTypes[[#Headers],[Meter Type]] -> Meter Type | G82: =I_MeterTypes[[#Headers],[RIN Subcategory 1]] -> RIN Subcategory 1 | H82: =I_MeterTypes[[#Headers],[RIN Subcategory 2]] -> RIN Subcategory 2 | I82: =I_MeterTypes[[#Headers],[AER Type]] -> AER Type | J82: =I_MeterTypes[[#Headers],[RIN Subcategory 3]] -> RIN Subcategory 3 | K82: =I_MeterTypes[[#Headers],[Meter Code]] -> Meter Code | L82: Units | P82: =TRANSPOSE($G$29:$G$38) -> New Meter Installations - Growth | Q82: Replacement - End of life | R82: Replacement - Failures and Faults (Mechanical and Electronic) | S82: Replacement - Failures and Faults (Smart) | T82: Replacement - Prepaid | U82: Replacement - Other replacements | V82: Additions and alterations - PV (Mechanical and Electronic) | W82: Additions and alterations - PV (Existing Smart) | X82: Failures and faults, end of life and targeted replacements | Y82: Abolishments
F83: =I_MeterTypes[Meter Type] -> Single phase Bottom connected (Smart) | G83: =I_MeterTypes[RIN Subcategory 1] -> Single phase meter population | H83: =I_MeterTypes[RIN Subcategory 2] -> Direct connected meter population | I83: =I_MeterTypes[AER Type] -> Single phase single element (Smart) | J83: =I_MeterTypes[RIN Subcategory 3] -> Type 4 | K83: =I_MeterTypes[Meter Code] -> SM 1ph DC | L83: Hours | P83: 258.4440263 | Q83: =P83 -> 258.4440263 | R83: 258.4440263 | S83: 258.4440263 | T83: 258.4440263 | U83: 258.4440263 | Y83: =X83 -> 0
F84: Single phase Plug in (Smart) | G84: Single phase meter population | H84: Direct connected meter population | I84: Single phase single element (Smart) | J84: Type 4 | K84: SM 1ph DC | L84: Hours | P84: 219.5202258 | Q84: =P84 -> 219.5202258 | R84: 219.5202258 | S84: 219.5202258 | T84: 219.5202258 | U84: 219.5202258 | Y84: =X84 -> 0
F85: Single phase Two element (Smart) | G85: Single phase meter population | H85: Direct connected meter population | I85: Single phase two element with contactor (Smart) | J85: Type 4 | K85: SM 1ph DC | L85: Hours | P85: 331.3875823 | Q85: =P85 -> 331.3875823 | R85: 331.3875823 | S85: 331.3875823 | T85: 331.3875823 | U85: 331.3875823 | Y85: 0
F86: Three phase Whole Current (Smart) | G86: Multiphase meter population | H86: Direct connected meter population | I86: Three phase direct connected (smart) | J86: Type 3 or 4 | K86: SM 3ph DC | L86: Hours | P86: 431.420508 | Q86: =P86 -> 431.420508 | R86: 431.420508 | S86: 431.420508 | T86: 431.420508 | U86: 431.420508 | Y86: 0
F87: Three phase LVCT (Smart) | G87: Multiphase meter population | H87: Current transformer connected meter population | I87: Three phase current transformer connected (smart) | J87: Type 3 or 4 | K87: SM 3ph CT | L87: Hours | P87: 896.3311383 | Q87: =P87 -> 896.3311383 | R87: 896.3311383 | S87: 896.3311383 | T87: 896.3311383 | U87: 896.3311383 | Y87: 0
F88: Three phase HV (Smart) | G88: Multiphase meter population | H88: Current transformer connected meter population | I88: Three phase voltage transformer and current transformer connected (smart) | J88: Type 2, 3 or 4 | K88: SM 3ph HV | L88: Hours | P88: 2221.636877 | Q88: =P88 -> 2221.636877 | R88: 2221.636877 | S88: 2221.636877 | T88: 2221.636877 | U88: 2221.636877 | Y88: 0
F89: Single phase Bottom connected (Electronic) | G89: Single phase meter population | H89: Direct connected meter population | I89: Single phase single element (Accumulation) | J89: Type 6 | K89: ACC 1ph DC | L89: Hours
F90: Single phase Plug in (Electronic) | G90: Single phase meter population | H90: Direct connected meter population | I90: Single phase single element (Accumulation) | J90: Type 6 | K90: ACC 1ph DC | L90: Hours
F91: Single phase Two element (Electronic) | G91: Single phase meter population | H91: Direct connected meter population | I91: Single phase two element with contactor (Accumulation) | J91: Type 6 | K91: ACC 1ph DC | L91: Hours
F92: Three phase 3 X Single phase (Electronic) | G92: Multiphase meter population or single phase meter population | H92: Direct connected meter population | I92: Three phase direct connected (Accumulation) | J92: Type 6 | K92: ACC 3ph DC | L92: Hours | P92: 476.1994356 | Q92: =P92 -> 476.1994356 | R92: =Q92 -> 476.1994356 | S92: 476.1994356 | T92: 476.1994356 | U92: 476.1994356 | Y92: =X92 -> 0
F93: Three phase Whole Current (Electronic) | G93: Multiphase meter population | H93: Direct connected meter population | I93: Three phase direct connected (Accumulation) | J93: Type 6 | K93: ACC 3ph DC | L93: Hours
F94: Three phase LVCT (Electronic) | G94: Multiphase meter population | H94: Current transformer connected meter population | I94: Three phase current transformer connected (Accumulation) | J94: Type 6 | K94: ACC 3ph CT | L94: Hours
F95: Three phase HV (Electronic) | G95: Multiphase meter population | H95: Current transformer connected meter population | I95: Three phase voltage transformer and current transformer connected (Accumulation) | J95: Type 6 | K95: ACC 3ph HV | L95: Hours
F96: Mechanical Meters | G96: Unallocated | H96: Unallocated | I96: Unallocated | J96: Type 6 | K96: Unallocated | L96: Hours
F97: Unallocated | G97: Unallocated | H97: Unallocated | I97: Unallocated | J97: Unallocated | K97: Unallocated | L97: Hours
C99: c | D99: Labour Costs
P101: 1 | Q101: 2 | R101: 3 | S101: 4 | T101: 5 | U101: 6 | V101: 7 | W101: 8 | X101: 9 | Y101: 10
F102: =I_MeterTypes[[#Headers],[Meter Type]] -> Meter Type | G102: =I_MeterTypes[[#Headers],[RIN Subcategory 1]] -> RIN Subcategory 1 | H102: =I_MeterTypes[[#Headers],[RIN Subcategory 2]] -> RIN Subcategory 2 | I102: =I_MeterTypes[[#Headers],[AER Type]] -> AER Type | J102: =I_MeterTypes[[#Headers],[RIN Subcategory 3]] -> RIN Subcategory 3 | K102: =I_MeterTypes[[#Headers],[Meter Code]] -> Meter Code | L102: Units | M102: Basis | P102: =P$82 -> New Meter Installations - Growth | Q102: =Q$82 -> Replacement - End of life | R102: Replacement - Failures and Faults (Mechanical and Electronic) | S102: Replacement - Failures and Faults (Smart) | T102: Replacement - Prepaid | U102: Replacement - Other replacements | V102: Additions and alterations - PV (Mechanical and Electronic) | W102: Additions and alterations - PV (Existing Smart) | X102: Failures and faults, end of life and targeted replacements | Y102: Abolishments
F103: =I_MeterTypes[Meter Type] -> Single phase Bottom connected (Smart) | G103: =I_MeterTypes[RIN Subcategory 1] -> Single phase meter population | H103: =I_MeterTypes[RIN Subcategory 2] -> Direct connected meter population | I103: =I_MeterTypes[AER Type] -> Single phase single element (Smart) | J103: =I_MeterTypes[RIN Subcategory 3] -> Type 4 | K103: =I_MeterTypes[Meter Code] -> SM 1ph DC | L103: $dollars | M103: =Basis_Capex -> 2021-12-01 | P103: =ICM_Rates*ICM_Hrs -> 258.4440263 | Q103: 258.4440263 | R103: 258.4440263 | S103: 258.4440263 | T103: 258.4440263 | U103: 258.4440263 | V103: 0 | W103: 0 | X103: 0 | Y103: 0
F104: Single phase Plug in (Smart) | G104: Single phase meter population | H104: Direct connected meter population | I104: Single phase single element (Smart) | J104: Type 4 | K104: SM 1ph DC | L104: $dollars | M104: 2021-12-01 | P104: 219.5202258 | Q104: 219.5202258 | R104: 219.5202258 | S104: 219.5202258 | T104: 219.5202258 | U104: 219.5202258 | V104: 0 | W104: 0 | X104: 0 | Y104: 0
F105: Single phase Two element (Smart) | G105: Single phase meter population | H105: Direct connected meter population | I105: Single phase two element with contactor (Smart) | J105: Type 4 | K105: SM 1ph DC | L105: $dollars | M105: 2021-12-01 | P105: 331.3875823 | Q105: 331.3875823 | R105: 331.3875823 | S105: 331.3875823 | T105: 331.3875823 | U105: 331.3875823 | V105: 0 | W105: 0 | X105: 0 | Y105: 0
F106: Three phase Whole Current (Smart) | G106: Multiphase meter population | H106: Direct connected meter population | I106: Three phase direct connected (smart) | J106: Type 3 or 4 | K106: SM 3ph DC | L106: $dollars | M106: 2021-12-01 | P106: 431.420508 | Q106: 431.420508 | R106: 431.420508 | S106: 431.420508 | T106: 431.420508 | U106: 431.420508 | V106: 0 | W106: 0 | X106: 0 | Y106: 0
F107: Three phase LVCT (Smart) | G107: Multiphase meter population | H107: Current transformer connected meter population | I107: Three phase current transformer connected (smart) | J107: Type 3 or 4 | K107: SM 3ph CT | L107: $dollars | M107: 2021-12-01 | P107: 896.3311383 | Q107: 896.3311383 | R107: 896.3311383 | S107: 896.3311383 | T107: 896.3311383 | U107: 896.3311383 | V107: 0 | W107: 0 | X107: 0 | Y107: 0
F108: Three phase HV (Smart) | G108: Multiphase meter population | H108: Current transformer connected meter population | I108: Three phase voltage transformer and current transformer connected (smart) | J108: Type 2, 3 or 4 | K108: SM 3ph HV | L108: $dollars | M108: 2021-12-01 | P108: 2221.636877 | Q108: 2221.636877 | R108: 2221.636877 | S108: 2221.636877 | T108: 2221.636877 | U108: 2221.636877 | V108: 0 | W108: 0 | X108: 0 | Y108: 0
F109: Single phase Bottom connected (Electronic) | G109: Single phase meter population | H109: Direct connected meter population | I109: Single phase single element (Accumulation) | J109: Type 6 | K109: ACC 1ph DC | L109: $dollars | M109: 2021-12-01 | P109: 0 | Q109: 0 | R109: 0 | S109: 0 | T109: 0 | U109: 0 | V109: 0 | W109: 0 | X109: 0 | Y109: 0
F110: Single phase Plug in (Electronic) | G110: Single phase meter population | H110: Direct connected meter population | I110: Single phase single element (Accumulation) | J110: Type 6 | K110: ACC 1ph DC | L110: $dollars | M110: 2021-12-01 | P110: 0 | Q110: 0 | R110: 0 | S110: 0 | T110: 0 | U110: 0 | V110: 0 | W110: 0 | X110: 0 | Y110: 0
F111: Single phase Two element (Electronic) | G111: Single phase meter population | H111: Direct connected meter population | I111: Single phase two element with contactor (Accumulation) | J111: Type 6 | K111: ACC 1ph DC | L111: $dollars | M111: 2021-12-01 | P111: 0 | Q111: 0 | R111: 0 | S111: 0 | T111: 0 | U111: 0 | V111: 0 | W111: 0 | X111: 0 | Y111: 0
F112: Three phase 3 X Single phase (Electronic) | G112: Multiphase meter population or single phase meter population | H112: Direct connected meter population | I112: Three phase direct connected (Accumulation) | J112: Type 6 | K112: ACC 3ph DC | L112: $dollars | M112: 2021-12-01 | P112: 476.1994356 | Q112: 476.1994356 | R112: 476.1994356 | S112: 476.1994356 | T112: 476.1994356 | U112: 476.1994356 | V112: 0 | W112: 0 | X112: 0 | Y112: 0
F113: Three phase Whole Current (Electronic) | G113: Multiphase meter population | H113: Direct connected meter population | I113: Three phase direct connected (Accumulation) | J113: Type 6 | K113: ACC 3ph DC | L113: $dollars | M113: 2021-12-01 | P113: 0 | Q113: 0 | R113: 0 | S113: 0 | T113: 0 | U113: 0 | V113: 0 | W113: 0 | X113: 0 | Y113: 0
F114: Three phase LVCT (Electronic) | G114: Multiphase meter population | H114: Current transformer connected meter population | I114: Three phase current transformer connected (Accumulation) | J114: Type 6 | K114: ACC 3ph CT | L114: $dollars | M114: 2021-12-01 | P114: 0 | Q114: 0 | R114: 0 | S114: 0 | T114: 0 | U114: 0 | V114: 0 | W114: 0 | X114: 0 | Y114: 0
F115: Three phase HV (Electronic) | G115: Multiphase meter population | H115: Current transformer connected meter population | I115: Three phase voltage transformer and current transformer connected (Accumulation) | J115: Type 6 | K115: ACC 3ph HV | L115: $dollars | M115: 2021-12-01 | P115: 0 | Q115: 0 | R115: 0 | S115: 0 | T115: 0 | U115: 0 | V115: 0 | W115: 0 | X115: 0 | Y115: 0
F116: Mechanical Meters | G116: Unallocated | H116: Unallocated | I116: Unallocated | J116: Type 6 | K116: Unallocated | L116: $dollars | M116: 2021-12-01 | P116: 0 | Q116: 0 | R116: 0 | S116: 0 | T116: 0 | U116: 0 | V116: 0 | W116: 0 | X116: 0 | Y116: 0
F117: Unallocated | G117: Unallocated | H117: Unallocated | I117: Unallocated | J117: Unallocated | K117: Unallocated | L117: $dollars | M117: 2021-12-01 | P117: 0 | Q117: 0 | R117: 0 | S117: 0 | T117: 0 | U117: 0 | V117: 0 | W117: 0 | X117: 0 | Y117: 0
B120: =LEFT(B71,1)+1&". Equipment Unit Cost" -> 5. Equipment Unit Cost
C122: a | D122: Equipment Unit Cost
P123: 1
F124: =I_MeterTypes[[#Headers],[Meter Type]] -> Meter Type | G124: =I_MeterTypes[[#Headers],[RIN Subcategory 1]] -> RIN Subcategory 1 | H124: =I_MeterTypes[[#Headers],[RIN Subcategory 2]] -> RIN Subcategory 2 | I124: =I_MeterTypes[[#Headers],[AER Type]] -> AER Type | J124: =I_MeterTypes[[#Headers],[RIN Subcategory 3]] -> RIN Subcategory 3 | K124: =I_MeterTypes[[#Headers],[Meter Code]] -> Meter Code | L124: Units | M124: Basis | P124: Meter Unit Cost
F125: =I_MeterTypes[Meter Type] -> Single phase Bottom connected (Smart) | G125: =I_MeterTypes[RIN Subcategory 1] -> Single phase meter population | H125: =I_MeterTypes[RIN Subcategory 2] -> Direct connected meter population | I125: =I_MeterTypes[AER Type] -> Single phase single element (Smart) | J125: =I_MeterTypes[RIN Subcategory 3] -> Type 4 | K125: =I_MeterTypes[Meter Code] -> SM 1ph DC | L125: $dollars | M125: =Basis_Capex -> 2021-12-01 | P125: 153.1232361
F126: Single phase Plug in (Smart) | G126: Single phase meter population | H126: Direct connected meter population | I126: Single phase single element (Smart) | J126: Type 4 | K126: SM 1ph DC | L126: $dollars | M126: 2021-12-01 | P126: 235.4844779
F127: Single phase Two element (Smart) | G127: Single phase meter population | H127: Direct connected meter population | I127: Single phase two element with contactor (Smart) | J127: Type 4 | K127: SM 1ph DC | L127: $dollars | M127: 2021-12-01 | P127: 171.5898401
F128: Three phase Whole Current (Smart) | G128: Multiphase meter population | H128: Direct connected meter population | I128: Three phase direct connected (smart) | J128: Type 3 or 4 | K128: SM 3ph DC | L128: $dollars | M128: 2021-12-01 | P128: 277.2812794
F129: Three phase LVCT (Smart) | G129: Multiphase meter population | H129: Current transformer connected meter population | I129: Three phase current transformer connected (smart) | J129: Type 3 or 4 | K129: SM 3ph CT | L129: $dollars | M129: 2021-12-01 | P129: 272.0696143
F130: Three phase HV (Smart) | G130: Multiphase meter population | H130: Current transformer connected meter population | I130: Three phase voltage transformer and current transformer connected (smart) | J130: Type 2, 3 or 4 | K130: SM 3ph HV | L130: $dollars | M130: 2021-12-01 | P130: 565.3809972
F131: Single phase Bottom connected (Electronic) | G131: Single phase meter population | H131: Direct connected meter population | I131: Single phase single element (Accumulation) | J131: Type 6 | K131: ACC 1ph DC | L131: $dollars | M131: 2021-12-01
F132: Single phase Plug in (Electronic) | G132: Single phase meter population | H132: Direct connected meter population | I132: Single phase single element (Accumulation) | J132: Type 6 | K132: ACC 1ph DC | L132: $dollars | M132: 2021-12-01
F133: Single phase Two element (Electronic) | G133: Single phase meter population | H133: Direct connected meter population | I133: Single phase two element with contactor (Accumulation) | J133: Type 6 | K133: ACC 1ph DC | L133: $dollars | M133: 2021-12-01
F134: Three phase 3 X Single phase (Electronic) | G134: Multiphase meter population or single phase meter population | H134: Direct connected meter population | I134: Three phase direct connected (Accumulation) | J134: Type 6 | K134: ACC 3ph DC | L134: $dollars | M134: 2021-12-01 | P134: 277.2812794
F135: Three phase Whole Current (Electronic) | G135: Multiphase meter population | H135: Direct connected meter population | I135: Three phase direct connected (Accumulation) | J135: Type 6 | K135: ACC 3ph DC | L135: $dollars | M135: 2021-12-01
F136: Three phase LVCT (Electronic) | G136: Multiphase meter population | H136: Current transformer connected meter population | I136: Three phase current transformer connected (Accumulation) | J136: Type 6 | K136: ACC 3ph CT | L136: $dollars | M136: 2021-12-01
F137: Three phase HV (Electronic) | G137: Multiphase meter population | H137: Current transformer connected meter population | I137: Three phase voltage transformer and current transformer connected (Accumulation) | J137: Type 6 | K137: ACC 3ph HV | L137: $dollars | M137: 2021-12-01
F138: Mechanical Meters | G138: Unallocated | H138: Unallocated | I138: Unallocated | J138: Type 6 | K138: Unallocated | L138: $dollars | M138: 2021-12-01
F139: Unallocated | G139: Unallocated | H139: Unallocated | I139: Unallocated | J139: Unallocated | K139: Unallocated | L139: $dollars | M139: 2021-12-01
K141: Input | L141: Units | M141: Basis | P141: Value
K142: Apply Non-Labour Cost Escalation | L142: Y/N | P142: Yes
B144: =LEFT(B120,1)+1&". Meter Population" -> 6. Meter Population
C147: a | D147: Base Year Population (Year End)
M148: =IF(M149=Capex_BaseYear,"Base Year","") -> Base Year
F149: =I_MeterTypes[[#Headers],[Meter Type]] -> Meter Type | G149: =I_MeterTypes[[#Headers],[RIN Subcategory 1]] -> RIN Subcategory 1 | H149: =I_MeterTypes[[#Headers],[RIN Subcategory 2]] -> RIN Subcategory 2 | I149: =I_MeterTypes[[#Headers],[AER Type]] -> AER Type | J149: =I_MeterTypes[[#Headers],[RIN Subcategory 3]] -> RIN Subcategory 3 | K149: =I_MeterTypes[[#Headers],[Meter Code]] -> Meter Code | L149: Units | M149: =Capex_BaseYear -> 2021-22
F150: =I_MeterTypes[Meter Type] -> Single phase Bottom connected (Smart) | G150: =I_MeterTypes[RIN Subcategory 1] -> Single phase meter population | H150: =I_MeterTypes[RIN Subcategory 2] -> Direct connected meter population | I150: =I_MeterTypes[AER Type] -> Single phase single element (Smart) | J150: =I_MeterTypes[RIN Subcategory 3] -> Type 4 | K150: =I_MeterTypes[Meter Code] -> SM 1ph DC | L150: No. | M150: 11698
F151: Single phase Plug in (Smart) | G151: Single phase meter population | H151: Direct connected meter population | I151: Single phase single element (Smart) | J151: Type 4 | K151: SM 1ph DC | L151: =L$150 -> No. | M151: 4977
F152: Single phase Two element (Smart) | G152: Single phase meter population | H152: Direct connected meter population | I152: Single phase two element with contactor (Smart) | J152: Type 4 | K152: SM 1ph DC | L152: No. | M152: 347
F153: Three phase Whole Current (Smart) | G153: Multiphase meter population | H153: Direct connected meter population | I153: Three phase direct connected (smart) | J153: Type 3 or 4 | K153: SM 3ph DC | L153: No. | M153: 4788
F154: Three phase LVCT (Smart) | G154: Multiphase meter population | H154: Current transformer connected meter population | I154: Three phase current transformer connected (smart) | J154: Type 3 or 4 | K154: SM 3ph CT | L154: No. | M154: 2105
F155: Three phase HV (Smart) | G155: Multiphase meter population | H155: Current transformer connected meter population | I155: Three phase voltage transformer and current transformer connected (smart) | J155: Type 2, 3 or 4 | K155: SM 3ph HV | L155: No. | M155: 124
F156: Single phase Bottom connected (Electronic) | G156: Single phase meter population | H156: Direct connected meter population | I156: Single phase single element (Accumulation) | J156: Type 6 | K156: ACC 1ph DC | L156: No. | M156: 9082
F157: Single phase Plug in (Electronic) | G157: Single phase meter population | H157: Direct connected meter population | I157: Single phase single element (Accumulation) | J157: Type 6 | K157: ACC 1ph DC | L157: No. | M157: 971
F158: Single phase Two element (Electronic) | G158: Single phase meter population | H158: Direct connected meter population | I158: Single phase two element with contactor (Accumulation) | J158: Type 6 | K158: ACC 1ph DC | L158: No. | M158: 1581
F159: Three phase 3 X Single phase (Electronic) | G159: Multiphase meter population or single phase meter population | H159: Direct connected meter population | I159: Three phase direct connected (Accumulation) | J159: Type 6 | K159: ACC 3ph DC | L159: No. | M159: 0
F160: Three phase Whole Current (Electronic) | G160: Multiphase meter population | H160: Direct connected meter population | I160: Three phase direct connected (Accumulation) | J160: Type 6 | K160: ACC 3ph DC | L160: No. | M160: 3303
F161: Three phase LVCT (Electronic) | G161: Multiphase meter population | H161: Current transformer connected meter population | I161: Three phase current transformer connected (Accumulation) | J161: Type 6 | K161: ACC 3ph CT | L161: No. | M161: 29
F162: Three phase HV (Electronic) | G162: Multiphase meter population | H162: Current transformer connected meter population | I162: Three phase voltage transformer and current transformer connected (Accumulation) | J162: Type 6 | K162: ACC 3ph HV | L162: No. | M162: 0
F163: Mechanical Meters | G163: Unallocated | H163: Unallocated | I163: Unallocated | J163: Type 6 | K163: Unallocated | L163: No. | M163: 48589
F164: Unallocated | G164: Unallocated | H164: Unallocated | I164: Unallocated | J164: Unallocated | K164: Unallocated | L164: No. | M164: 0
F165: Total | L165: No. | M165: =SUM(M150:M164) -> 87594
C167: b | D167: Meter Actions
D169: i | E169: =$G$29 -> New Meter Installations - Growth
N170: =IF(N171=Capex_BaseYear,"Base Year","") -> Base Year | O170: =IF(O171=Capex_BaseYear,"Base Year","") ->  | P170: =IF(P171=Capex_BaseYear,"Base Year","") ->  | Q170: Forecast RP
F171: =I_MeterTypes[[#Headers],[Meter Type]] -> Meter Type | G171: =I_MeterTypes[[#Headers],[RIN Subcategory 1]] -> RIN Subcategory 1 | H171: =I_MeterTypes[[#Headers],[RIN Subcategory 2]] -> RIN Subcategory 2 | I171: =I_MeterTypes[[#Headers],[AER Type]] -> AER Type | J171: =I_MeterTypes[[#Headers],[RIN Subcategory 3]] -> RIN Subcategory 3 | K171: =I_MeterTypes[[#Headers],[Meter Code]] -> Meter Code | L171: Units | N171: =(LEFT(O171,4)-1&IF(MID(O171,5,1)="","","-"&TEXT(MOD(MID(O171,6,2)-1,100),"00"))) -> 2021-22 | O171: 2022-23 | P171: =(LEFT(Q171,4)-1&IF(MID(Q171,5,1)="","","-"&TEXT(MOD(MID(Q171,6,2)-1,100),"00"))) -> 2023-24 | Q171: =FPFirstYear -> 2024-25 | R171: =(LEFT(Q171,4)+1&IF(MID(Q171,5,1)="","","-"&TEXT(MOD(MID(Q171,6,2)+1,100),"00"))) -> 2025-26 | S171: =(LEFT(R171,4)+1&IF(MID(R171,5,1)="","","-"&TEXT(MOD(MID(R171,6,2)+1,100),"00"))) -> 2026-27 | T171: =(LEFT(S171,4)+1&IF(MID(S171,5,1)="","","-"&TEXT(MOD(MID(S171,6,2)+1,100),"00"))) -> 2027-28 | U171: =(LEFT(T171,4)+1&IF(MID(T171,5,1)="","","-"&TEXT(MOD(MID(T171,6,2)+1,100),"00"))) -> 2028-29 | V171: RP Total
F172: =I_MeterTypes[Meter Type] -> Single phase Bottom connected (Smart) | G172: =I_MeterTypes[RIN Subcategory 1] -> Single phase meter population | H172: =I_MeterTypes[RIN Subcategory 2] -> Direct connected meter population | I172: =I_MeterTypes[AER Type] -> Single phase single element (Smart) | J172: =I_MeterTypes[RIN Subcategory 3] -> Type 4 | K172: =I_MeterTypes[Meter Code] -> SM 1ph DC | L172: No. | O172: 439.7525568 | P172: 341.9927329 | Q172: 343.3334902 | R172: 344.6742475 | S172: 346.0150047 | T172: 347.355762 | U172: 348.6965192 | V172: =SUM(Q172:U172) -> 1730.075024
F173: Single phase Plug in (Smart) | G173: Single phase meter population | H173: Direct connected meter population | I173: Single phase single element (Smart) | J173: Type 4 | K173: SM 1ph DC | L173: =L$150 -> No. | O173: 0 | P173: 0 | Q173: 0 | R173: 0 | S173: 0 | T173: 0 | U173: 0 | V173: =SUM(Q173:U173) -> 0
F174: Single phase Two element (Smart) | G174: Single phase meter population | H174: Direct connected meter population | I174: Single phase two element with contactor (Smart) | J174: Type 4 | K174: SM 1ph DC | L174: No. | O174: 0 | P174: 0 | Q174: 0 | R174: 0 | S174: 0 | T174: 0 | U174: 0 | V174: 0
F175: Three phase Whole Current (Smart) | G175: Multiphase meter population | H175: Direct connected meter population | I175: Three phase direct connected (smart) | J175: Type 3 or 4 | K175: SM 3ph DC | L175: No. | O175: 216.2997599 | P175: 167.8680147 | Q175: 168.1966281 | R175: 168.541725 | S175: 168.9037452 | T175: 169.28314 | U175: 169.6803734 | V175: 844.6056117
F176: Three phase LVCT (Smart) | G176: Multiphase meter population | H176: Current transformer connected meter population | I176: Three phase current transformer connected (smart) | J176: Type 3 or 4 | K176: SM 3ph CT | L176: No. | O176: 54.07493997 | P176: 41.96700367 | Q176: 42.04915702 | R176: 42.13543126 | S176: 42.2259363 | T176: 42.32078501 | U176: 42.42009334 | V176: 211.1514029
F177: Three phase HV (Smart) | G177: Multiphase meter population | H177: Current transformer connected meter population | I177: Three phase voltage transformer and current transformer connected (smart) | J177: Type 2, 3 or 4 | K177: SM 3ph HV | L177: No. | O177: 3.872743341 | P177: 3 | Q177: 4 | R177: 4 | S177: 5 | T177: 5 | U177: 6 | V177: 24
F178: Single phase Bottom connected (Electronic) | G178: Single phase meter population | H178: Direct connected meter population | I178: Single phase single element (Accumulation) | J178: Type 6 | K178: ACC 1ph DC | L178: No. | O178: 0 | P178: 0 | Q178: 0 | R178: 0 | S178: 0 | T178: 0 | U178: 0 | V178: 0
F179: Single phase Plug in (Electronic) | G179: Single phase meter population | H179: Direct connected meter population | I179: Single phase single element (Accumulation) | J179: Type 6 | K179: ACC 1ph DC | L179: No. | O179: 0 | P179: 0 | Q179: 0 | R179: 0 | S179: 0 | T179: 0 | U179: 0 | V179: 0
F180: Single phase Two element (Electronic) | G180: Single phase meter population | H180: Direct connected meter population | I180: Single phase two element with contactor (Accumulation) | J180: Type 6 | K180: ACC 1ph DC | L180: No. | O180: 0 | P180: 0 | Q180: 0 | R180: 0 | S180: 0 | T180: 0 | U180: 0 | V180: 0
F181: Three phase 3 X Single phase (Electronic) | G181: Multiphase meter population or single phase meter population | H181: Direct connected meter population | I181: Three phase direct connected (Accumulation) | J181: Type 6 | K181: ACC 3ph DC | L181: No. | O181: 0 | P181: 0 | Q181: 0 | R181: 0 | S181: 0 | T181: 0 | U181: 0 | V181: 0
F182: Three phase Whole Current (Electronic) | G182: Multiphase meter population | H182: Direct connected meter population | I182: Three phase direct connected (Accumulation) | J182: Type 6 | K182: ACC 3ph DC | L182: No. | O182: 0 | P182: 0 | Q182: 0 | R182: 0 | S182: 0 | T182: 0 | U182: 0 | V182: 0
F183: Three phase LVCT (Electronic) | G183: Multiphase meter population | H183: Current transformer connected meter population | I183: Three phase current transformer connected (Accumulation) | J183: Type 6 | K183: ACC 3ph CT | L183: No. | O183: 0 | P183: 0 | Q183: 0 | R183: 0 | S183: 0 | T183: 0 | U183: 0 | V183: 0
F184: Three phase HV (Electronic) | G184: Multiphase meter population | H184: Current transformer connected meter population | I184: Three phase voltage transformer and current transformer connected (Accumulation) | J184: Type 6 | K184: ACC 3ph HV | L184: No. | O184: 0 | P184: 0 | Q184: 0 | R184: 0 | S184: 0 | T184: 0 | U184: 0 | V184: 0
F185: Mechanical Meters | G185: Unallocated | H185: Unallocated | I185: Unallocated | J185: Type 6 | K185: Unallocated | L185: No. | O185: 0 | P185: 0 | Q185: 0 | R185: 0 | S185: 0 | T185: 0 | U185: 0 | V185: 0
F186: Unallocated | G186: Unallocated | H186: Unallocated | I186: Unallocated | J186: Unallocated | K186: Unallocated | L186: No. | O186: 0 | P186: 0 | Q186: 0 | R186: 0 | S186: 0 | T186: 0 | U186: 0 | V186: 0
F187: Total | L187: No. | O187: =SUM(O172:O186) -> 714 | P187: =SUM(P172:P186) -> 554.8277513 | Q187: =SUM(Q172:Q186) -> 557.5792753 | R187: 559.3514037 | S187: 562.1446862 | T187: 563.959687 | U187: 566.7969859 | V187: 2809.832038
D189: ii | E189: =$G$30 -> Replacement - End of life
F191: =I_MeterTypes[[#Headers],[Meter Type]] -> Meter Type | G191: =I_MeterTypes[[#Headers],[RIN Subcategory 1]] -> RIN Subcategory 1 | H191: =I_MeterTypes[[#Headers],[RIN Subcategory 2]] -> RIN Subcategory 2 | I191: =I_MeterTypes[[#Headers],[AER Type]] -> AER Type | J191: =I_MeterTypes[[#Headers],[RIN Subcategory 3]] -> RIN Subcategory 3 | K191: =I_MeterTypes[[#Headers],[Meter Code]] -> Meter Code | L191: Units | O191: =O$171 -> 2022-23 | P191: 2023-24 | Q191: 2024-25 | R191: 2025-26 | S191: 2026-27 | T191: 2027-28 | U191: 2028-29 | V191: RP Total
F192: =I_MeterTypes[Meter Type] -> Single phase Bottom connected (Smart) | G192: =I_MeterTypes[RIN Subcategory 1] -> Single phase meter population | H192: =I_MeterTypes[RIN Subcategory 2] -> Direct connected meter population | I192: =I_MeterTypes[AER Type] -> Single phase single element (Smart) | J192: =I_MeterTypes[RIN Subcategory 3] -> Type 4 | K192: =I_MeterTypes[Meter Code] -> SM 1ph DC | L192: No. | O192: 2684.013442 | P192: 2019.230769 | Q192: 2500 | R192: 2500 | S192: 2500 | T192: 2500 | U192: 1500 | V192: =SUM(Q192:U192) -> 11500
F193: Single phase Plug in (Smart) | G193: Single phase meter population | H193: Direct connected meter population | I193: Single phase single element (Smart) | J193: Type 4 | K193: SM 1ph DC | L193: =L$150 -> No. | O193: 4741.757081 | P193: 3567.307692 | Q193: 4000 | R193: 4000 | S193: 4000 | T193: 4000 | U193: 2500 | V193: =SUM(Q193:U193) -> 18500
F194: Single phase Two element (Smart) | G194: Single phase meter population | H194: Direct connected meter population | I194: Single phase two element with contactor (Smart) | J194: Type 4 | K194: SM 1ph DC | L194: No. | O194: 223.6677868 | P194: 168.2692308 | Q194: 50 | R194: 50 | S194: 0 | T194: 0 | U194: 0 | V194: 100
F195: Three phase Whole Current (Smart) | G195: Multiphase meter population | H195: Direct connected meter population | I195: Three phase direct connected (smart) | J195: Type 3 or 4 | K195: SM 3ph DC | L195: No. | O195: 1431.473836 | P195: 1076.923077 | Q195: 1800 | R195: 1800 | S195: 1800 | T195: 1800 | U195: 1034 | V195: 8234
F196: Three phase LVCT (Smart) | G196: Multiphase meter population | H196: Current transformer connected meter population | I196: Three phase current transformer connected (smart) | J196: Type 3 or 4 | K196: SM 3ph CT | L196: No. | O196: 223.6677868 | P196: 168.2692308 | Q196: 200 | R196: 200 | S196: 200 | T196: 200 | U196: 200 | V196: 1000
F197: Three phase HV (Smart) | G197: Multiphase meter population | H197: Current transformer connected meter population | I197: Three phase voltage transformer and current transformer connected (smart) | J197: Type 2, 3 or 4 | K197: SM 3ph HV | L197: No. | O197: 13.42006721 | P197: 10.09615385 | Q197: 10 | R197: 10 | S197: 10 | T197: 10 | U197: 10 | V197: 50
F198: Single phase Bottom connected (Electronic) | G198: Single phase meter population | H198: Direct connected meter population | I198: Single phase single element (Accumulation) | J198: Type 6 | K198: ACC 1ph DC | L198: No. | O198: 0 | P198: 0 | Q198: 0 | R198: 0 | S198: 0 | T198: 0 | U198: 0 | V198: 0
F199: Single phase Plug in (Electronic) | G199: Single phase meter population | H199: Direct connected meter population | I199: Single phase single element (Accumulation) | J199: Type 6 | K199: ACC 1ph DC | L199: No. | O199: 0 | P199: 0 | Q199: 0 | R199: 0 | S199: 0 | T199: 0 | U199: 0 | V199: 0
F200: Single phase Two element (Electronic) | G200: Single phase meter population | H200: Direct connected meter population | I200: Single phase two element with contactor (Accumulation) | J200: Type 6 | K200: ACC 1ph DC | L200: No. | O200: 0 | P200: 0 | Q200: 0 | R200: 0 | S200: 0 | T200: 0 | U200: 0 | V200: 0
F201: Three phase 3 X Single phase (Electronic) | G201: Multiphase meter population or single phase meter population | H201: Direct connected meter population | I201: Three phase direct connected (Accumulation) | J201: Type 6 | K201: ACC 3ph DC | L201: No. | O201: 0 | P201: 0 | Q201: 0 | R201: 0 | S201: 0 | T201: 0 | U201: 0 | V201: 0
F202: Three phase Whole Current (Electronic) | G202: Multiphase meter population | H202: Direct connected meter population | I202: Three phase direct connected (Accumulation) | J202: Type 6 | K202: ACC 3ph DC | L202: No. | O202: 0 | P202: 0 | Q202: 0 | R202: 0 | S202: 0 | T202: 0 | U202: 0 | V202: 0
F203: Three phase LVCT (Electronic) | G203: Multiphase meter population | H203: Current transformer connected meter population | I203: Three phase current transformer connected (Accumulation) | J203: Type 6 | K203: ACC 3ph CT | L203: No. | O203: 0 | P203: 0 | Q203: 0 | R203: 0 | S203: 0 | T203: 0 | U203: 0 | V203: 0
F204: Three phase HV (Electronic) | G204: Multiphase meter population | H204: Current transformer connected meter population | I204: Three phase voltage transformer and current transformer connected (Accumulation) | J204: Type 6 | K204: ACC 3ph HV | L204: No. | O204: 0 | P204: 0 | Q204: 0 | R204: 0 | S204: 0 | T204: 0 | U204: 0 | V204: 0
F205: Mechanical Meters | G205: Unallocated | H205: Unallocated | I205: Unallocated | J205: Type 6 | K205: Unallocated | L205: No. | O205: 0 | P205: 0 | Q205: 0 | R205: 0 | S205: 0 | T205: 0 | U205: 0 | V205: 0
F206: Unallocated | G206: Unallocated | H206: Unallocated | I206: Unallocated | J206: Unallocated | K206: Unallocated | L206: No. | O206: 0 | P206: 0 | Q206: 0 | R206: 0 | S206: 0 | T206: 0 | U206: 0 | V206: 0
F207: Total | L207: No. | O207: =SUM(O192:O206) -> 9318 | P207: =SUM(P192:P206) -> 7010.096154 | Q207: 8560 | R207: 8560 | S207: 8510 | T207: 8510 | U207: 5244 | V207: 39384
D209: iii | E209: =$G$31 -> Replacement - Failures and Faults (Mechanical and Electronic)
F211: =I_MeterTypes[[#Headers],[Meter Type]] -> Meter Type | G211: =I_MeterTypes[[#Headers],[RIN Subcategory 1]] -> RIN Subcategory 1 | H211: =I_MeterTypes[[#Headers],[RIN Subcategory 2]] -> RIN Subcategory 2 | I211: =I_MeterTypes[[#Headers],[AER Type]] -> AER Type | J211: =I_MeterTypes[[#Headers],[RIN Subcategory 3]] -> RIN Subcategory 3 | K211: =I_MeterTypes[[#Headers],[Meter Code]] -> Meter Code | L211: Units | O211: =O$171 -> 2022-23 | P211: 2023-24 | Q211: 2024-25 | R211: 2025-26 | S211: 2026-27 | T211: 2027-28 | U211: 2028-29 | V211: RP Total
F212: =I_MeterTypes[Meter Type] -> Single phase Bottom connected (Smart) | G212: =I_MeterTypes[RIN Subcategory 1] -> Single phase meter population | H212: =I_MeterTypes[RIN Subcategory 2] -> Direct connected meter population | I212: =I_MeterTypes[AER Type] -> Single phase single element (Smart) | J212: =I_MeterTypes[RIN Subcategory 3] -> Type 4 | K212: =I_MeterTypes[Meter Code] -> SM 1ph DC | L212: No. | O212: 148.9116701 | P212: 100.9308736 | Q212: 80.50520592 | R212: 60.13358687 | S212: 39.95920419 | T212: 19.87482159 | U212: -0.1246279649 | V212: =SUM(Q212:U212) -> 200.3481906
F213: Single phase Plug in (Smart) | G213: Single phase meter population | H213: Direct connected meter population | I213: Single phase single element (Smart) | J213: Type 4 | K213: SM 1ph DC | L213: =L$150 -> No. | O213: 263.0772838 | P213: 178.3112099 | Q213: 142.2258638 | R213: 106.2360035 | S213: 70.59459408 | T213: 35.11218481 | U213: -0.2201760714 | V213: =SUM(Q213:U213) -> 353.9484701
F214: Single phase Two element (Smart) | G214: Single phase meter population | H214: Direct connected meter population | I214: Single phase two element with contactor (Smart) | J214: Type 4 | K214: SM 1ph DC | L214: No. | O214: 12.40930584 | P214: 8.410906129 | Q214: 6.70876716 | R214: 5.011132239 | S214: 3.329933683 | T214: 1.656235133 | U214: -0.01038566374 | V214: 16.69568255
F215: Three phase Whole Current (Smart) | G215: Multiphase meter population | H215: Direct connected meter population | I215: Three phase direct connected (smart) | J215: Type 3 or 4 | K215: SM 3ph DC | L215: No. | O215: 79.41955736 | P215: 53.82979923 | Q215: 42.93610983 | R215: 32.07124633 | S215: 21.31157557 | T215: 10.59990485 | U215: -0.06646824796 | V215: 106.8523683
F216: Three phase LVCT (Smart) | G216: Multiphase meter population | H216: Current transformer connected meter population | I216: Three phase current transformer connected (smart) | J216: Type 3 or 4 | K216: SM 3ph CT | L216: No. | O216: 0 | P216: 0 | Q216: 0 | R216: 0 | S216: 0 | T216: 0 | U216: 0 | V216: 0
F217: Three phase HV (Smart) | G217: Multiphase meter population | H217: Current transformer connected meter population | I217: Three phase voltage transformer and current transformer connected (smart) | J217: Type 2, 3 or 4 | K217: SM 3ph HV | L217: No. | O217: 0 | P217: 0 | Q217: 0 | R217: 0 | S217: 0 | T217: 0 | U217: 0 | V217: 0
F218: Single phase Bottom connected (Electronic) | G218: Single phase meter population | H218: Direct connected meter population | I218: Single phase single element (Accumulation) | J218: Type 6 | K218: ACC 1ph DC | L218: No. | O218: 0 | P218: 0 | Q218: 0 | R218: 0 | S218: 0 | T218: 0 | U218: 0 | V218: 0
F219: Single phase Plug in (Electronic) | G219: Single phase meter population | H219: Direct connected meter population | I219: Single phase single element (Accumulation) | J219: Type 6 | K219: ACC 1ph DC | L219: No. | O219: 0 | P219: 0 | Q219: 0 | R219: 0 | S219: 0 | T219: 0 | U219: 0 | V219: 0
F220: Single phase Two element (Electronic) | G220: Single phase meter population | H220: Direct connected meter population | I220: Single phase two element with contactor (Accumulation) | J220: Type 6 | K220: ACC 1ph DC | L220: No. | O220: 0 | P220: 0 | Q220: 0 | R220: 0 | S220: 0 | T220: 0 | U220: 0 | V220: 0
F221: Three phase 3 X Single phase (Electronic) | G221: Multiphase meter population or single phase meter population | H221: Direct connected meter population | I221: Three phase direct connected (Accumulation) | J221: Type 6 | K221: ACC 3ph DC | L221: No. | O221: 0 | P221: 0 | Q221: 0 | R221: 0 | S221: 0 | T221: 0 | U221: 0 | V221: 0
F222: Three phase Whole Current (Electronic) | G222: Multiphase meter population | H222: Direct connected meter population | I222: Three phase direct connected (Accumulation) | J222: Type 6 | K222: ACC 3ph DC | L222: No. | O222: 0 | P222: 0 | Q222: 0 | R222: 0 | S222: 0 | T222: 0 | U222: 0 | V222: 0
F223: Three phase LVCT (Electronic) | G223: Multiphase meter population | H223: Current transformer connected meter population | I223: Three phase current transformer connected (Accumulation) | J223: Type 6 | K223: ACC 3ph CT | L223: No. | O223: 0 | P223: 0 | Q223: 0 | R223: 0 | S223: 0 | T223: 0 | U223: 0 | V223: 0
F224: Three phase HV (Electronic) | G224: Multiphase meter population | H224: Current transformer connected meter population | I224: Three phase voltage transformer and current transformer connected (Accumulation) | J224: Type 6 | K224: ACC 3ph HV | L224: No. | O224: 0 | P224: 0 | Q224: 0 | R224: 0 | S224: 0 | T224: 0 | U224: 0 | V224: 0
F225: Mechanical Meters | G225: Unallocated | H225: Unallocated | I225: Unallocated | J225: Type 6 | K225: Unallocated | L225: No. | O225: 0 | P225: 0 | Q225: 0 | R225: 0 | S225: 0 | T225: 0 | U225: 0 | V225: 0
F226: Unallocated | G226: Unallocated | H226: Unallocated | I226: Unallocated | J226: Unallocated | K226: Unallocated | L226: No. | O226: 0 | P226: 0 | Q226: 0 | R226: 0 | S226: 0 | T226: 0 | U226: 0 | V226: 0
F227: Total | L227: No. | O227: =SUM(O212:O226) -> 503.817817 | P227: =SUM(P212:P219) -> 341.4827889 | Q227: 272.3759467 | R227: 203.4519689 | S227: 135.1953075 | T227: 67.24314638 | U227: -0.421657948 | V227: 677.8447116
D229: iv | E229: =$G$32 -> Replacement - Failures and Faults (Smart)
F231: =I_MeterTypes[[#Headers],[Meter Type]] -> Meter Type | G231: =I_MeterTypes[[#Headers],[RIN Subcategory 1]] -> RIN Subcategory 1 | H231: =I_MeterTypes[[#Headers],[RIN Subcategory 2]] -> RIN Subcategory 2 | I231: =I_MeterTypes[[#Headers],[AER Type]] -> AER Type | J231: =I_MeterTypes[[#Headers],[RIN Subcategory 3]] -> RIN Subcategory 3 | K231: =I_MeterTypes[[#Headers],[Meter Code]] -> Meter Code | L231: Units | O231: =O$171 -> 2022-23 | P231: 2023-24 | Q231: 2024-25 | R231: 2025-26 | S231: 2026-27 | T231: 2027-28 | U231: 2028-29 | V231: Total
F232: =I_MeterTypes[Meter Type] -> Single phase Bottom connected (Smart) | G232: =I_MeterTypes[RIN Subcategory 1] -> Single phase meter population | H232: =I_MeterTypes[RIN Subcategory 2] -> Direct connected meter population | I232: =I_MeterTypes[AER Type] -> Single phase single element (Smart) | J232: =I_MeterTypes[RIN Subcategory 3] -> Type 4 | K232: =I_MeterTypes[Meter Code] -> SM 1ph DC | L232: No. | O232: 79.55319721 | P232: 91.33716937 | Q232: 111.762837 | R232: 132.1344561 | S232: 152.3088387 | T232: 172.3932213 | U232: 192.3926709 | V232: =SUM(Q232:U232) -> 760.992024
F233: Single phase Plug in (Smart) | G233: Single phase meter population | H233: Direct connected meter population | I233: Single phase single element (Smart) | J233: Type 4 | K233: SM 1ph DC | L233: =L$150 -> No. | O233: 140.5439817 | P233: 161.3623325 | Q233: 197.4476787 | R233: 233.437539 | S233: 269.0789484 | T233: 304.5613577 | U233: 339.8937186 | V233: 1344.419242
F234: Single phase Two element (Smart) | G234: Single phase meter population | H234: Direct connected meter population | I234: Single phase two element with contactor (Smart) | J234: Type 4 | K234: SM 1ph DC | L234: No. | O234: 6.629433101 | P234: 7.611430781 | Q234: 9.31356975 | R234: 11.01120467 | S234: 12.69240323 | T234: 14.36610178 | U234: 16.03272257 | V234: 63.416002
F235: Three phase Whole Current (Smart) | G235: Multiphase meter population | H235: Direct connected meter population | I235: Three phase direct connected (smart) | J235: Type 3 or 4 | K235: SM 3ph DC | L235: No. | O235: 42.42837185 | P235: 48.713157 | Q235: 59.6068464 | R235: 70.47170989 | S235: 81.23138065 | T235: 91.94305138 | U235: 102.6094245 | V235: 405.8624128
... 192 more rows

Sheet Input | Comms, IT, Other
B1: ='Input|General'!B1&" v"&'Input|General'!$D$2 -> AER Metering Opex & Capex Forecasting Model v1.08
B2: =MID(CELL("filename",A1),FIND("]",CELL("filename",A1))+1,255) -> Input | Comms, IT, Other
A6: =LEFT('Input | Meters Vols & Costs'!B144,1)+1&". Comms Setup" -> 7. Comms Setup
B8: a | C8: Define equipment types and actions / drivers of volumes and unit costs
E10: Equipment Type
E11: Single phase Bottom connected (Smart)
E12: Single phase Plug in (Smart)
E13: Single phase Two element (Smart)
E14: Three phase Whole Current (Smart)
E15: Three phase LVCT (Smart)
E16: Three phase HV (Smart)
E17: Single phase Bottom connected (Electronic)
E18: Single phase Plug in (Electronic)
E19: Single phase Two element (Electronic)
E20: Three phase 3 X Single phase (Electronic)
E21: Three phase Whole Current (Electronic)
E22: Three phase LVCT (Electronic)
E23: Three phase HV (Electronic)
E24: Mechanical Meters
E25: Unallocated
E27: Action/Driver | F27: Impact on population | H27: (Calc) Impact on meter population
A28: =IF(E28<>"",(F28<>"")/1,1) -> 1 | E28: Replacement | F28: No Effect | H28: =IFERROR(_xlfn.IFS(F28="Add",1,F28="No Effect",0,F28="Subtract",-1),0) -> 0
A29: =IF(E29<>"",(F29<>"")/1,1) -> 1 | H29: =IFERROR(_xlfn.IFS(F29="Add",1,F29="No Effect",0,F29="Subtract",-1),0) -> 0
A30: 1 | H30: =IFERROR(_xlfn.IFS(F30="Add",1,F30="No Effect",0,F30="Subtract",-1),0) -> 0
A31: 1 | H31: =IFERROR(_xlfn.IFS(F31="Add",1,F31="No Effect",0,F31="Subtract",-1),0) -> 0
A32: 1 | H32: =IFERROR(_xlfn.IFS(F32="Add",1,F32="No Effect",0,F32="Subtract",-1),0) -> 0
A33: 1 | H33: =IFERROR(_xlfn.IFS(F33="Add",1,F33="No Effect",0,F33="Subtract",-1),0) -> 0
A34: 1 | H34: =IFERROR(_xlfn.IFS(F34="Add",1,F34="No Effect",0,F34="Subtract",-1),0) -> 0
A35: 1 | H35: =IFERROR(_xlfn.IFS(F35="Add",1,F35="No Effect",0,F35="Subtract",-1),0) -> 0
A36: 1 | H36: =IFERROR(_xlfn.IFS(F36="Add",1,F36="No Effect",0,F36="Subtract",-1),0) -> 0
A37: 1 | H37: =IFERROR(_xlfn.IFS(F37="Add",1,F37="No Effect",0,F37="Subtract",-1),0) -> 0
A39: =LEFT(A6,1)+1&". Unit Costs & Cost Allocation" -> 8. Unit Costs & Cost Allocation
B41: a | C41: Unit costs and cost allocation
G42: Unit Costs
E43: Equipment Type | F43: Action/Driver | G43: Equipment cost | J43: Installation cost (labour, commissioning, surcharges) | M43: Allocation to SCS | N43: Overheads rate | R43: Allocation to SCS
G44: Basis | H44: Apply Non-Labour Real Price Change? | I44: Unit Rate | J44: Basis | K44: Apply Labour Real Price Change? | L44: Unit Rate | R44: Previous Value
E45: Single phase Bottom connected (Smart) | F45: =$E$28 -> Replacement | G45: =Basis_Capex -> 2021-12-01 | H45: Yes | I45: ='Input | Workings'!J132 -> 65.85136406 | J45: =Basis_Capex -> 2021-12-01 | K45: No | L45: ='Input | Workings'!M156 -> 135.4242709 | M45: 0 | N45: 0 | R45: 0
E46: Single phase Plug in (Smart) | F46: =$E$28 -> Replacement | G46: 2021-12-01 | H46: Yes | I46: ='Input | Workings'!J133 -> 235.4656632 | J46: 2021-12-01 | K46: No | L46: ='Input | Workings'!M157 -> 135.4242709 | M46: 0 | N46: 0 | R46: 0
E47: Single phase Two element (Smart) | F47: Replacement | G47: 2021-12-01 | H47: Yes | I47: ='Input | Workings'!J134 -> 65.85136406 | J47: 2021-12-01 | K47: No | L47: ='Input | Workings'!M158 -> 135.4242709 | M47: 0 | N47: 0 | R47: 0
E48: Three phase Whole Current (Smart) | F48: Replacement | G48: 2021-12-01 | H48: Yes | I48: ='Input | Workings'!J135 -> 65.85136406 | J48: 2021-12-01 | K48: No | L48: ='Input | Workings'!M159 -> 135.4242709 | M48: 0 | N48: 0 | R48: 0
E49: Three phase LVCT (Smart) | F49: Replacement | G49: 2021-12-01 | H49: Yes | I49: ='Input | Workings'!J136 -> 84.66603951 | J49: 2021-12-01 | K49: No | L49: ='Input | Workings'!M160 -> 135.4242709 | M49: 0 | N49: 0 | R49: 0
E50: Three phase HV (Smart) | F50: Replacement | G50: 2021-12-01 | H50: Yes | I50: ='Input | Workings'!J137 -> 108.1843838 | J50: 2021-12-01 | K50: No | L50: ='Input | Workings'!M161 -> 135.4242709 | M50: 0 | N50: 0 | R50: 0
E51: Single phase Bottom connected (Electronic) | F51: Replacement | G51: 2021-12-01 | H51: Yes | I51: ='Input | Workings'!J138 -> 0 | J51: 2021-12-01 | K51: No | L51: ='Input | Workings'!M162 -> 0 | M51: 0 | N51: 0 | R51: 0
E52: Single phase Plug in (Electronic) | F52: Replacement | G52: 2021-12-01 | H52: Yes | I52: ='Input | Workings'!J139 -> 0 | J52: 2021-12-01 | K52: No | L52: ='Input | Workings'!M163 -> 0 | M52: 0 | N52: 0 | R52: 0
E53: Single phase Two element (Electronic) | F53: Replacement | G53: 2021-12-01 | H53: Yes | I53: ='Input | Workings'!J140 -> 0 | J53: 2021-12-01 | K53: No | L53: ='Input | Workings'!M164 -> 0 | M53: 0 | N53: 0 | R53: 0
E54: Three phase 3 X Single phase (Electronic) | F54: Replacement | G54: 2021-12-01 | H54: Yes | I54: ='Input | Workings'!J141 -> 65.85136406 | J54: 2021-12-01 | K54: No | L54: ='Input | Workings'!M165 -> 135.4562559 | M54: 0 | N54: 0 | R54: 0
E55: Three phase Whole Current (Electronic) | F55: Replacement | G55: 2021-12-01 | H55: Yes | I55: ='Input | Workings'!J142 -> 0 | J55: 2021-12-01 | K55: No | L55: ='Input | Workings'!M166 -> 0 | M55: 0 | N55: 0 | R55: 0
E56: Three phase LVCT (Electronic) | F56: Replacement | G56: 2021-12-01 | H56: Yes | I56: ='Input | Workings'!J143 -> 0 | J56: 2021-12-01 | K56: No | L56: ='Input | Workings'!M167 -> 0 | M56: 0 | N56: 0 | R56: 0
E57: Three phase HV (Electronic) | F57: Replacement | G57: 2021-12-01 | H57: Yes | I57: ='Input | Workings'!J144 -> 0 | J57: 2021-12-01 | K57: No | L57: ='Input | Workings'!M168 -> 0 | M57: 0 | N57: 0 | R57: 0
E58: Mechanical Meters | F58: Replacement | G58: 2021-12-01 | H58: Yes | I58: ='Input | Workings'!J145 -> 0 | J58: 2021-12-01 | K58: No | L58: ='Input | Workings'!M169 -> 0 | M58: 0 | N58: 0 | R58: 0
E59: Unallocated | F59: Replacement | G59: 2021-12-01 | H59: Yes | I59: ='Input | Workings'!J146 -> 0 | J59: 2021-12-01 | K59: No | L59: ='Input | Workings'!M170 -> 0 | M59: 0 | N59: 0 | R59: 0
G60: 2021-12-01 | J60: 2021-12-01
G61: 2021-12-01 | J61: 2021-12-01
G62: 2021-12-01 | J62: 2021-12-01
G63: 2021-12-01 | J63: 2021-12-01
G64: 2021-12-01 | J64: 2021-12-01
B67: b | C67: Project Costs - Comms
E69: Project Name | G69: SCS Allocation | H69: Labour Cost Escalation | I69: Non-Labour Cost Escalation | J69: Labour Cost Weighting | K69: Overheads | Q69: Labour Cost Escalation | R69: Non-Labour Cost Escalation
E70: Project 1 | Q70: =IF(H70="Yes",1,0) -> 0 | R70: =IF(I70="Yes",1,0) -> 0
E71: Project 2 | Q71: 0 | R71: 0
E72: Project 3 | Q72: 0 | R72: 0
E73: Project 4 | Q73: 0 | R73: 0
E74: Project 5 | Q74: 0 | R74: 0
E75: Project 6 | Q75: 0 | R75: 0
E76: Project 7 | Q76: 0 | R76: 0
E77: Project 8 | Q77: 0 | R77: 0
E78: Project 9 | Q78: 0 | R78: 0
E79: Project 10 | Q79: 0 | R79: 0
M81: Forecast RP
E82: Project Name | G82: Units | H82: Basis | J82: =(LEFT(K82,4)-1&IF(MID(K82,5,1)="","","-"&TEXT(MOD(MID(K82,6,2)-1,100),"00"))) -> 2021-22 | K82: =(LEFT(L82,4)-1&IF(MID(L82,5,1)="","","-"&TEXT(MOD(MID(L82,6,2)-1,100),"00"))) -> 2022-23 | L82: =(LEFT(M82,4)-1&IF(MID(M82,5,1)="","","-"&TEXT(MOD(MID(M82,6,2)-1,100),"00"))) -> 2023-24 | M82: =FPFirstYear -> 2024-25 | N82: =(LEFT(M82,4)+1&IF(MID(M82,5,1)="","","-"&TEXT(MOD(MID(M82,6,2)+1,100),"00"))) -> 2025-26 | O82: =(LEFT(N82,4)+1&IF(MID(N82,5,1)="","","-"&TEXT(MOD(MID(N82,6,2)+1,100),"00"))) -> 2026-27 | P82: =(LEFT(O82,4)+1&IF(MID(O82,5,1)="","","-"&TEXT(MOD(MID(O82,6,2)+1,100),"00"))) -> 2027-28 | Q82: =(LEFT(P82,4)+1&IF(MID(P82,5,1)="","","-"&TEXT(MOD(MID(P82,6,2)+1,100),"00"))) -> 2028-29
E83: =E70 -> Project 1 | G83: $dollars | H83: =Basis_Capex -> 2021-12-01
E84: =E71 -> Project 2 | G84: =$G$83 -> $dollars | H84: 2021-12-01
E85: Project 3 | G85: $dollars | H85: 2021-12-01
E86: Project 4 | G86: $dollars | H86: 2021-12-01
E87: Project 5 | G87: $dollars | H87: 2021-12-01
E88: Project 6 | G88: $dollars | H88: 2021-12-01
E89: Project 7 | G89: $dollars | H89: 2021-12-01
E90: Project 8 | G90: $dollars | H90: 2021-12-01
E91: Project 9 | G91: $dollars | H91: 2021-12-01
E92: Project 10 | G92: $dollars | H92: 2021-12-01
J93: =SUM(J83:J92) -> 0 | K93: =SUM(K83:K92) -> 0 | L93: =SUM(L83:L92) -> 0 | M93: =SUM(M83:M92) -> 0 | N93: =SUM(N83:N92) -> 0 | O93: =SUM(O83:O92) -> 0 | P93: =SUM(P83:P92) -> 0 | Q93: =SUM(Q83:Q92) -> 0 | R93: =SUM(J93:Q93) -> 0
B95: c | C95: Project Costs - IT
E96: Project Name | G96: SCS Allocation | H96: Labour Cost Escalation | I96: Non-Labour Cost Escalation | J96: Labour Cost Weighting | K96: Overheads | Q96: Labour Cost Escalation | R96: Non-Labour Cost Escalation
E97: Non network IT and communications | G97: 0 | H97: Yes | I97: Yes | J97: =1-'Input| Prices'!I41 -> 0.592 | K97: 0 | Q97: =IF(H97="Yes",1,0) -> 1 | R97: =IF(I97="Yes",1,0) -> 1
E98: Project 2 | Q98: 0 | R98: 0
E99: Project 3 | Q99: 0 | R99: 0
E100: Project 4 | Q100: 0 | R100: 0
E101: Project 5 | Q101: 0 | R101: 0
E102: Project 6 | Q102: 0 | R102: 0
E103: Project 7 | Q103: 0 | R103: 0
E104: Project 8 | Q104: 0 | R104: 0
E105: Project 9 | Q105: 0 | R105: 0
E106: Project 10 | Q106: 0 | R106: 0
M108: Forecast RP
E109: Project Name | G109: Units | H109: Basis | J109: =J$82 -> 2021-22 | K109: =K$82 -> 2022-23 | L109: =L$82 -> 2023-24 | M109: =M$82 -> 2024-25 | N109: =N$82 -> 2025-26 | O109: =O$82 -> 2026-27 | P109: =P$82 -> 2027-28 | Q109: =Q$82 -> 2028-29
E110: =E97 -> Non network IT and communications | G110: $dollars | H110: =Basis_Capex -> 2021-12-01 | L110: 649924.4418 | M110: 511846.0475 | N110: 641861.9643 | O110: 408539.991 | P110: 391860.7095 | Q110: 397820.532
E111: =E98 -> Project 2 | G111: =$G$110 -> $dollars | H111: 2021-12-01
E112: Project 3 | G112: $dollars | H112: 2021-12-01
E113: Project 4 | G113: $dollars | H113: 2021-12-01
E114: Project 5 | G114: $dollars | H114: 2021-12-01
E115: Project 6 | G115: $dollars | H115: 2021-12-01
E116: Project 7 | G116: $dollars | H116: 2021-12-01
E117: Project 8 | G117: $dollars | H117: 2021-12-01
E118: Project 9 | G118: $dollars | H118: 2021-12-01
E119: Project 10 | G119: $dollars | H119: 2021-12-01
J120: =SUM(J110:J119) -> 0 | K120: =SUM(K110:K119) -> 0 | L120: 649924.4418 | M120: 511846.0475 | N120: 641861.9643 | O120: 408539.991 | P120: 391860.7095 | Q120: 397820.532 | R120: =SUM(J120:Q120) -> 3001853.686
B122: d | C122: Dedicated CTs and VTs | M122: Forecast RP
E123: Project Name | F123: SCS Allocation | G123: Units | H123: Basis | J123: =J$82 -> 2021-22 | K123: =K$82 -> 2022-23 | L123: =L$82 -> 2023-24 | M123: 2024-25 | N123: 2025-26 | O123: 2026-27 | P123: 2027-28 | Q123: 2028-29 | R123: Overheads
E124: Project 1 | F124: 0 | G124: $dollars | H124: =Basis_Capex -> 2021-12-01 | K124: 0 | L124: 0 | M124: 50000 | N124: 50000 | O124: 50000 | P124: 50000 | Q124: 50000 | R124: 0
E125: Project 2 | F125: 0 | G125: =$G$124 -> $dollars | H125: 2021-12-01
E126: Project 3 | F126: 0 | G126: =$G$124 -> $dollars | H126: 2021-12-01
E127: Project 4 | F127: 0 | G127: $dollars | H127: 2021-12-01
J128: =SUM(J124:J127) -> 0 | K128: =SUM(K124:K127) -> 0 | L128: =SUM(L124:L127) -> 0 | M128: =SUM(M124:M127) -> 50000 | N128: =SUM(N124:N127) -> 50000 | O128: =SUM(O124:O127) -> 50000 | P128: =SUM(P124:P127) -> 50000 | Q128: =SUM(Q124:Q127) -> 50000 | R128: =SUM(J128:Q128) -> 250000
B129: e | C129: Non Network Other
E130: Project Name | F130: SCS Allocation | G130: Units | H130: Basis | J130: =J$82 -> 2021-22 | K130: =K$82 -> 2022-23 | L130: =L$82 -> 2023-24 | M130: 2024-25 | N130: 2025-26 | O130: 2026-27 | P130: 2027-28 | Q130: 2028-29 | R130: Overheads
E131: Plant and equipment | F131: 0 | G131: $dollars | H131: =Basis_Capex -> 2021-12-01 | L131: 48929.44832 | M131: 70317.41409 | N131: 80200.48072 | O131: 64865.70663 | P131: 57592.00415 | Q131: 60554.48659 | R131: 0
E132: Property | F132: 0 | G132: =$G$131 -> $dollars | H132: 2021-12-01 | L132: 60158.05445 | M132: 45312.26576 | N132: 34831.74128 | O132: 119925.2453 | P132: 1756632.286 | Q132: 1758267.63 | R132: 0
E133: Motor vehicles | F133: 0 | G133: =$G$131 -> $dollars | H133: 2021-12-01 | K133: 0 | L133: 0 | M133: 0 | N133: 0 | O133: 0 | P133: 0 | Q133: 0 | R133: 0
E134: Non Network Others | F134: 0 | G134: $dollars | H134: 2021-12-01 | K134: 0 | L134: 0 | M134: 0 | N134: 0 | O134: 0 | P134: 0 | Q134: 0 | R134: 0
J135: =SUM(J131:J134) -> 0 | K135: =SUM(K131:K134) -> 0 | L135: =SUM(L131:L134) -> 109087.5028 | M135: 115629.6799 | N135: 115032.222 | O135: 184790.9519 | P135: 1814224.29 | Q135: 1818822.117 | R135: =SUM(J135:Q135) -> 4157586.763
B136: f | C136: Fleet leases
E137: Project Name | F137: SCS Allocation | G137: Units | H137: Basis | J137: =J$82 -> 2021-22 | K137: =K$82 -> 2022-23 | L137: =L$82 -> 2023-24 | M137: 2024-25 | N137: 2025-26 | O137: 2026-27 | P137: 2027-28 | Q137: 2028-29 | R137: Overheads
E138: Project 1 | F138: 0 | G138: $dollars | H138: =Basis_Capex -> 2021-12-01 | L138: 69039.26377 | M138: 63587.85812 | N138: 130882.4878 | O138: 131084.6673 | P138: 118742.4889 | Q138: 92712.76183 | R138: 0
E139: Project 2 | F139: 0 | G139: =$G$138 -> $dollars | H139: 2021-12-01
E140: Project 3 | F140: 0 | G140: =$G$138 -> $dollars | H140: 2021-12-01
E141: Project 4 | F141: 0 | G141: $dollars | H141: 2021-12-01
J142: =SUM(J138:J141) -> 0 | K142: =SUM(K138:K141) -> 0 | L142: =SUM(L138:L141) -> 69039.26377 | M142: =SUM(M138:M141) -> 63587.85812 | N142: =SUM(N138:N141) -> 130882.4878 | O142: =SUM(O138:O141) -> 131084.6673 | P142: =SUM(P138:P141) -> 118742.4889 | Q142: =SUM(Q138:Q141) -> 92712.76183 | R142: =SUM(J142:Q142) -> 606049.5278
B143: g | C143: Property Leases
E144: Project Name | F144: SCS Allocation | G144: Units | H144: Basis | J144: =J$82 -> 2021-22 | K144: =K$82 -> 2022-23 | L144: =L$82 -> 2023-24 | M144: 2024-25 | N144: 2025-26 | O144: 2026-27 | P144: 2027-28 | Q144: 2028-29 | R144: Overheads
E145: Project 1 | F145: 0 | G145: $dollars | H145: =Basis_Capex -> 2021-12-01 | K145: 0 | L145: 173598.1074 | M145: 0 | N145: 0 | O145: 240206.4875 | P145: 0 | Q145: 31417.08832 | R145: 0
E146: Project 2 | F146: 0 | G146: =$G$145 -> $dollars | H146: 2021-12-01
E147: Project 3 | F147: 0 | G147: =$G$145 -> $dollars | H147: 2021-12-01
E148: Project 4 | F148: 0 | G148: $dollars | H148: 2021-12-01
J149: =SUM(J145:J148) -> 0 | K149: =SUM(K145:K148) -> 0 | L149: =SUM(L145:L148) -> 173598.1074 | M149: =SUM(M145:M148) -> 0 | N149: =SUM(N145:N148) -> 0 | O149: =SUM(O145:O148) -> 240206.4875 | P149: =SUM(P145:P148) -> 0 | Q149: =SUM(Q145:Q148) -> 31417.08832 | R149: =SUM(J149:Q149) -> 445221.6832
R151: =SUM(R149,R142,R135,R128,R120,R93) -> 8460711.66
A153: =LEFT(A39,1)+1&". Base Population" -> 9. Base Population
B155: a | C155: Population | G155: Base
E156: Equipment Type | F156: Units | G156: =Capex_BaseYear -> 2021-22
D157: 1 | E157: =E11 -> Single phase Bottom connected (Smart) | F157: No.
D158: 2 | E158: Single phase Plug in (Smart) | F158: No.
D159: 3 | E159: Single phase Two element (Smart) | F159: No.
D160: 4 | E160: Three phase Whole Current (Smart) | F160: No.
D161: 5 | E161: Three phase LVCT (Smart) | F161: No.
D162: 6 | E162: Three phase HV (Smart) | F162: No.
D163: 7 | E163: Single phase Bottom connected (Electronic) | F163: No.
D164: 8 | E164: Single phase Plug in (Electronic) | F164: No.
D165: 9 | E165: Single phase Two element (Electronic) | F165: No.
D166: 10 | E166: Three phase 3 X Single phase (Electronic) | F166: No.
D167: 11 | E167: Three phase Whole Current (Electronic) | F167: No.
D168: 12 | E168: Three phase LVCT (Electronic) | F168: No.
D169: 13 | E169: Three phase HV (Electronic) | F169: No.
D170: 14 | E170: Mechanical Meters | F170: No.
D171: 15 | E171: Unallocated | F171: No.
A173: =LEFT(A153,1)+1&". Forecast Volumes" -> 10. Forecast Volumes
B175: a | C175: Inputs | J175: =IF(J176=Capex_BaseYear,"Base Year","") -> Base Year | K175: =IF(K176=Capex_BaseYear,"Base Year","") ->  | L175: =IF(L176=Capex_BaseYear,"Base Year","") ->  | M175: Forecast RP
E176: Equipment Type | F176: Action/Driver | G176: Volume basis | H176: Volume factor | J176: =J$82 -> 2021-22 | K176: =K$82 -> 2022-23 | L176: =L$82 -> 2023-24 | M176: 2024-25 | N176: 2025-26 | O176: 2026-27 | P176: 2027-28 | Q176: 2028-29
E177: =ICC_AllocFields -> Single phase Bottom connected (Smart) | F177: Replacement | G177: Enter annual volume | I177: =IF(AND(G177<>"Enter annual volume",G177<>""),"Auto-Calculated in next table","") ->  | K177: ='Input | Workings'!F108 -> 0 | L177: ='Input | Workings'!G108 -> 1682.674339 | M177: ='Input | Workings'!H108 -> 223.525674 | N177: ='Input | Workings'!I108 -> 264.2689121 | O177: ='Input | Workings'!J108 -> 304.6176775 | P177: ='Input | Workings'!K108 -> 344.7864427 | Q177: ='Input | Workings'!L108 -> 384.7853418
E178: Single phase Plug in (Smart) | F178: Replacement | G178: Enter annual volume | I178: =IF(AND(G178<>"Enter annual volume",G178<>""),"Auto-Calculated in next table","") ->  | K178: ='Input | Workings'!F109 -> 0 | L178: ='Input | Workings'!G109 -> 3222.724665 | M178: ='Input | Workings'!H109 -> 394.8953574 | N178: ='Input | Workings'!I109 -> 466.875078 | O178: ='Input | Workings'!J109 -> 538.1578968 | P178: ='Input | Workings'!K109 -> 609.1227154 | Q178: ='Input | Workings'!L109 -> 679.7874371
E179: Single phase Two element (Smart) | F179: Replacement | G179: Enter annual volume | K179: ='Input | Workings'!F110 -> 0 | L179: ='Input | Workings'!G110 -> 515.2228616 | M179: ='Input | Workings'!H110 -> 18.6271395 | N179: ='Input | Workings'!I110 -> 22.02240934 | O179: ='Input | Workings'!J110 -> 25.38480645 | P179: ='Input | Workings'!K110 -> 28.73220355 | Q179: ='Input | Workings'!L110 -> 32.06544515
E180: Three phase Whole Current (Smart) | F180: Replacement | G180: Enter annual volume | K180: ='Input | Workings'!F111 -> 0 | L180: ='Input | Workings'!G111 -> 2797.426314 | M180: ='Input | Workings'!H111 -> 119.2136928 | N180: ='Input | Workings'!I111 -> 140.9434198 | O180: ='Input | Workings'!J111 -> 162.4627613 | P180: ='Input | Workings'!K111 -> 183.8861028 | Q180: ='Input | Workings'!L111 -> 205.2188489
E181: Three phase LVCT (Smart) | F181: Replacement | G181: Enter annual volume | K181: ='Input | Workings'!F112 -> 0 | L181: ='Input | Workings'!G112 -> 965.2228616 | M181: ='Input | Workings'!H112 -> 18.6271395 | N181: ='Input | Workings'!I112 -> 22.02240934 | O181: ='Input | Workings'!J112 -> 25.38480645 | P181: ='Input | Workings'!K112 -> 28.73220355 | Q181: ='Input | Workings'!L112 -> 32.06544515
E182: Three phase HV (Smart) | F182: Replacement | G182: Enter annual volume | K182: ='Input | Workings'!F113 -> 0 | L182: ='Input | Workings'!G113 -> 25.91337169 | M182: ='Input | Workings'!H113 -> 1.11762837 | N182: ='Input | Workings'!I113 -> 1.321344561 | O182: ='Input | Workings'!J113 -> 1.523088387 | P182: ='Input | Workings'!K113 -> 1.723932213 | Q182: ='Input | Workings'!L113 -> 1.923926709
E183: Single phase Bottom connected (Electronic) | F183: Replacement | G183: Enter annual volume | K183: ='Input | Workings'!F114 -> 0 | L183: ='Input | Workings'!G114 -> 0 | M183: ='Input | Workings'!H114 -> 0 | N183: ='Input | Workings'!I114 -> 0 | O183: ='Input | Workings'!J114 -> 0 | P183: ='Input | Workings'!K114 -> 0 | Q183: ='Input | Workings'!L114 -> 0
E184: Single phase Plug in (Electronic) | F184: Replacement | G184: Enter annual volume | K184: ='Input | Workings'!F115 -> 0 | L184: ='Input | Workings'!G115 -> 0 | M184: ='Input | Workings'!H115 -> 0 | N184: ='Input | Workings'!I115 -> 0 | O184: ='Input | Workings'!J115 -> 0 | P184: ='Input | Workings'!K115 -> 0 | Q184: ='Input | Workings'!L115 -> 0
E185: Single phase Two element (Electronic) | F185: Replacement | G185: Enter annual volume | K185: ='Input | Workings'!F116 -> 0 | L185: ='Input | Workings'!G116 -> 0 | M185: ='Input | Workings'!H116 -> 0 | N185: ='Input | Workings'!I116 -> 0 | O185: ='Input | Workings'!J116 -> 0 | P185: ='Input | Workings'!K116 -> 0 | Q185: ='Input | Workings'!L116 -> 0
E186: Three phase 3 X Single phase (Electronic) | F186: Replacement | G186: Enter annual volume | K186: ='Input | Workings'!F117 -> 0 | L186: ='Input | Workings'!G117 -> 0 | M186: ='Input | Workings'!H117 -> 0 | N186: ='Input | Workings'!I117 -> 0 | O186: ='Input | Workings'!J117 -> 0 | P186: ='Input | Workings'!K117 -> 0 | Q186: ='Input | Workings'!L117 -> 0
E187: Three phase Whole Current (Electronic) | F187: Replacement | G187: Enter annual volume | K187: ='Input | Workings'!F118 -> 0 | L187: ='Input | Workings'!G118 -> 0 | M187: ='Input | Workings'!H118 -> 0 | N187: ='Input | Workings'!I118 -> 0 | O187: ='Input | Workings'!J118 -> 0 | P187: ='Input | Workings'!K118 -> 0 | Q187: ='Input | Workings'!L118 -> 0
E188: Three phase LVCT (Electronic) | F188: Replacement | G188: Enter annual volume | K188: ='Input | Workings'!F119 -> 0 | L188: ='Input | Workings'!G119 -> 0 | M188: ='Input | Workings'!H119 -> 0 | N188: ='Input | Workings'!I119 -> 0 | O188: ='Input | Workings'!J119 -> 0 | P188: ='Input | Workings'!K119 -> 0 | Q188: ='Input | Workings'!L119 -> 0
E189: Three phase HV (Electronic) | F189: Replacement | G189: Enter annual volume | K189: ='Input | Workings'!F120 -> 0 | L189: ='Input | Workings'!G120 -> 0 | M189: ='Input | Workings'!H120 -> 0 | N189: ='Input | Workings'!I120 -> 0 | O189: ='Input | Workings'!J120 -> 0 | P189: ='Input | Workings'!K120 -> 0 | Q189: ='Input | Workings'!L120 -> 0
E190: Mechanical Meters | F190: Replacement | G190: Enter annual volume | K190: ='Input | Workings'!F121 -> 0 | L190: ='Input | Workings'!G121 -> 0 | M190: ='Input | Workings'!H121 -> 0 | N190: ='Input | Workings'!I121 -> 0 | O190: ='Input | Workings'!J121 -> 0 | P190: ='Input | Workings'!K121 -> 0 | Q190: ='Input | Workings'!L121 -> 0
E191: Unallocated | F191: Replacement | G191: Enter annual volume | K191: ='Input | Workings'!F122 -> 0 | L191: ='Input | Workings'!G122 -> 0 | M191: ='Input | Workings'!H122 -> 0 | N191: ='Input | Workings'!I122 -> 0 | O191: ='Input | Workings'!J122 -> 0 | P191: ='Input | Workings'!K122 -> 0 | Q191: ='Input | Workings'!L122 -> 0
E192: 0 | F192: 0
E193: 0 | F193: 0
E194: 0 | F194: 0
E195: 0 | F195: 0
E196: 0 | F196: 0
B198: b | C198: Auto-filled tables
C200: i | D200: Inputs and Options | M200: Forecast RP
E201: Equipment Type | F201: Action/Driver | G201: Volume basis | H201: Volume factor | J201: =J$82 -> 2021-22 | K201: =K$82 -> 2022-23 | L201: =L$82 -> 2023-24 | M201: 2024-25 | N201: 2025-26 | O201: 2026-27 | P201: 2027-28 | Q201: 2028-29
E202: =ICC_AllocFields -> Single phase Bottom connected (Smart) | F202: Replacement | G202: =G177 -> Enter annual volume | H202: =IFERROR(IF(G202="Enter annual volume","N/A",H177),"") -> N/A | K202: =IF($G202="Proportionate to meter population",$H202*'Input | Meters Vols & Costs'!P$427, IF($G202="Proportionate to population of equipment type",$H202*INDEX(J$248:J$262,MATCH($E202,$E$157:$E$171,0)),K177)) -> 0 | L202: =IF($G202="Proportionate to meter population",$H202*'Input | Meters Vols & Costs'!Q$427, IF($G202="Proportionate to population of equipment type",$H202*INDEX(K$248:K$262,MATCH($E202,$E$157:$E$171,0)),L177)) -> 1682.674339 | M202: =IF($G202="Proportionate to meter population",$H202*'Input | Meters Vols & Costs'!R$427, IF($G202="Proportionate to population of equipment type",$H202*INDEX(L$248:L$262,MATCH($E202,$E$157:$E$171,0)),M177)) -> 223.525674 | N202: =IF($G202="Proportionate to meter population",$H202*'Input | Meters Vols & Costs'!S$427, IF($G202="Proportionate to population of equipment type",$H202*INDEX(M$248:M$262,MATCH($E202,$E$157:$E$171,0)),N177)) -> 264.2689121 | O202: =IF($G202="Proportionate to meter population",$H202*'Input | Meters Vols & Costs'!T$427, IF($G202="Proportionate to population of equipment type",$H202*INDEX(N$248:N$262,MATCH($E202,$E$157:$E$171,0)),O177)) -> 304.6176775 | P202: =IF($G202="Proportionate to meter population",$H202*'Input | Meters Vols & Costs'!U$427, IF($G202="Proportionate to population of equipment type",$H202*INDEX(O$248:O$262,MATCH($E202,$E$157:$E$171,0)),P177)) -> 344.7864427 | Q202: =IF($G202="Proportionate to meter population",$H202*'Input | Meters Vols & Costs'!V$427, IF($G202="Proportionate to population of equipment type",$H202*INDEX(P$248:P$262,MATCH($E202,$E$157:$E$171,0)),Q177)) -> 384.7853418
E203: Single phase Plug in (Smart) | F203: Replacement | G203: Enter annual volume | H203: N/A | K203: =IF($G203="Proportionate to meter population",$H203*'Input | Meters Vols & Costs'!P$427, IF($G203="Proportionate to population of equipment type",$H203*INDEX(J$248:J$262,MATCH($E203,$E$157:$E$171,0)),K178)) -> 0 | L203: =IF($G203="Proportionate to meter population",$H203*'Input | Meters Vols & Costs'!Q$427, IF($G203="Proportionate to population of equipment type",$H203*INDEX(K$248:K$262,MATCH($E203,$E$157:$E$171,0)),L178)) -> 3222.724665 | M203: =IF($G203="Proportionate to meter population",$H203*'Input | Meters Vols & Costs'!R$427, IF($G203="Proportionate to population of equipment type",$H203*INDEX(L$248:L$262,MATCH($E203,$E$157:$E$171,0)),M178)) -> 394.8953574 | N203: =IF($G203="Proportionate to meter population",$H203*'Input | Meters Vols & Costs'!S$427, IF($G203="Proportionate to population of equipment type",$H203*INDEX(M$248:M$262,MATCH($E203,$E$157:$E$171,0)),N178)) -> 466.875078 | O203: =IF($G203="Proportionate to meter population",$H203*'Input | Meters Vols & Costs'!T$427, IF($G203="Proportionate to population of equipment type",$H203*INDEX(N$248:N$262,MATCH($E203,$E$157:$E$171,0)),O178)) -> 538.1578968 | P203: =IF($G203="Proportionate to meter population",$H203*'Input | Meters Vols & Costs'!U$427, IF($G203="Proportionate to population of equipment type",$H203*INDEX(O$248:O$262,MATCH($E203,$E$157:$E$171,0)),P178)) -> 609.1227154 | Q203: =IF($G203="Proportionate to meter population",$H203*'Input | Meters Vols & Costs'!V$427, IF($G203="Proportionate to population of equipment type",$H203*INDEX(P$248:P$262,MATCH($E203,$E$157:$E$171,0)),Q178)) -> 679.7874371
E204: Single phase Two element (Smart) | F204: Replacement | G204: Enter annual volume | H204: N/A | K204: =IF($G204="Proportionate to meter population",$H204*'Input | Meters Vols & Costs'!P$427, IF($G204="Proportionate to population of equipment type",$H204*INDEX(J$248:J$262,MATCH($E204,$E$157:$E$171,0)),K179)) -> 0 | L204: =IF($G204="Proportionate to meter population",$H204*'Input | Meters Vols & Costs'!Q$427, IF($G204="Proportionate to population of equipment type",$H204*INDEX(K$248:K$262,MATCH($E204,$E$157:$E$171,0)),L179)) -> 515.2228616 | M204: =IF($G204="Proportionate to meter population",$H204*'Input | Meters Vols & Costs'!R$427, IF($G204="Proportionate to population of equipment type",$H204*INDEX(L$248:L$262,MATCH($E204,$E$157:$E$171,0)),M179)) -> 18.6271395 | N204: =IF($G204="Proportionate to meter population",$H204*'Input | Meters Vols & Costs'!S$427, IF($G204="Proportionate to population of equipment type",$H204*INDEX(M$248:M$262,MATCH($E204,$E$157:$E$171,0)),N179)) -> 22.02240934 | O204: =IF($G204="Proportionate to meter population",$H204*'Input | Meters Vols & Costs'!T$427, IF($G204="Proportionate to population of equipment type",$H204*INDEX(N$248:N$262,MATCH($E204,$E$157:$E$171,0)),O179)) -> 25.38480645 | P204: =IF($G204="Proportionate to meter population",$H204*'Input | Meters Vols & Costs'!U$427, IF($G204="Proportionate to population of equipment type",$H204*INDEX(O$248:O$262,MATCH($E204,$E$157:$E$171,0)),P179)) -> 28.73220355 | Q204: =IF($G204="Proportionate to meter population",$H204*'Input | Meters Vols & Costs'!V$427, IF($G204="Proportionate to population of equipment type",$H204*INDEX(P$248:P$262,MATCH($E204,$E$157:$E$171,0)),Q179)) -> 32.06544515
E205: Three phase Whole Current (Smart) | F205: Replacement | G205: Enter annual volume | H205: N/A | K205: =IF($G205="Proportionate to meter population",$H205*'Input | Meters Vols & Costs'!P$427, IF($G205="Proportionate to population of equipment type",$H205*INDEX(J$248:J$262,MATCH($E205,$E$157:$E$171,0)),K180)) -> 0 | L205: =IF($G205="Proportionate to meter population",$H205*'Input | Meters Vols & Costs'!Q$427, IF($G205="Proportionate to population of equipment type",$H205*INDEX(K$248:K$262,MATCH($E205,$E$157:$E$171,0)),L180)) -> 2797.426314 | M205: =IF($G205="Proportionate to meter population",$H205*'Input | Meters Vols & Costs'!R$427, IF($G205="Proportionate to population of equipment type",$H205*INDEX(L$248:L$262,MATCH($E205,$E$157:$E$171,0)),M180)) -> 119.2136928 | N205: =IF($G205="Proportionate to meter population",$H205*'Input | Meters Vols & Costs'!S$427, IF($G205="Proportionate to population of equipment type",$H205*INDEX(M$248:M$262,MATCH($E205,$E$157:$E$171,0)),N180)) -> 140.9434198 | O205: =IF($G205="Proportionate to meter population",$H205*'Input | Meters Vols & Costs'!T$427, IF($G205="Proportionate to population of equipment type",$H205*INDEX(N$248:N$262,MATCH($E205,$E$157:$E$171,0)),O180)) -> 162.4627613 | P205: =IF($G205="Proportionate to meter population",$H205*'Input | Meters Vols & Costs'!U$427, IF($G205="Proportionate to population of equipment type",$H205*INDEX(O$248:O$262,MATCH($E205,$E$157:$E$171,0)),P180)) -> 183.8861028 | Q205: =IF($G205="Proportionate to meter population",$H205*'Input | Meters Vols & Costs'!V$427, IF($G205="Proportionate to population of equipment type",$H205*INDEX(P$248:P$262,MATCH($E205,$E$157:$E$171,0)),Q180)) -> 205.2188489
E206: Three phase LVCT (Smart) | F206: Replacement | G206: Enter annual volume | H206: N/A | K206: =IF($G206="Proportionate to meter population",$H206*'Input | Meters Vols & Costs'!P$427, IF($G206="Proportionate to population of equipment type",$H206*INDEX(J$248:J$262,MATCH($E206,$E$157:$E$171,0)),K181)) -> 0 | L206: =IF($G206="Proportionate to meter population",$H206*'Input | Meters Vols & Costs'!Q$427, IF($G206="Proportionate to population of equipment type",$H206*INDEX(K$248:K$262,MATCH($E206,$E$157:$E$171,0)),L181)) -> 965.2228616 | M206: =IF($G206="Proportionate to meter population",$H206*'Input | Meters Vols & Costs'!R$427, IF($G206="Proportionate to population of equipment type",$H206*INDEX(L$248:L$262,MATCH($E206,$E$157:$E$171,0)),M181)) -> 18.6271395 | N206: =IF($G206="Proportionate to meter population",$H206*'Input | Meters Vols & Costs'!S$427, IF($G206="Proportionate to population of equipment type",$H206*INDEX(M$248:M$262,MATCH($E206,$E$157:$E$171,0)),N181)) -> 22.02240934 | O206: =IF($G206="Proportionate to meter population",$H206*'Input | Meters Vols & Costs'!T$427, IF($G206="Proportionate to population of equipment type",$H206*INDEX(N$248:N$262,MATCH($E206,$E$157:$E$171,0)),O181)) -> 25.38480645 | P206: =IF($G206="Proportionate to meter population",$H206*'Input | Meters Vols & Costs'!U$427, IF($G206="Proportionate to population of equipment type",$H206*INDEX(O$248:O$262,MATCH($E206,$E$157:$E$171,0)),P181)) -> 28.73220355 | Q206: =IF($G206="Proportionate to meter population",$H206*'Input | Meters Vols & Costs'!V$427, IF($G206="Proportionate to population of equipment type",$H206*INDEX(P$248:P$262,MATCH($E206,$E$157:$E$171,0)),Q181)) -> 32.06544515
E207: Three phase HV (Smart) | F207: Replacement | G207: Enter annual volume | H207: N/A | K207: =IF($G207="Proportionate to meter population",$H207*'Input | Meters Vols & Costs'!P$427, IF($G207="Proportionate to population of equipment type",$H207*INDEX(J$248:J$262,MATCH($E207,$E$157:$E$171,0)),K182)) -> 0 | L207: =IF($G207="Proportionate to meter population",$H207*'Input | Meters Vols & Costs'!Q$427, IF($G207="Proportionate to population of equipment type",$H207*INDEX(K$248:K$262,MATCH($E207,$E$157:$E$171,0)),L182)) -> 25.91337169 | M207: =IF($G207="Proportionate to meter population",$H207*'Input | Meters Vols & Costs'!R$427, IF($G207="Proportionate to population of equipment type",$H207*INDEX(L$248:L$262,MATCH($E207,$E$157:$E$171,0)),M182)) -> 1.11762837 | N207: =IF($G207="Proportionate to meter population",$H207*'Input | Meters Vols & Costs'!S$427, IF($G207="Proportionate to population of equipment type",$H207*INDEX(M$248:M$262,MATCH($E207,$E$157:$E$171,0)),N182)) -> 1.321344561 | O207: =IF($G207="Proportionate to meter population",$H207*'Input | Meters Vols & Costs'!T$427, IF($G207="Proportionate to population of equipment type",$H207*INDEX(N$248:N$262,MATCH($E207,$E$157:$E$171,0)),O182)) -> 1.523088387 | P207: =IF($G207="Proportionate to meter population",$H207*'Input | Meters Vols & Costs'!U$427, IF($G207="Proportionate to population of equipment type",$H207*INDEX(O$248:O$262,MATCH($E207,$E$157:$E$171,0)),P182)) -> 1.723932213 | Q207: =IF($G207="Proportionate to meter population",$H207*'Input | Meters Vols & Costs'!V$427, IF($G207="Proportionate to population of equipment type",$H207*INDEX(P$248:P$262,MATCH($E207,$E$157:$E$171,0)),Q182)) -> 1.923926709
E208: Single phase Bottom connected (Electronic) | F208: Replacement | G208: Enter annual volume | H208: N/A | K208: =IF($G208="Proportionate to meter population",$H208*'Input | Meters Vols & Costs'!P$427, IF($G208="Proportionate to population of equipment type",$H208*INDEX(J$248:J$262,MATCH($E208,$E$157:$E$171,0)),K183)) -> 0 | L208: =IF($G208="Proportionate to meter population",$H208*'Input | Meters Vols & Costs'!Q$427, IF($G208="Proportionate to population of equipment type",$H208*INDEX(K$248:K$262,MATCH($E208,$E$157:$E$171,0)),L183)) -> 0 | M208: =IF($G208="Proportionate to meter population",$H208*'Input | Meters Vols & Costs'!R$427, IF($G208="Proportionate to population of equipment type",$H208*INDEX(L$248:L$262,MATCH($E208,$E$157:$E$171,0)),M183)) -> 0 | N208: =IF($G208="Proportionate to meter population",$H208*'Input | Meters Vols & Costs'!S$427, IF($G208="Proportionate to population of equipment type",$H208*INDEX(M$248:M$262,MATCH($E208,$E$157:$E$171,0)),N183)) -> 0 | O208: =IF($G208="Proportionate to meter population",$H208*'Input | Meters Vols & Costs'!T$427, IF($G208="Proportionate to population of equipment type",$H208*INDEX(N$248:N$262,MATCH($E208,$E$157:$E$171,0)),O183)) -> 0 | P208: =IF($G208="Proportionate to meter population",$H208*'Input | Meters Vols & Costs'!U$427, IF($G208="Proportionate to population of equipment type",$H208*INDEX(O$248:O$262,MATCH($E208,$E$157:$E$171,0)),P183)) -> 0 | Q208: =IF($G208="Proportionate to meter population",$H208*'Input | Meters Vols & Costs'!V$427, IF($G208="Proportionate to population of equipment type",$H208*INDEX(P$248:P$262,MATCH($E208,$E$157:$E$171,0)),Q183)) -> 0
E209: Single phase Plug in (Electronic) | F209: Replacement | G209: Enter annual volume | H209: N/A | K209: =IF($G209="Proportionate to meter population",$H209*'Input | Meters Vols & Costs'!P$427, IF($G209="Proportionate to population of equipment type",$H209*INDEX(J$248:J$262,MATCH($E209,$E$157:$E$171,0)),K184)) -> 0 | L209: =IF($G209="Proportionate to meter population",$H209*'Input | Meters Vols & Costs'!Q$427, IF($G209="Proportionate to population of equipment type",$H209*INDEX(K$248:K$262,MATCH($E209,$E$157:$E$171,0)),L184)) -> 0 | M209: =IF($G209="Proportionate to meter population",$H209*'Input | Meters Vols & Costs'!R$427, IF($G209="Proportionate to population of equipment type",$H209*INDEX(L$248:L$262,MATCH($E209,$E$157:$E$171,0)),M184)) -> 0 | N209: =IF($G209="Proportionate to meter population",$H209*'Input | Meters Vols & Costs'!S$427, IF($G209="Proportionate to population of equipment type",$H209*INDEX(M$248:M$262,MATCH($E209,$E$157:$E$171,0)),N184)) -> 0 | O209: =IF($G209="Proportionate to meter population",$H209*'Input | Meters Vols & Costs'!T$427, IF($G209="Proportionate to population of equipment type",$H209*INDEX(N$248:N$262,MATCH($E209,$E$157:$E$171,0)),O184)) -> 0 | P209: =IF($G209="Proportionate to meter population",$H209*'Input | Meters Vols & Costs'!U$427, IF($G209="Proportionate to population of equipment type",$H209*INDEX(O$248:O$262,MATCH($E209,$E$157:$E$171,0)),P184)) -> 0 | Q209: =IF($G209="Proportionate to meter population",$H209*'Input | Meters Vols & Costs'!V$427, IF($G209="Proportionate to population of equipment type",$H209*INDEX(P$248:P$262,MATCH($E209,$E$157:$E$171,0)),Q184)) -> 0
E210: Single phase Two element (Electronic) | F210: Replacement | G210: Enter annual volume | H210: N/A | K210: =IF($G210="Proportionate to meter population",$H210*'Input | Meters Vols & Costs'!P$427, IF($G210="Proportionate to population of equipment type",$H210*INDEX(J$248:J$262,MATCH($E210,$E$157:$E$171,0)),K185)) -> 0 | L210: =IF($G210="Proportionate to meter population",$H210*'Input | Meters Vols & Costs'!Q$427, IF($G210="Proportionate to population of equipment type",$H210*INDEX(K$248:K$262,MATCH($E210,$E$157:$E$171,0)),L185)) -> 0 | M210: =IF($G210="Proportionate to meter population",$H210*'Input | Meters Vols & Costs'!R$427, IF($G210="Proportionate to population of equipment type",$H210*INDEX(L$248:L$262,MATCH($E210,$E$157:$E$171,0)),M185)) -> 0 | N210: =IF($G210="Proportionate to meter population",$H210*'Input | Meters Vols & Costs'!S$427, IF($G210="Proportionate to population of equipment type",$H210*INDEX(M$248:M$262,MATCH($E210,$E$157:$E$171,0)),N185)) -> 0 | O210: =IF($G210="Proportionate to meter population",$H210*'Input | Meters Vols & Costs'!T$427, IF($G210="Proportionate to population of equipment type",$H210*INDEX(N$248:N$262,MATCH($E210,$E$157:$E$171,0)),O185)) -> 0 | P210: =IF($G210="Proportionate to meter population",$H210*'Input | Meters Vols & Costs'!U$427, IF($G210="Proportionate to population of equipment type",$H210*INDEX(O$248:O$262,MATCH($E210,$E$157:$E$171,0)),P185)) -> 0 | Q210: =IF($G210="Proportionate to meter population",$H210*'Input | Meters Vols & Costs'!V$427, IF($G210="Proportionate to population of equipment type",$H210*INDEX(P$248:P$262,MATCH($E210,$E$157:$E$171,0)),Q185)) -> 0
E211: Three phase 3 X Single phase (Electronic) | F211: Replacement | G211: Enter annual volume | H211: N/A | K211: =IF($G211="Proportionate to meter population",$H211*'Input | Meters Vols & Costs'!P$427, IF($G211="Proportionate to population of equipment type",$H211*INDEX(J$248:J$262,MATCH($E211,$E$157:$E$171,0)),K186)) -> 0 | L211: =IF($G211="Proportionate to meter population",$H211*'Input | Meters Vols & Costs'!Q$427, IF($G211="Proportionate to population of equipment type",$H211*INDEX(K$248:K$262,MATCH($E211,$E$157:$E$171,0)),L186)) -> 0 | M211: =IF($G211="Proportionate to meter population",$H211*'Input | Meters Vols & Costs'!R$427, IF($G211="Proportionate to population of equipment type",$H211*INDEX(L$248:L$262,MATCH($E211,$E$157:$E$171,0)),M186)) -> 0 | N211: =IF($G211="Proportionate to meter population",$H211*'Input | Meters Vols & Costs'!S$427, IF($G211="Proportionate to population of equipment type",$H211*INDEX(M$248:M$262,MATCH($E211,$E$157:$E$171,0)),N186)) -> 0 | O211: =IF($G211="Proportionate to meter population",$H211*'Input | Meters Vols & Costs'!T$427, IF($G211="Proportionate to population of equipment type",$H211*INDEX(N$248:N$262,MATCH($E211,$E$157:$E$171,0)),O186)) -> 0 | P211: =IF($G211="Proportionate to meter population",$H211*'Input | Meters Vols & Costs'!U$427, IF($G211="Proportionate to population of equipment type",$H211*INDEX(O$248:O$262,MATCH($E211,$E$157:$E$171,0)),P186)) -> 0 | Q211: =IF($G211="Proportionate to meter population",$H211*'Input | Meters Vols & Costs'!V$427, IF($G211="Proportionate to population of equipment type",$H211*INDEX(P$248:P$262,MATCH($E211,$E$157:$E$171,0)),Q186)) -> 0
E212: Three phase Whole Current (Electronic) | F212: Replacement | G212: Enter annual volume | H212: N/A | K212: =IF($G212="Proportionate to meter population",$H212*'Input | Meters Vols & Costs'!P$427, IF($G212="Proportionate to population of equipment type",$H212*INDEX(J$248:J$262,MATCH($E212,$E$157:$E$171,0)),K187)) -> 0 | L212: =IF($G212="Proportionate to meter population",$H212*'Input | Meters Vols & Costs'!Q$427, IF($G212="Proportionate to population of equipment type",$H212*INDEX(K$248:K$262,MATCH($E212,$E$157:$E$171,0)),L187)) -> 0 | M212: =IF($G212="Proportionate to meter population",$H212*'Input | Meters Vols & Costs'!R$427, IF($G212="Proportionate to population of equipment type",$H212*INDEX(L$248:L$262,MATCH($E212,$E$157:$E$171,0)),M187)) -> 0 | N212: =IF($G212="Proportionate to meter population",$H212*'Input | Meters Vols & Costs'!S$427, IF($G212="Proportionate to population of equipment type",$H212*INDEX(M$248:M$262,MATCH($E212,$E$157:$E$171,0)),N187)) -> 0 | O212: =IF($G212="Proportionate to meter population",$H212*'Input | Meters Vols & Costs'!T$427, IF($G212="Proportionate to population of equipment type",$H212*INDEX(N$248:N$262,MATCH($E212,$E$157:$E$171,0)),O187)) -> 0 | P212: =IF($G212="Proportionate to meter population",$H212*'Input | Meters Vols & Costs'!U$427, IF($G212="Proportionate to population of equipment type",$H212*INDEX(O$248:O$262,MATCH($E212,$E$157:$E$171,0)),P187)) -> 0 | Q212: =IF($G212="Proportionate to meter population",$H212*'Input | Meters Vols & Costs'!V$427, IF($G212="Proportionate to population of equipment type",$H212*INDEX(P$248:P$262,MATCH($E212,$E$157:$E$171,0)),Q187)) -> 0
E213: Three phase LVCT (Electronic) | F213: Replacement | G213: Enter annual volume | H213: N/A | K213: =IF($G213="Proportionate to meter population",$H213*'Input | Meters Vols & Costs'!P$427, IF($G213="Proportionate to population of equipment type",$H213*INDEX(J$248:J$262,MATCH($E213,$E$157:$E$171,0)),K188)) -> 0 | L213: =IF($G213="Proportionate to meter population",$H213*'Input | Meters Vols & Costs'!Q$427, IF($G213="Proportionate to population of equipment type",$H213*INDEX(K$248:K$262,MATCH($E213,$E$157:$E$171,0)),L188)) -> 0 | M213: =IF($G213="Proportionate to meter population",$H213*'Input | Meters Vols & Costs'!R$427, IF($G213="Proportionate to population of equipment type",$H213*INDEX(L$248:L$262,MATCH($E213,$E$157:$E$171,0)),M188)) -> 0 | N213: =IF($G213="Proportionate to meter population",$H213*'Input | Meters Vols & Costs'!S$427, IF($G213="Proportionate to population of equipment type",$H213*INDEX(M$248:M$262,MATCH($E213,$E$157:$E$171,0)),N188)) -> 0 | O213: =IF($G213="Proportionate to meter population",$H213*'Input | Meters Vols & Costs'!T$427, IF($G213="Proportionate to population of equipment type",$H213*INDEX(N$248:N$262,MATCH($E213,$E$157:$E$171,0)),O188)) -> 0 | P213: =IF($G213="Proportionate to meter population",$H213*'Input | Meters Vols & Costs'!U$427, IF($G213="Proportionate to population of equipment type",$H213*INDEX(O$248:O$262,MATCH($E213,$E$157:$E$171,0)),P188)) -> 0 | Q213: =IF($G213="Proportionate to meter population",$H213*'Input | Meters Vols & Costs'!V$427, IF($G213="Proportionate to population of equipment type",$H213*INDEX(P$248:P$262,MATCH($E213,$E$157:$E$171,0)),Q188)) -> 0
E214: Three phase HV (Electronic) | F214: Replacement | G214: Enter annual volume | H214: N/A | K214: =IF($G214="Proportionate to meter population",$H214*'Input | Meters Vols & Costs'!P$427, IF($G214="Proportionate to population of equipment type",$H214*INDEX(J$248:J$262,MATCH($E214,$E$157:$E$171,0)),K189)) -> 0 | L214: =IF($G214="Proportionate to meter population",$H214*'Input | Meters Vols & Costs'!Q$427, IF($G214="Proportionate to population of equipment type",$H214*INDEX(K$248:K$262,MATCH($E214,$E$157:$E$171,0)),L189)) -> 0 | M214: =IF($G214="Proportionate to meter population",$H214*'Input | Meters Vols & Costs'!R$427, IF($G214="Proportionate to population of equipment type",$H214*INDEX(L$248:L$262,MATCH($E214,$E$157:$E$171,0)),M189)) -> 0 | N214: =IF($G214="Proportionate to meter population",$H214*'Input | Meters Vols & Costs'!S$427, IF($G214="Proportionate to population of equipment type",$H214*INDEX(M$248:M$262,MATCH($E214,$E$157:$E$171,0)),N189)) -> 0 | O214: =IF($G214="Proportionate to meter population",$H214*'Input | Meters Vols & Costs'!T$427, IF($G214="Proportionate to population of equipment type",$H214*INDEX(N$248:N$262,MATCH($E214,$E$157:$E$171,0)),O189)) -> 0 | P214: =IF($G214="Proportionate to meter population",$H214*'Input | Meters Vols & Costs'!U$427, IF($G214="Proportionate to population of equipment type",$H214*INDEX(O$248:O$262,MATCH($E214,$E$157:$E$171,0)),P189)) -> 0 | Q214: =IF($G214="Proportionate to meter population",$H214*'Input | Meters Vols & Costs'!V$427, IF($G214="Proportionate to population of equipment type",$H214*INDEX(P$248:P$262,MATCH($E214,$E$157:$E$171,0)),Q189)) -> 0
E215: Mechanical Meters | F215: Replacement | G215: Enter annual volume | H215: N/A | K215: =IF($G215="Proportionate to meter population",$H215*'Input | Meters Vols & Costs'!P$427, IF($G215="Proportionate to population of equipment type",$H215*INDEX(J$248:J$262,MATCH($E215,$E$157:$E$171,0)),K190)) -> 0 | L215: =IF($G215="Proportionate to meter population",$H215*'Input | Meters Vols & Costs'!Q$427, IF($G215="Proportionate to population of equipment type",$H215*INDEX(K$248:K$262,MATCH($E215,$E$157:$E$171,0)),L190)) -> 0 | M215: =IF($G215="Proportionate to meter population",$H215*'Input | Meters Vols & Costs'!R$427, IF($G215="Proportionate to population of equipment type",$H215*INDEX(L$248:L$262,MATCH($E215,$E$157:$E$171,0)),M190)) -> 0 | N215: =IF($G215="Proportionate to meter population",$H215*'Input | Meters Vols & Costs'!S$427, IF($G215="Proportionate to population of equipment type",$H215*INDEX(M$248:M$262,MATCH($E215,$E$157:$E$171,0)),N190)) -> 0 | O215: =IF($G215="Proportionate to meter population",$H215*'Input | Meters Vols & Costs'!T$427, IF($G215="Proportionate to population of equipment type",$H215*INDEX(N$248:N$262,MATCH($E215,$E$157:$E$171,0)),O190)) -> 0 | P215: =IF($G215="Proportionate to meter population",$H215*'Input | Meters Vols & Costs'!U$427, IF($G215="Proportionate to population of equipment type",$H215*INDEX(O$248:O$262,MATCH($E215,$E$157:$E$171,0)),P190)) -> 0 | Q215: =IF($G215="Proportionate to meter population",$H215*'Input | Meters Vols & Costs'!V$427, IF($G215="Proportionate to population of equipment type",$H215*INDEX(P$248:P$262,MATCH($E215,$E$157:$E$171,0)),Q190)) -> 0
E216: Unallocated | F216: Replacement | G216: Enter annual volume | H216: N/A | K216: =IF($G216="Proportionate to meter population",$H216*'Input | Meters Vols & Costs'!P$427, IF($G216="Proportionate to population of equipment type",$H216*INDEX(J$248:J$262,MATCH($E216,$E$157:$E$171,0)),K191)) -> 0 | L216: =IF($G216="Proportionate to meter population",$H216*'Input | Meters Vols & Costs'!Q$427, IF($G216="Proportionate to population of equipment type",$H216*INDEX(K$248:K$262,MATCH($E216,$E$157:$E$171,0)),L191)) -> 0 | M216: =IF($G216="Proportionate to meter population",$H216*'Input | Meters Vols & Costs'!R$427, IF($G216="Proportionate to population of equipment type",$H216*INDEX(L$248:L$262,MATCH($E216,$E$157:$E$171,0)),M191)) -> 0 | N216: =IF($G216="Proportionate to meter population",$H216*'Input | Meters Vols & Costs'!S$427, IF($G216="Proportionate to population of equipment type",$H216*INDEX(M$248:M$262,MATCH($E216,$E$157:$E$171,0)),N191)) -> 0 | O216: =IF($G216="Proportionate to meter population",$H216*'Input | Meters Vols & Costs'!T$427, IF($G216="Proportionate to population of equipment type",$H216*INDEX(N$248:N$262,MATCH($E216,$E$157:$E$171,0)),O191)) -> 0 | P216: =IF($G216="Proportionate to meter population",$H216*'Input | Meters Vols & Costs'!U$427, IF($G216="Proportionate to population of equipment type",$H216*INDEX(O$248:O$262,MATCH($E216,$E$157:$E$171,0)),P191)) -> 0 | Q216: =IF($G216="Proportionate to meter population",$H216*'Input | Meters Vols & Costs'!V$427, IF($G216="Proportionate to population of equipment type",$H216*INDEX(P$248:P$262,MATCH($E216,$E$157:$E$171,0)),Q191)) -> 0
E217: 0 | F217: 0 | G217: 0 | H217: 0 | K217: =IF($G217="Proportionate to meter population",$H217*'Input | Meters Vols & Costs'!P$427, IF($G217="Proportionate to population of equipment type",$H217*INDEX(J$248:J$262,MATCH($E217,$E$157:$E$171,0)),K192)) -> 0 | L217: =IF($G217="Proportionate to meter population",$H217*'Input | Meters Vols & Costs'!Q$427, IF($G217="Proportionate to population of equipment type",$H217*INDEX(K$248:K$262,MATCH($E217,$E$157:$E$171,0)),L192)) -> 0 | M217: =IF($G217="Proportionate to meter population",$H217*'Input | Meters Vols & Costs'!R$427, IF($G217="Proportionate to population of equipment type",$H217*INDEX(L$248:L$262,MATCH($E217,$E$157:$E$171,0)),M192)) -> 0 | N217: =IF($G217="Proportionate to meter population",$H217*'Input | Meters Vols & Costs'!S$427, IF($G217="Proportionate to population of equipment type",$H217*INDEX(M$248:M$262,MATCH($E217,$E$157:$E$171,0)),N192)) -> 0 | O217: =IF($G217="Proportionate to meter population",$H217*'Input | Meters Vols & Costs'!T$427, IF($G217="Proportionate to population of equipment type",$H217*INDEX(N$248:N$262,MATCH($E217,$E$157:$E$171,0)),O192)) -> 0 | P217: =IF($G217="Proportionate to meter population",$H217*'Input | Meters Vols & Costs'!U$427, IF($G217="Proportionate to population of equipment type",$H217*INDEX(O$248:O$262,MATCH($E217,$E$157:$E$171,0)),P192)) -> 0 | Q217: =IF($G217="Proportionate to meter population",$H217*'Input | Meters Vols & Costs'!V$427, IF($G217="Proportionate to population of equipment type",$H217*INDEX(P$248:P$262,MATCH($E217,$E$157:$E$171,0)),Q192)) -> 0
E218: 0 | F218: 0 | G218: 0 | H218: 0 | K218: =IF($G218="Proportionate to meter population",$H218*'Input | Meters Vols & Costs'!P$427, IF($G218="Proportionate to population of equipment type",$H218*INDEX(J$248:J$262,MATCH($E218,$E$157:$E$171,0)),K193)) -> 0 | L218: =IF($G218="Proportionate to meter population",$H218*'Input | Meters Vols & Costs'!Q$427, IF($G218="Proportionate to population of equipment type",$H218*INDEX(K$248:K$262,MATCH($E218,$E$157:$E$171,0)),L193)) -> 0 | M218: =IF($G218="Proportionate to meter population",$H218*'Input | Meters Vols & Costs'!R$427, IF($G218="Proportionate to population of equipment type",$H218*INDEX(L$248:L$262,MATCH($E218,$E$157:$E$171,0)),M193)) -> 0 | N218: =IF($G218="Proportionate to meter population",$H218*'Input | Meters Vols & Costs'!S$427, IF($G218="Proportionate to population of equipment type",$H218*INDEX(M$248:M$262,MATCH($E218,$E$157:$E$171,0)),N193)) -> 0 | O218: =IF($G218="Proportionate to meter population",$H218*'Input | Meters Vols & Costs'!T$427, IF($G218="Proportionate to population of equipment type",$H218*INDEX(N$248:N$262,MATCH($E218,$E$157:$E$171,0)),O193)) -> 0 | P218: =IF($G218="Proportionate to meter population",$H218*'Input | Meters Vols & Costs'!U$427, IF($G218="Proportionate to population of equipment type",$H218*INDEX(O$248:O$262,MATCH($E218,$E$157:$E$171,0)),P193)) -> 0 | Q218: =IF($G218="Proportionate to meter population",$H218*'Input | Meters Vols & Costs'!V$427, IF($G218="Proportionate to population of equipment type",$H218*INDEX(P$248:P$262,MATCH($E218,$E$157:$E$171,0)),Q193)) -> 0
E219: 0 | F219: 0 | G219: 0 | H219: 0 | K219: =IF($G219="Proportionate to meter population",$H219*'Input | Meters Vols & Costs'!P$427, IF($G219="Proportionate to population of equipment type",$H219*INDEX(J$248:J$262,MATCH($E219,$E$157:$E$171,0)),K194)) -> 0 | L219: =IF($G219="Proportionate to meter population",$H219*'Input | Meters Vols & Costs'!Q$427, IF($G219="Proportionate to population of equipment type",$H219*INDEX(K$248:K$262,MATCH($E219,$E$157:$E$171,0)),L194)) -> 0 | M219: =IF($G219="Proportionate to meter population",$H219*'Input | Meters Vols & Costs'!R$427, IF($G219="Proportionate to population of equipment type",$H219*INDEX(L$248:L$262,MATCH($E219,$E$157:$E$171,0)),M194)) -> 0 | N219: =IF($G219="Proportionate to meter population",$H219*'Input | Meters Vols & Costs'!S$427, IF($G219="Proportionate to population of equipment type",$H219*INDEX(M$248:M$262,MATCH($E219,$E$157:$E$171,0)),N194)) -> 0 | O219: =IF($G219="Proportionate to meter population",$H219*'Input | Meters Vols & Costs'!T$427, IF($G219="Proportionate to population of equipment type",$H219*INDEX(N$248:N$262,MATCH($E219,$E$157:$E$171,0)),O194)) -> 0 | P219: =IF($G219="Proportionate to meter population",$H219*'Input | Meters Vols & Costs'!U$427, IF($G219="Proportionate to population of equipment type",$H219*INDEX(O$248:O$262,MATCH($E219,$E$157:$E$171,0)),P194)) -> 0 | Q219: =IF($G219="Proportionate to meter population",$H219*'Input | Meters Vols & Costs'!V$427, IF($G219="Proportionate to population of equipment type",$H219*INDEX(P$248:P$262,MATCH($E219,$E$157:$E$171,0)),Q194)) -> 0
E220: 0 | F220: 0 | G220: 0 | H220: 0 | K220: =IF($G220="Proportionate to meter population",$H220*'Input | Meters Vols & Costs'!P$427, IF($G220="Proportionate to population of equipment type",$H220*INDEX(J$248:J$262,MATCH($E220,$E$157:$E$171,0)),K195)) -> 0 | L220: =IF($G220="Proportionate to meter population",$H220*'Input | Meters Vols & Costs'!Q$427, IF($G220="Proportionate to population of equipment type",$H220*INDEX(K$248:K$262,MATCH($E220,$E$157:$E$171,0)),L195)) -> 0 | M220: =IF($G220="Proportionate to meter population",$H220*'Input | Meters Vols & Costs'!R$427, IF($G220="Proportionate to population of equipment type",$H220*INDEX(L$248:L$262,MATCH($E220,$E$157:$E$171,0)),M195)) -> 0 | N220: =IF($G220="Proportionate to meter population",$H220*'Input | Meters Vols & Costs'!S$427, IF($G220="Proportionate to population of equipment type",$H220*INDEX(M$248:M$262,MATCH($E220,$E$157:$E$171,0)),N195)) -> 0 | O220: =IF($G220="Proportionate to meter population",$H220*'Input | Meters Vols & Costs'!T$427, IF($G220="Proportionate to population of equipment type",$H220*INDEX(N$248:N$262,MATCH($E220,$E$157:$E$171,0)),O195)) -> 0 | P220: =IF($G220="Proportionate to meter population",$H220*'Input | Meters Vols & Costs'!U$427, IF($G220="Proportionate to population of equipment type",$H220*INDEX(O$248:O$262,MATCH($E220,$E$157:$E$171,0)),P195)) -> 0 | Q220: =IF($G220="Proportionate to meter population",$H220*'Input | Meters Vols & Costs'!V$427, IF($G220="Proportionate to population of equipment type",$H220*INDEX(P$248:P$262,MATCH($E220,$E$157:$E$171,0)),Q195)) -> 0
E221: 0 | F221: 0 | G221: 0 | H221: 0 | K221: =IF($G221="Proportionate to meter population",$H221*'Input | Meters Vols & Costs'!P$427, IF($G221="Proportionate to population of equipment type",$H221*INDEX(J$248:J$262,MATCH($E221,$E$157:$E$171,0)),K196)) -> 0 | L221: =IF($G221="Proportionate to meter population",$H221*'Input | Meters Vols & Costs'!Q$427, IF($G221="Proportionate to population of equipment type",$H221*INDEX(K$248:K$262,MATCH($E221,$E$157:$E$171,0)),L196)) -> 0 | M221: =IF($G221="Proportionate to meter population",$H221*'Input | Meters Vols & Costs'!R$427, IF($G221="Proportionate to population of equipment type",$H221*INDEX(L$248:L$262,MATCH($E221,$E$157:$E$171,0)),M196)) -> 0 | N221: =IF($G221="Proportionate to meter population",$H221*'Input | Meters Vols & Costs'!S$427, IF($G221="Proportionate to population of equipment type",$H221*INDEX(M$248:M$262,MATCH($E221,$E$157:$E$171,0)),N196)) -> 0 | O221: =IF($G221="Proportionate to meter population",$H221*'Input | Meters Vols & Costs'!T$427, IF($G221="Proportionate to population of equipment type",$H221*INDEX(N$248:N$262,MATCH($E221,$E$157:$E$171,0)),O196)) -> 0 | P221: =IF($G221="Proportionate to meter population",$H221*'Input | Meters Vols & Costs'!U$427, IF($G221="Proportionate to population of equipment type",$H221*INDEX(O$248:O$262,MATCH($E221,$E$157:$E$171,0)),P196)) -> 0 | Q221: =IF($G221="Proportionate to meter population",$H221*'Input | Meters Vols & Costs'!V$427, IF($G221="Proportionate to population of equipment type",$H221*INDEX(P$248:P$262,MATCH($E221,$E$157:$E$171,0)),Q196)) -> 0
C223: ii | D223: Impact on Population | M223: Forecast RP
... 38 more rows

Sheet Input | Workings
B1: ='Input|General'!B1&" v"&'Input|General'!$D$2 -> AER Metering Opex & Capex Forecasting Model v1.08
B2: =MID(CELL("filename",A1),FIND("]",CELL("filename",A1))+1,255) -> Input | Workings
B7: Workings - Asbestos Removal Costs
B9: Volume of Replacements with asbestos removal
D10: Units | E10: Contains Asbestos? | F10: =(LEFT(G10,4)-1&IF(MID(G10,5,1)="","","-"&TEXT(MOD(MID(G10,6,2)-1,100),"00"))) -> 2022-23 | G10: =(LEFT(H10,4)-1&IF(MID(H10,5,1)="","","-"&TEXT(MOD(MID(H10,6,2)-1,100),"00"))) -> 2023-24 | H10: =FPFirstYear -> 2024-25 | I10: =(LEFT(H10,4)+1&IF(MID(H10,5,1)="","","-"&TEXT(MOD(MID(H10,6,2)+1,100),"00"))) -> 2025-26 | J10: =(LEFT(I10,4)+1&IF(MID(I10,5,1)="","","-"&TEXT(MOD(MID(I10,6,2)+1,100),"00"))) -> 2026-27 | K10: 2027-28 | L10: 2028-29 | M10: Total
C11: ='Input | Meters Vols & Costs'!$E$189 -> Replacement - End of life | D11: =number -> number | E11: Yes | F11: =SUMPRODUCT(I_MeterTypes[% of existing meters with Asbestos],'Input | Meters Vols & Costs'!O$192:O$206)*($E11='Lookup|Tables'!$D$129) -> 1661.225386 | G11: =SUMPRODUCT(I_MeterTypes[% of existing meters with Asbestos],'Input | Meters Vols & Costs'!P$192:P$206)*($E11='Lookup|Tables'!$D$129) -> 1249.769231 | H11: =SUMPRODUCT(I_MeterTypes[% of existing meters with Asbestos],'Input | Meters Vols & Costs'!Q$192:Q$206)*($E11='Lookup|Tables'!$D$129) -> 1621.2 | I11: =SUMPRODUCT(I_MeterTypes[% of existing meters with Asbestos],'Input | Meters Vols & Costs'!R$192:R$206)*($E11='Lookup|Tables'!$D$129) -> 1621.2 | J11: =SUMPRODUCT(I_MeterTypes[% of existing meters with Asbestos],'Input | Meters Vols & Costs'!S$192:S$206)*($E11='Lookup|Tables'!$D$129) -> 1601.2 | K11: =SUMPRODUCT(I_MeterTypes[% of existing meters with Asbestos],'Input | Meters Vols & Costs'!T$192:T$206)*($E11='Lookup|Tables'!$D$129) -> 1601.2 | L11: =SUMPRODUCT(I_MeterTypes[% of existing meters with Asbestos],'Input | Meters Vols & Costs'!U$192:U$206)*($E11='Lookup|Tables'!$D$129) -> 971.4 | M11: =IFERROR(SUM(F11:L11),"") -> 10327.19462
C12: ='Input | Meters Vols & Costs'!$E$209 -> Replacement - Failures and Faults (Mechanical and Electronic) | D12: =number -> number | E12: Yes | F12: =SUMPRODUCT(I_MeterTypes[% of existing meters with Asbestos],'Input | Meters Vols & Costs'!O$212:O$226)*($E12='Lookup|Tables'!$D$129) -> 88.35425756 | G12: =SUMPRODUCT(I_MeterTypes[% of existing meters with Asbestos],'Input | Meters Vols & Costs'!P$212:P$226)*($E12='Lookup|Tables'!$D$129) -> 59.88565164 | H12: =SUMPRODUCT(I_MeterTypes[% of existing meters with Asbestos],'Input | Meters Vols & Costs'!Q$212:Q$226)*($E12='Lookup|Tables'!$D$129) -> 47.76642218 | I12: =SUMPRODUCT(I_MeterTypes[% of existing meters with Asbestos],'Input | Meters Vols & Costs'!R$212:R$226)*($E12='Lookup|Tables'!$D$129) -> 35.67926154 | J12: =SUMPRODUCT(I_MeterTypes[% of existing meters with Asbestos],'Input | Meters Vols & Costs'!S$212:S$226)*($E12='Lookup|Tables'!$D$129) -> 23.70912782 | K12: =SUMPRODUCT(I_MeterTypes[% of existing meters with Asbestos],'Input | Meters Vols & Costs'!T$212:T$226)*($E12='Lookup|Tables'!$D$129) -> 11.79239414 | L12: =SUMPRODUCT(I_MeterTypes[% of existing meters with Asbestos],'Input | Meters Vols & Costs'!U$212:U$226)*($E12='Lookup|Tables'!$D$129) -> -0.07394592586 | M12: =IFERROR(SUM(F12:L12),"") -> 267.113169
C13: ='Input | Meters Vols & Costs'!$E$229 -> Replacement - Failures and Faults (Smart) | D13: =number -> number | E13: Yes | F13: =SUMPRODUCT(I_MeterTypes[% of existing meters with Asbestos],'Input | Meters Vols & Costs'!O$232:O$246)*($E13='Lookup|Tables'!$D$129) -> 49.23812553 | G13: =SUMPRODUCT(I_MeterTypes[% of existing meters with Asbestos],'Input | Meters Vols & Costs'!P$232:P$246)*($E13='Lookup|Tables'!$D$129) -> 56.53161869 | H13: =SUMPRODUCT(I_MeterTypes[% of existing meters with Asbestos],'Input | Meters Vols & Costs'!Q$232:Q$246)*($E13='Lookup|Tables'!$D$129) -> 69.17374525 | I13: =SUMPRODUCT(I_MeterTypes[% of existing meters with Asbestos],'Input | Meters Vols & Costs'!R$232:R$246)*($E13='Lookup|Tables'!$D$129) -> 81.78241933 | J13: =SUMPRODUCT(I_MeterTypes[% of existing meters with Asbestos],'Input | Meters Vols & Costs'!S$232:S$246)*($E13='Lookup|Tables'!$D$129) -> 94.26901725 | K13: =SUMPRODUCT(I_MeterTypes[% of existing meters with Asbestos],'Input | Meters Vols & Costs'!T$232:T$246)*($E13='Lookup|Tables'!$D$129) -> 106.6999111 | L13: =SUMPRODUCT(I_MeterTypes[% of existing meters with Asbestos],'Input | Meters Vols & Costs'!U$232:U$246)*($E13='Lookup|Tables'!$D$129) -> 119.0782371 | M13: 576.7730743
C14: ='Input | Meters Vols & Costs'!$E$249 -> Replacement - Prepaid | D14: =number -> number | E14: No | F14: =SUMPRODUCT(I_MeterTypes[% of existing meters with Asbestos],'Input | Meters Vols & Costs'!O$252:O$266)*($E14='Lookup|Tables'!$D$129) -> 0 | G14: =SUMPRODUCT(I_MeterTypes[% of existing meters with Asbestos],'Input | Meters Vols & Costs'!P$252:P$266)*($E14='Lookup|Tables'!$D$129) -> 0 | H14: =SUMPRODUCT(I_MeterTypes[% of existing meters with Asbestos],'Input | Meters Vols & Costs'!Q$252:Q$266)*($E14='Lookup|Tables'!$D$129) -> 0 | I14: =SUMPRODUCT(I_MeterTypes[% of existing meters with Asbestos],'Input | Meters Vols & Costs'!R$252:R$266)*($E14='Lookup|Tables'!$D$129) -> 0 | J14: =SUMPRODUCT(I_MeterTypes[% of existing meters with Asbestos],'Input | Meters Vols & Costs'!S$252:S$266)*($E14='Lookup|Tables'!$D$129) -> 0 | K14: =SUMPRODUCT(I_MeterTypes[% of existing meters with Asbestos],'Input | Meters Vols & Costs'!T$252:T$266)*($E14='Lookup|Tables'!$D$129) -> 0 | L14: =SUMPRODUCT(I_MeterTypes[% of existing meters with Asbestos],'Input | Meters Vols & Costs'!U$252:U$266)*($E14='Lookup|Tables'!$D$129) -> 0 | M14: 0
C15: ='Input | Meters Vols & Costs'!$E$269 -> Replacement - Other replacements | D15: =number -> number | E15: Yes | F15: =SUMPRODUCT(I_MeterTypes[% of existing meters with Asbestos],'Input | Meters Vols & Costs'!O$272:O$286)*($E15='Lookup|Tables'!$D$129) -> 76.66096976 | G15: =SUMPRODUCT(I_MeterTypes[% of existing meters with Asbestos],'Input | Meters Vols & Costs'!P$272:P$286)*($E15='Lookup|Tables'!$D$129) -> 114.6211849 | H15: =SUMPRODUCT(I_MeterTypes[% of existing meters with Asbestos],'Input | Meters Vols & Costs'!Q$272:Q$286)*($E15='Lookup|Tables'!$D$129) -> 0 | I15: =SUMPRODUCT(I_MeterTypes[% of existing meters with Asbestos],'Input | Meters Vols & Costs'!R$272:R$286)*($E15='Lookup|Tables'!$D$129) -> 0 | J15: =SUMPRODUCT(I_MeterTypes[% of existing meters with Asbestos],'Input | Meters Vols & Costs'!S$272:S$286)*($E15='Lookup|Tables'!$D$129) -> 0 | K15: =SUMPRODUCT(I_MeterTypes[% of existing meters with Asbestos],'Input | Meters Vols & Costs'!T$272:T$286)*($E15='Lookup|Tables'!$D$129) -> 0 | L15: =SUMPRODUCT(I_MeterTypes[% of existing meters with Asbestos],'Input | Meters Vols & Costs'!U$272:U$286)*($E15='Lookup|Tables'!$D$129) -> 0 | M15: 191.2821547
C16: Total | D16: number | E16: Yes | F16: =IFERROR(SUM(F11:F15),"") -> 1875.478739 | G16: 1480.807686 | H16: 1738.140167 | I16: 1738.661681 | J16: 1719.178145 | K16: 1719.692305 | L16: 1090.404291 | M16: 11362.36302
B18: Input - Unit Rate
D19: Units | E19: Output Basis | F19: Input | G19: Notes
C20: Unit Rate: Asbestos Removal | D20: =dollars -> $dollars | E20: =Basis_Capex -> 2021-12-01 | F20: 995 | G20: Direct Costs excluding Overheads
B22: Cost of asbestos removal
D23: Units | E23: Output Basis | F23: =F$10 -> 2022-23 | G23: 2023-24 | H23: =H$10 -> 2024-25 | I23: =I$10 -> 2025-26 | J23: 2026-27 | K23: 2027-28 | L23: 2028-29 | M23: Total
C24: =C11 -> Replacement - End of life | D24: =$D$20 -> $dollars | E24: =Basis_Capex -> 2021-12-01 | F24: =F11*$F$20 -> 1652919.26 | G24: =G11*$F$20 -> 1243520.385 | H24: 1613094 | I24: 1613094 | J24: 1593194 | K24: 1593194 | L24: 966543 | M24: =IFERROR(SUM(H24:L24),"") -> 7379119
C25: =C12 -> Replacement - Failures and Faults (Mechanical and Electronic) | D25: =$D$20 -> $dollars | E25: 2021-12-01 | F25: =F12*$F$20 -> 87912.48628 | G25: 59586.22338 | H25: 47527.59007 | I25: 35500.86523 | J25: 23590.58218 | K25: 11733.43217 | L25: -73.57619623 | M25: =IFERROR(SUM(H25:L25),"") -> 118278.8935
C26: =C13 -> Replacement - Failures and Faults (Smart) | D26: $dollars | E26: 2021-12-01 | F26: =F13*$F$20 -> 48991.9349 | G26: 56248.9606 | H26: 68827.87652 | I26: 81373.50724 | J26: 93797.67216 | K26: 106166.4116 | L26: 118482.8459 | M26: =IFERROR(SUM(H26:L26),"") -> 468648.3134
C27: =C14 -> Replacement - Prepaid | D27: $dollars | E27: 2021-12-01 | F27: =F14*$F$20 -> 0 | G27: 0 | H27: 0 | I27: 0 | J27: 0 | K27: 0 | L27: 0 | M27: 0
C28: =C15 -> Replacement - Other replacements | D28: $dollars | E28: 2021-12-01 | F28: =F15*$F$20 -> 76277.66491 | G28: 114048.079 | H28: 0 | I28: 0 | J28: 0 | K28: 0 | L28: 0 | M28: 0
C29: ="Total - "&B22 -> Total - Cost of asbestos removal | D29: $dollars | E29: 2021-12-01 | F29: =IFERROR(SUM(F24:F28),"") -> 1866101.346 | G29: 1473403.648 | H29: =IFERROR(SUM(H24:H28),"") -> 1729449.467 | I29: 1729968.372 | J29: 1710582.254 | K29: 1711093.844 | L29: 1084952.27 | M29: 7966046.207
B31: Workings - Communications Installation Costs
B33: Input | Forecast Replacement Volumes - Failed modems
C35: ='Input | Comms, IT, Other'!$E$176 -> Equipment Type | D35: ='Input | Comms, IT, Other'!$F$176 -> Action/Driver | F35: =F$23 -> 2022-23 | G35: =G$23 -> 2023-24 | H35: 2024-25 | I35: 2025-26 | J35: 2026-27 | K35: 2027-28 | L35: 2028-29 | M35: Total
C36: ='Input | Comms, IT, Other'!$E$177 -> Single phase Bottom connected (Smart) | D36: ='Input | Comms, IT, Other'!$F$177 -> Replacement | G36: 182.6743387 | H36: 223.525674 | I36: 264.2689121 | J36: 304.6176775 | K36: 344.7864427 | L36: 384.7853418 | M36: =SUM(F36:L36) -> 1704.658387
C37: ='Input | Comms, IT, Other'!$E$178 -> Single phase Plug in (Smart) | D37: ='Input | Comms, IT, Other'!$F$178 -> Replacement | G37: 322.7246651 | H37: 394.8953574 | I37: 466.875078 | J37: 538.1578968 | K37: 609.1227154 | L37: 679.7874371 | M37: =SUM(F37:L37) -> 3011.56315
C38: ='Input | Comms, IT, Other'!$E$179 -> Single phase Two element (Smart) | D38: ='Input | Comms, IT, Other'!$F$179 -> Replacement | G38: 15.22286156 | H38: 18.6271395 | I38: 22.02240934 | J38: 25.38480645 | K38: 28.73220355 | L38: 32.06544515 | M38: 142.0548656
C39: ='Input | Comms, IT, Other'!$E$180 -> Three phase Whole Current (Smart) | D39: ='Input | Comms, IT, Other'!$F$180 -> Replacement | G39: 97.42631399 | H39: 119.2136928 | I39: 140.9434198 | J39: 162.4627613 | K39: 183.8861028 | L39: 205.2188489 | M39: 909.1511396
C40: ='Input | Comms, IT, Other'!$E$181 -> Three phase LVCT (Smart) | D40: ='Input | Comms, IT, Other'!$F$181 -> Replacement | G40: 15.22286156 | H40: 18.6271395 | I40: 22.02240934 | J40: 25.38480645 | K40: 28.73220355 | L40: 32.06544515 | M40: 142.0548656
C41: ='Input | Comms, IT, Other'!$E$182 -> Three phase HV (Smart) | D41: ='Input | Comms, IT, Other'!$F$182 -> Replacement | G41: 0.9133716937 | H41: 1.11762837 | I41: 1.321344561 | J41: 1.523088387 | K41: 1.723932213 | L41: 1.923926709 | M41: 8.523291934
C42: ='Input | Comms, IT, Other'!$E$183 -> Single phase Bottom connected (Electronic) | D42: ='Input | Comms, IT, Other'!$F$183 -> Replacement | F42: 0 | G42: 0 | H42: 0 | I42: 0 | J42: 0 | K42: 0 | L42: 0 | M42: 0
C43: ='Input | Comms, IT, Other'!$E$184 -> Single phase Plug in (Electronic) | D43: ='Input | Comms, IT, Other'!$F$184 -> Replacement | F43: 0 | G43: 0 | H43: 0 | I43: 0 | J43: 0 | K43: 0 | L43: 0 | M43: 0
C44: ='Input | Comms, IT, Other'!$E$185 -> Single phase Two element (Electronic) | D44: ='Input | Comms, IT, Other'!$F$185 -> Replacement | F44: 0 | G44: 0 | H44: 0 | I44: 0 | J44: 0 | K44: 0 | L44: 0 | M44: 0
C45: ='Input | Comms, IT, Other'!$E$186 -> Three phase 3 X Single phase (Electronic) | D45: ='Input | Comms, IT, Other'!$F$186 -> Replacement | F45: 0 | G45: 0 | H45: 0 | I45: 0 | J45: 0 | K45: 0 | L45: 0 | M45: 0
C46: ='Input | Comms, IT, Other'!$E$187 -> Three phase Whole Current (Electronic) | D46: ='Input | Comms, IT, Other'!$F$187 -> Replacement | F46: 0 | G46: 0 | H46: 0 | I46: 0 | J46: 0 | K46: 0 | L46: 0 | M46: 0
C47: ='Input | Comms, IT, Other'!$E$188 -> Three phase LVCT (Electronic) | D47: ='Input | Comms, IT, Other'!$F$188 -> Replacement | F47: 0 | G47: 0 | H47: 0 | I47: 0 | J47: 0 | K47: 0 | L47: 0 | M47: 0
C48: ='Input | Comms, IT, Other'!$E$189 -> Three phase HV (Electronic) | D48: ='Input | Comms, IT, Other'!$F$189 -> Replacement | F48: 0 | G48: 0 | H48: 0 | I48: 0 | J48: 0 | K48: 0 | L48: 0 | M48: 0
C49: ='Input | Comms, IT, Other'!$E$190 -> Mechanical Meters | D49: ='Input | Comms, IT, Other'!$F$190 -> Replacement | F49: 0 | G49: 0 | H49: 0 | I49: 0 | J49: 0 | K49: 0 | L49: 0 | M49: 0
C50: ='Input | Comms, IT, Other'!$E$191 -> Unallocated | D50: ='Input | Comms, IT, Other'!$F$191 -> Replacement | F50: 0 | G50: 0 | H50: 0 | I50: 0 | J50: 0 | K50: 0 | L50: 0 | M50: 0
C51: ='Input | Comms, IT, Other'!$E$192 -> 0 | D51: ='Input | Comms, IT, Other'!$F$192 -> 0 | F51: 0 | G51: 0 | H51: 0 | I51: 0 | J51: 0 | K51: 0 | L51: 0 | M51: 0
C52: ='Input | Comms, IT, Other'!$E$193 -> 0 | D52: ='Input | Comms, IT, Other'!$F$193 -> 0 | F52: 0 | G52: 0 | H52: 0 | I52: 0 | J52: 0 | K52: 0 | L52: 0 | M52: 0
C53: ='Input | Comms, IT, Other'!$E$194 -> 0 | D53: ='Input | Comms, IT, Other'!$F$194 -> 0 | F53: 0 | G53: 0 | H53: 0 | I53: 0 | J53: 0 | K53: 0 | L53: 0 | M53: 0
C54: ='Input | Comms, IT, Other'!$E$195 -> 0 | D54: ='Input | Comms, IT, Other'!$F$195 -> 0 | F54: 0 | G54: 0 | H54: 0 | I54: 0 | J54: 0 | K54: 0 | L54: 0 | M54: 0
C55: ='Input | Comms, IT, Other'!$E$196 -> 0 | D55: ='Input | Comms, IT, Other'!$F$196 -> 0 | F55: 0 | G55: 0 | H55: 0 | I55: 0 | J55: 0 | K55: 0 | L55: 0 | M55: 0
B57: Input | Forecast Replacement Volumes - 3G Modem Replacement
C59: ='Input | Comms, IT, Other'!$E$176 -> Equipment Type | D59: ='Input | Comms, IT, Other'!$F$176 -> Action/Driver | F59: =F$23 -> 2022-23 | G59: =G$23 -> 2023-24 | H59: 2024-25 | I59: 2025-26 | J59: 2026-27 | K59: 2027-28 | L59: 2028-29 | M59: Total
C60: ='Input | Comms, IT, Other'!$E$177 -> Single phase Bottom connected (Smart) | D60: ='Input | Comms, IT, Other'!$F$177 -> Replacement | G60: 500 | H60: 0 | I60: 0 | J60: 0 | K60: 0 | L60: 0 | M60: =SUM(F60:L60) -> 500
C61: ='Input | Comms, IT, Other'!$E$178 -> Single phase Plug in (Smart) | D61: ='Input | Comms, IT, Other'!$F$178 -> Replacement | F61: 0 | G61: 2900 | H61: 0 | I61: 0 | J61: 0 | K61: 0 | L61: 0 | M61: =SUM(F61:L61) -> 2900
C62: ='Input | Comms, IT, Other'!$E$179 -> Single phase Two element (Smart) | D62: ='Input | Comms, IT, Other'!$F$179 -> Replacement | F62: 0 | G62: 0 | H62: 0 | I62: 0 | J62: 0 | K62: 0 | L62: 0 | M62: 0
C63: ='Input | Comms, IT, Other'!$E$180 -> Three phase Whole Current (Smart) | D63: ='Input | Comms, IT, Other'!$F$180 -> Replacement | G63: 1700 | H63: 0 | I63: 0 | J63: 0 | K63: 0 | L63: 0 | M63: 1700
C64: ='Input | Comms, IT, Other'!$E$181 -> Three phase LVCT (Smart) | D64: ='Input | Comms, IT, Other'!$F$181 -> Replacement | G64: 950 | H64: 0 | I64: 0 | J64: 0 | K64: 0 | L64: 0 | M64: 950
C65: ='Input | Comms, IT, Other'!$E$182 -> Three phase HV (Smart) | D65: ='Input | Comms, IT, Other'!$F$182 -> Replacement | G65: 25 | H65: 0 | I65: 0 | J65: 0 | K65: 0 | L65: 0 | M65: 25
C66: ='Input | Comms, IT, Other'!$E$183 -> Single phase Bottom connected (Electronic) | D66: ='Input | Comms, IT, Other'!$F$183 -> Replacement | F66: 0 | G66: 0 | H66: 0 | I66: 0 | J66: 0 | K66: 0 | L66: 0 | M66: 0
C67: ='Input | Comms, IT, Other'!$E$184 -> Single phase Plug in (Electronic) | D67: ='Input | Comms, IT, Other'!$F$184 -> Replacement | F67: 0 | G67: 0 | H67: 0 | I67: 0 | J67: 0 | K67: 0 | L67: 0 | M67: 0
C68: ='Input | Comms, IT, Other'!$E$185 -> Single phase Two element (Electronic) | D68: ='Input | Comms, IT, Other'!$F$185 -> Replacement | F68: 0 | G68: 0 | H68: 0 | I68: 0 | J68: 0 | K68: 0 | L68: 0 | M68: 0
C69: ='Input | Comms, IT, Other'!$E$186 -> Three phase 3 X Single phase (Electronic) | D69: ='Input | Comms, IT, Other'!$F$186 -> Replacement | F69: 0 | G69: 0 | H69: 0 | I69: 0 | J69: 0 | K69: 0 | L69: 0 | M69: 0
C70: ='Input | Comms, IT, Other'!$E$187 -> Three phase Whole Current (Electronic) | D70: ='Input | Comms, IT, Other'!$F$187 -> Replacement | F70: 0 | G70: 0 | H70: 0 | I70: 0 | J70: 0 | K70: 0 | L70: 0 | M70: 0
C71: ='Input | Comms, IT, Other'!$E$188 -> Three phase LVCT (Electronic) | D71: ='Input | Comms, IT, Other'!$F$188 -> Replacement | F71: 0 | G71: 0 | H71: 0 | I71: 0 | J71: 0 | K71: 0 | L71: 0 | M71: 0
C72: ='Input | Comms, IT, Other'!$E$189 -> Three phase HV (Electronic) | D72: ='Input | Comms, IT, Other'!$F$189 -> Replacement | F72: 0 | G72: 0 | H72: 0 | I72: 0 | J72: 0 | K72: 0 | L72: 0 | M72: 0
C73: ='Input | Comms, IT, Other'!$E$190 -> Mechanical Meters | D73: ='Input | Comms, IT, Other'!$F$190 -> Replacement | F73: 0 | G73: 0 | H73: 0 | I73: 0 | J73: 0 | K73: 0 | L73: 0 | M73: 0
C74: ='Input | Comms, IT, Other'!$E$191 -> Unallocated | D74: ='Input | Comms, IT, Other'!$F$191 -> Replacement | F74: 0 | G74: 0 | H74: 0 | I74: 0 | J74: 0 | K74: 0 | L74: 0 | M74: 0
C75: ='Input | Comms, IT, Other'!$E$192 -> 0 | D75: ='Input | Comms, IT, Other'!$F$192 -> 0 | M75: 0
C76: ='Input | Comms, IT, Other'!$E$193 -> 0 | D76: ='Input | Comms, IT, Other'!$F$193 -> 0 | M76: 0
C77: ='Input | Comms, IT, Other'!$E$194 -> 0 | D77: ='Input | Comms, IT, Other'!$F$194 -> 0 | M77: 0
C78: ='Input | Comms, IT, Other'!$E$195 -> 0 | D78: ='Input | Comms, IT, Other'!$F$195 -> 0 | M78: 0
C79: ='Input | Comms, IT, Other'!$E$196 -> 0 | D79: ='Input | Comms, IT, Other'!$F$196 -> 0 | M79: 0
B81: Input | Forecast Replacement Volumes - Modem Installations on Smart Ready Meters
C83: ='Input | Comms, IT, Other'!$E$176 -> Equipment Type | D83: ='Input | Comms, IT, Other'!$F$176 -> Action/Driver | F83: =F$23 -> 2022-23 | G83: =G$23 -> 2023-24 | H83: 2024-25 | I83: 2025-26 | J83: 2026-27 | K83: 2027-28 | L83: 2028-29 | M83: Total
C84: ='Input | Comms, IT, Other'!$E$177 -> Single phase Bottom connected (Smart) | D84: ='Input | Comms, IT, Other'!$F$177 -> Replacement | G84: 1000 | H84: 0 | I84: 0 | J84: 0 | K84: 0 | L84: 0 | M84: =SUM(F84:L84) -> 1000
C85: ='Input | Comms, IT, Other'!$E$178 -> Single phase Plug in (Smart) | D85: ='Input | Comms, IT, Other'!$F$178 -> Replacement | F85: 0 | G85: 0 | H85: 0 | I85: 0 | J85: 0 | K85: 0 | L85: 0 | M85: =SUM(F85:L85) -> 0
C86: ='Input | Comms, IT, Other'!$E$179 -> Single phase Two element (Smart) | D86: ='Input | Comms, IT, Other'!$F$179 -> Replacement | F86: 0 | G86: 500 | H86: 0 | I86: 0 | J86: 0 | K86: 0 | L86: 0 | M86: 500
C87: ='Input | Comms, IT, Other'!$E$180 -> Three phase Whole Current (Smart) | D87: ='Input | Comms, IT, Other'!$F$180 -> Replacement | G87: 1000 | H87: 0 | I87: 0 | J87: 0 | K87: 0 | L87: 0 | M87: 1000
C88: ='Input | Comms, IT, Other'!$E$181 -> Three phase LVCT (Smart) | D88: ='Input | Comms, IT, Other'!$F$181 -> Replacement | F88: 0 | G88: 0 | H88: 0 | I88: 0 | J88: 0 | K88: 0 | L88: 0 | M88: 0
C89: ='Input | Comms, IT, Other'!$E$182 -> Three phase HV (Smart) | D89: ='Input | Comms, IT, Other'!$F$182 -> Replacement | F89: 0 | G89: 0 | H89: 0 | I89: 0 | J89: 0 | K89: 0 | L89: 0 | M89: 0
C90: ='Input | Comms, IT, Other'!$E$183 -> Single phase Bottom connected (Electronic) | D90: ='Input | Comms, IT, Other'!$F$183 -> Replacement | F90: 0 | G90: 0 | H90: 0 | I90: 0 | J90: 0 | K90: 0 | L90: 0 | M90: 0
C91: ='Input | Comms, IT, Other'!$E$184 -> Single phase Plug in (Electronic) | D91: ='Input | Comms, IT, Other'!$F$184 -> Replacement | F91: 0 | G91: 0 | H91: 0 | I91: 0 | J91: 0 | K91: 0 | L91: 0 | M91: 0
C92: ='Input | Comms, IT, Other'!$E$185 -> Single phase Two element (Electronic) | D92: ='Input | Comms, IT, Other'!$F$185 -> Replacement | F92: 0 | G92: 0 | H92: 0 | I92: 0 | J92: 0 | K92: 0 | L92: 0 | M92: 0
C93: ='Input | Comms, IT, Other'!$E$186 -> Three phase 3 X Single phase (Electronic) | D93: ='Input | Comms, IT, Other'!$F$186 -> Replacement | F93: 0 | G93: 0 | H93: 0 | I93: 0 | J93: 0 | K93: 0 | L93: 0 | M93: 0
C94: ='Input | Comms, IT, Other'!$E$187 -> Three phase Whole Current (Electronic) | D94: ='Input | Comms, IT, Other'!$F$187 -> Replacement | F94: 0 | G94: 0 | H94: 0 | I94: 0 | J94: 0 | K94: 0 | L94: 0 | M94: 0
C95: ='Input | Comms, IT, Other'!$E$188 -> Three phase LVCT (Electronic) | D95: ='Input | Comms, IT, Other'!$F$188 -> Replacement | F95: 0 | G95: 0 | H95: 0 | I95: 0 | J95: 0 | K95: 0 | L95: 0 | M95: 0
C96: ='Input | Comms, IT, Other'!$E$189 -> Three phase HV (Electronic) | D96: ='Input | Comms, IT, Other'!$F$189 -> Replacement | F96: 0 | G96: 0 | H96: 0 | I96: 0 | J96: 0 | K96: 0 | L96: 0 | M96: 0
C97: ='Input | Comms, IT, Other'!$E$190 -> Mechanical Meters | D97: ='Input | Comms, IT, Other'!$F$190 -> Replacement | F97: 0 | G97: 0 | H97: 0 | I97: 0 | J97: 0 | K97: 0 | L97: 0 | M97: 0
C98: ='Input | Comms, IT, Other'!$E$191 -> Unallocated | D98: ='Input | Comms, IT, Other'!$F$191 -> Replacement | F98: 0 | G98: 0 | H98: 0 | I98: 0 | J98: 0 | K98: 0 | L98: 0 | M98: 0
C99: ='Input | Comms, IT, Other'!$E$192 -> 0 | D99: ='Input | Comms, IT, Other'!$F$192 -> 0 | M99: 0
C100: ='Input | Comms, IT, Other'!$E$193 -> 0 | D100: ='Input | Comms, IT, Other'!$F$193 -> 0 | M100: 0
C101: ='Input | Comms, IT, Other'!$E$194 -> 0 | D101: ='Input | Comms, IT, Other'!$F$194 -> 0 | M101: 0
C102: ='Input | Comms, IT, Other'!$E$195 -> 0 | D102: ='Input | Comms, IT, Other'!$F$195 -> 0 | M102: 0
C103: ='Input | Comms, IT, Other'!$E$196 -> 0 | D103: ='Input | Comms, IT, Other'!$F$196 -> 0 | M103: 0
B105: Calc | Forecast Replacement Volumes - Total Replacements
C107: ='Input | Comms, IT, Other'!$E$176 -> Equipment Type | D107: ='Input | Comms, IT, Other'!$F$176 -> Action/Driver | F107: =F$23 -> 2022-23 | G107: =G$23 -> 2023-24 | H107: 2024-25 | I107: 2025-26 | J107: 2026-27 | K107: 2027-28 | L107: 2028-29 | M107: Total
C108: ='Input | Comms, IT, Other'!$E$177 -> Single phase Bottom connected (Smart) | D108: ='Input | Comms, IT, Other'!$F$177 -> Replacement | F108: =F36+F60+F84 -> 0 | G108: =G36+G60+G84 -> 1682.674339 | H108: 223.525674 | I108: 264.2689121 | J108: 304.6176775 | K108: 344.7864427 | L108: 384.7853418 | M108: =SUM(F108:L108) -> 3204.658387
C109: ='Input | Comms, IT, Other'!$E$178 -> Single phase Plug in (Smart) | D109: ='Input | Comms, IT, Other'!$F$178 -> Replacement | F109: =F37+F61+F85 -> 0 | G109: 3222.724665 | H109: 394.8953574 | I109: 466.875078 | J109: 538.1578968 | K109: 609.1227154 | L109: 679.7874371 | M109: =SUM(F109:L109) -> 5911.56315
C110: ='Input | Comms, IT, Other'!$E$179 -> Single phase Two element (Smart) | D110: ='Input | Comms, IT, Other'!$F$179 -> Replacement | F110: =F38+F62+F86 -> 0 | G110: 515.2228616 | H110: 18.6271395 | I110: 22.02240934 | J110: 25.38480645 | K110: 28.73220355 | L110: 32.06544515 | M110: 642.0548656
C111: ='Input | Comms, IT, Other'!$E$180 -> Three phase Whole Current (Smart) | D111: ='Input | Comms, IT, Other'!$F$180 -> Replacement | F111: =F39+F63+F87 -> 0 | G111: 2797.426314 | H111: 119.2136928 | I111: 140.9434198 | J111: 162.4627613 | K111: 183.8861028 | L111: 205.2188489 | M111: 3609.15114
C112: ='Input | Comms, IT, Other'!$E$181 -> Three phase LVCT (Smart) | D112: ='Input | Comms, IT, Other'!$F$181 -> Replacement | F112: =F40+F64+F88 -> 0 | G112: 965.2228616 | H112: 18.6271395 | I112: 22.02240934 | J112: 25.38480645 | K112: 28.73220355 | L112: 32.06544515 | M112: 1092.054866
C113: ='Input | Comms, IT, Other'!$E$182 -> Three phase HV (Smart) | D113: ='Input | Comms, IT, Other'!$F$182 -> Replacement | F113: =F41+F65+F89 -> 0 | G113: 25.91337169 | H113: 1.11762837 | I113: 1.321344561 | J113: 1.523088387 | K113: 1.723932213 | L113: 1.923926709 | M113: 33.52329193
C114: ='Input | Comms, IT, Other'!$E$183 -> Single phase Bottom connected (Electronic) | D114: ='Input | Comms, IT, Other'!$F$183 -> Replacement | F114: =F42+F66+F90 -> 0 | G114: 0 | H114: 0 | I114: 0 | J114: 0 | K114: 0 | L114: 0 | M114: 0
C115: ='Input | Comms, IT, Other'!$E$184 -> Single phase Plug in (Electronic) | D115: ='Input | Comms, IT, Other'!$F$184 -> Replacement | F115: =F43+F67+F91 -> 0 | G115: 0 | H115: 0 | I115: 0 | J115: 0 | K115: 0 | L115: 0 | M115: 0
C116: ='Input | Comms, IT, Other'!$E$185 -> Single phase Two element (Electronic) | D116: ='Input | Comms, IT, Other'!$F$185 -> Replacement | F116: =F44+F68+F92 -> 0 | G116: 0 | H116: 0 | I116: 0 | J116: 0 | K116: 0 | L116: 0 | M116: 0
C117: ='Input | Comms, IT, Other'!$E$186 -> Three phase 3 X Single phase (Electronic) | D117: ='Input | Comms, IT, Other'!$F$186 -> Replacement | F117: =F45+F69+F93 -> 0 | G117: 0 | H117: 0 | I117: 0 | J117: 0 | K117: 0 | L117: 0 | M117: 0
C118: ='Input | Comms, IT, Other'!$E$187 -> Three phase Whole Current (Electronic) | D118: ='Input | Comms, IT, Other'!$F$187 -> Replacement | F118: =F46+F70+F94 -> 0 | G118: 0 | H118: 0 | I118: 0 | J118: 0 | K118: 0 | L118: 0 | M118: 0
C119: ='Input | Comms, IT, Other'!$E$188 -> Three phase LVCT (Electronic) | D119: ='Input | Comms, IT, Other'!$F$188 -> Replacement | F119: =F47+F71+F95 -> 0 | G119: 0 | H119: 0 | I119: 0 | J119: 0 | K119: 0 | L119: 0 | M119: 0
C120: ='Input | Comms, IT, Other'!$E$189 -> Three phase HV (Electronic) | D120: ='Input | Comms, IT, Other'!$F$189 -> Replacement | F120: =F48+F72+F96 -> 0 | G120: 0 | H120: 0 | I120: 0 | J120: 0 | K120: 0 | L120: 0 | M120: 0
C121: ='Input | Comms, IT, Other'!$E$190 -> Mechanical Meters | D121: ='Input | Comms, IT, Other'!$F$190 -> Replacement | F121: =F49+F73+F97 -> 0 | G121: 0 | H121: 0 | I121: 0 | J121: 0 | K121: 0 | L121: 0 | M121: 0
C122: ='Input | Comms, IT, Other'!$E$191 -> Unallocated | D122: ='Input | Comms, IT, Other'!$F$191 -> Replacement | F122: =F50+F74+F98 -> 0 | G122: 0 | H122: 0 | I122: 0 | J122: 0 | K122: 0 | L122: 0 | M122: 0
C123: ='Input | Comms, IT, Other'!$E$192 -> 0 | D123: ='Input | Comms, IT, Other'!$F$192 -> 0 | M123: 0
C124: ='Input | Comms, IT, Other'!$E$193 -> 0 | D124: ='Input | Comms, IT, Other'!$F$193 -> 0 | M124: 0
C125: ='Input | Comms, IT, Other'!$E$194 -> 0 | D125: ='Input | Comms, IT, Other'!$F$194 -> 0 | M125: 0
C126: ='Input | Comms, IT, Other'!$E$195 -> 0 | D126: ='Input | Comms, IT, Other'!$F$195 -> 0 | M126: 0
C127: ='Input | Comms, IT, Other'!$E$196 -> 0 | D127: ='Input | Comms, IT, Other'!$F$196 -> 0 | M127: 0
B129: Input - Total Equipment Costs
C131: ='Input | Comms, IT, Other'!$E$43 -> Equipment Type | D131: ='Input | Comms, IT, Other'!$F$43 -> Action/Driver | E131: Units | F131: Output Basis | G131: Meter cost | H131: Modem cost | I131: Antenna cost | J131: Total modem (Equipment) cost
C132: ='Input | Comms, IT, Other'!$E$45 -> Single phase Bottom connected (Smart) | D132: ='Input | Comms, IT, Other'!$F$45 -> Replacement | E132: =$D$20 -> $dollars | F132: ='Input | Comms, IT, Other'!$G$45 -> 2021-12-01 | G132: 0 | H132: 61.1476952 | I132: 4.703668862 | J132: =SUM(G132:I132) -> 65.85136406
C133: ='Input | Comms, IT, Other'!$E$46 -> Single phase Plug in (Smart) | D133: ='Input | Comms, IT, Other'!$F$46 -> Replacement | E133: =$E$132 -> $dollars | F133: ='Input | Comms, IT, Other'!$G$46 -> 2021-12-01 | G133: 230.7619944 | H133: 0 | I133: 4.703668862 | J133: =SUM(G133:I133) -> 235.4656632
C134: ='Input | Comms, IT, Other'!$E$47 -> Single phase Two element (Smart) | D134: ='Input | Comms, IT, Other'!$F$47 -> Replacement | E134: =$E$132 -> $dollars | F134: ='Input | Comms, IT, Other'!$G$47 -> 2021-12-01 | G134: 0 | H134: 61.1476952 | I134: 4.703668862 | J134: 65.85136406
C135: ='Input | Comms, IT, Other'!$E$48 -> Three phase Whole Current (Smart) | D135: ='Input | Comms, IT, Other'!$F$48 -> Replacement | E135: $dollars | F135: ='Input | Comms, IT, Other'!$G$48 -> 2021-12-01 | G135: 0 | H135: 61.1476952 | I135: 4.703668862 | J135: 65.85136406
C136: ='Input | Comms, IT, Other'!$E$49 -> Three phase LVCT (Smart) | D136: ='Input | Comms, IT, Other'!$F$49 -> Replacement | E136: $dollars | F136: ='Input | Comms, IT, Other'!$G$49 -> 2021-12-01 | G136: 0 | H136: 61.1476952 | I136: 23.51834431 | J136: 84.66603951
C137: ='Input | Comms, IT, Other'!$E$50 -> Three phase HV (Smart) | D137: ='Input | Comms, IT, Other'!$F$50 -> Replacement | E137: $dollars | F137: ='Input | Comms, IT, Other'!$G$50 -> 2021-12-01 | G137: 0 | H137: 61.1476952 | I137: 47.03668862 | J137: 108.1843838
C138: ='Input | Comms, IT, Other'!$E$51 -> Single phase Bottom connected (Electronic) | D138: ='Input | Comms, IT, Other'!$F$51 -> Replacement | E138: $dollars | F138: ='Input | Comms, IT, Other'!$G$51 -> 2021-12-01 | G138: 0 | H138: 0 | I138: 0 | J138: 0
C139: ='Input | Comms, IT, Other'!$E$52 -> Single phase Plug in (Electronic) | D139: ='Input | Comms, IT, Other'!$F$52 -> Replacement | E139: $dollars | F139: ='Input | Comms, IT, Other'!$G$52 -> 2021-12-01 | G139: 0 | H139: 0 | I139: 0 | J139: 0
C140: ='Input | Comms, IT, Other'!$E$53 -> Single phase Two element (Electronic) | D140: ='Input | Comms, IT, Other'!$F$53 -> Replacement | E140: $dollars | F140: ='Input | Comms, IT, Other'!$G$53 -> 2021-12-01 | G140: 0 | H140: 0 | I140: 0 | J140: 0
C141: ='Input | Comms, IT, Other'!$E$54 -> Three phase 3 X Single phase (Electronic) | D141: ='Input | Comms, IT, Other'!$F$54 -> Replacement | E141: $dollars | F141: ='Input | Comms, IT, Other'!$G$54 -> 2021-12-01 | G141: 0 | H141: 61.1476952 | I141: 4.703668862 | J141: 65.85136406
C142: ='Input | Comms, IT, Other'!$E$55 -> Three phase Whole Current (Electronic) | D142: ='Input | Comms, IT, Other'!$F$55 -> Replacement | E142: $dollars | F142: ='Input | Comms, IT, Other'!$G$55 -> 2021-12-01 | G142: 0 | H142: 0 | I142: 0 | J142: 0
C143: ='Input | Comms, IT, Other'!$E$56 -> Three phase LVCT (Electronic) | D143: ='Input | Comms, IT, Other'!$F$56 -> Replacement | E143: $dollars | F143: ='Input | Comms, IT, Other'!$G$56 -> 2021-12-01 | G143: 0 | H143: 0 | I143: 0 | J143: 0
C144: ='Input | Comms, IT, Other'!$E$57 -> Three phase HV (Electronic) | D144: ='Input | Comms, IT, Other'!$F$57 -> Replacement | E144: $dollars | F144: ='Input | Comms, IT, Other'!$G$57 -> 2021-12-01 | G144: 0 | H144: 0 | I144: 0 | J144: 0
C145: ='Input | Comms, IT, Other'!$E$58 -> Mechanical Meters | D145: ='Input | Comms, IT, Other'!$F$58 -> Replacement | E145: $dollars | F145: ='Input | Comms, IT, Other'!$G$58 -> 2021-12-01 | G145: 0 | H145: 0 | I145: 0 | J145: 0
C146: ='Input | Comms, IT, Other'!$E$59 -> Unallocated | D146: ='Input | Comms, IT, Other'!$F$59 -> Replacement | E146: $dollars | F146: ='Input | Comms, IT, Other'!$G$59 -> 2021-12-01 | G146: 0 | H146: 0 | I146: 0 | J146: 0
C147: ='Input | Comms, IT, Other'!$E$60 -> 0 | D147: ='Input | Comms, IT, Other'!$F$60 -> 0 | E147: $dollars | F147: ='Input | Comms, IT, Other'!$G$60 -> 2021-12-01 | G147: 0 | H147: 0 | I147: 0 | J147: 0
C148: ='Input | Comms, IT, Other'!$E$61 -> 0 | D148: ='Input | Comms, IT, Other'!$F$61 -> 0 | E148: $dollars | F148: ='Input | Comms, IT, Other'!$G$61 -> 2021-12-01 | G148: 0 | H148: 0 | I148: 0 | J148: 0
C149: ='Input | Comms, IT, Other'!$E$62 -> 0 | D149: ='Input | Comms, IT, Other'!$F$62 -> 0 | E149: $dollars | F149: ='Input | Comms, IT, Other'!$G$62 -> 2021-12-01 | G149: 0 | H149: 0 | I149: 0 | J149: 0
C150: ='Input | Comms, IT, Other'!$E$63 -> 0 | D150: ='Input | Comms, IT, Other'!$F$63 -> 0 | E150: $dollars | F150: ='Input | Comms, IT, Other'!$G$63 -> 2021-12-01 | G150: 0 | H150: 0 | I150: 0 | J150: 0
C151: ='Input | Comms, IT, Other'!$E$64 -> 0 | D151: ='Input | Comms, IT, Other'!$F$64 -> 0 | E151: $dollars | F151: ='Input | Comms, IT, Other'!$G$64 -> 2021-12-01 | G151: 0 | H151: 0 | I151: 0 | J151: 0
B153: Input - Total Installation Costs
C155: ='Input | Comms, IT, Other'!$E$43 -> Equipment Type | D155: ='Input | Comms, IT, Other'!$F$43 -> Action/Driver | E155: Units | F155: Output Basis | G155: Base Installation Cost | H155: Commissioning Cost | I155: Regional Installation | J155: Rural Surcharge | K155: Remote Surcharge | L155: Rural and remote surcharge | M155: Total Installation Cost
C156: ='Input | Comms, IT, Other'!$E$45 -> Single phase Bottom connected (Smart) | D156: ='Input | Comms, IT, Other'!$F$45 -> Replacement | E156: =$D$20 -> $dollars | F156: ='Input | Comms, IT, Other'!$G$45 -> 2021-12-01 | G156: 79.66133584 | H156: 0 | I156: =SUM(G156:H156) -> 79.66133584 | J156: 23.89840075 | K156: 31.86453434 | L156: =SUM(J156:K156) -> 55.76293509 | M156: =I156+L156 -> 135.4242709
C157: ='Input | Comms, IT, Other'!$E$46 -> Single phase Plug in (Smart) | D157: ='Input | Comms, IT, Other'!$F$46 -> Replacement | E157: =$E$132 -> $dollars | F157: ='Input | Comms, IT, Other'!$G$46 -> 2021-12-01 | G157: 79.66133584 | H157: 0 | I157: 79.66133584 | J157: 23.89840075 | K157: 31.86453434 | L157: 55.76293509 | M157: =I157+L157 -> 135.4242709
C158: ='Input | Comms, IT, Other'!$E$47 -> Single phase Two element (Smart) | D158: ='Input | Comms, IT, Other'!$F$47 -> Replacement | E158: =$E$132 -> $dollars | F158: ='Input | Comms, IT, Other'!$G$47 -> 2021-12-01 | G158: 79.66133584 | H158: 0 | I158: 79.66133584 | J158: 23.89840075 | K158: 31.86453434 | L158: 55.76293509 | M158: 135.4242709
C159: ='Input | Comms, IT, Other'!$E$48 -> Three phase Whole Current (Smart) | D159: ='Input | Comms, IT, Other'!$F$48 -> Replacement | E159: $dollars | F159: ='Input | Comms, IT, Other'!$G$48 -> 2021-12-01 | G159: 79.66133584 | H159: 0 | I159: 79.66133584 | J159: 23.89840075 | K159: 31.86453434 | L159: 55.76293509 | M159: 135.4242709
C160: ='Input | Comms, IT, Other'!$E$49 -> Three phase LVCT (Smart) | D160: ='Input | Comms, IT, Other'!$F$49 -> Replacement | E160: $dollars | F160: ='Input | Comms, IT, Other'!$G$49 -> 2021-12-01 | G160: 79.66133584 | H160: 0 | I160: 79.66133584 | J160: 23.89840075 | K160: 31.86453434 | L160: 55.76293509 | M160: 135.4242709
C161: ='Input | Comms, IT, Other'!$E$50 -> Three phase HV (Smart) | D161: ='Input | Comms, IT, Other'!$F$50 -> Replacement | E161: $dollars | F161: ='Input | Comms, IT, Other'!$G$50 -> 2021-12-01 | G161: 79.66133584 | H161: 0 | I161: 79.66133584 | J161: 23.89840075 | K161: 31.86453434 | L161: 55.76293509 | M161: 135.4242709
C162: ='Input | Comms, IT, Other'!$E$51 -> Single phase Bottom connected (Electronic) | D162: ='Input | Comms, IT, Other'!$F$51 -> Replacement | E162: $dollars | F162: ='Input | Comms, IT, Other'!$G$51 -> 2021-12-01 | G162: 0 | H162: 0 | I162: 0 | J162: 0 | K162: 0 | L162: 0 | M162: 0
C163: ='Input | Comms, IT, Other'!$E$52 -> Single phase Plug in (Electronic) | D163: ='Input | Comms, IT, Other'!$F$52 -> Replacement | E163: $dollars | F163: ='Input | Comms, IT, Other'!$G$52 -> 2021-12-01 | G163: 0 | H163: 0 | I163: 0 | J163: 0 | K163: 0 | L163: 0 | M163: 0
C164: ='Input | Comms, IT, Other'!$E$53 -> Single phase Two element (Electronic) | D164: ='Input | Comms, IT, Other'!$F$53 -> Replacement | E164: $dollars | F164: ='Input | Comms, IT, Other'!$G$53 -> 2021-12-01 | G164: 0 | H164: 0 | I164: 0 | J164: 0 | K164: 0 | L164: 0 | M164: 0
C165: ='Input | Comms, IT, Other'!$E$54 -> Three phase 3 X Single phase (Electronic) | D165: ='Input | Comms, IT, Other'!$F$54 -> Replacement | E165: $dollars | F165: ='Input | Comms, IT, Other'!$G$54 -> 2021-12-01 | G165: 79.68015052 | H165: 0 | I165: 79.68015052 | J165: 23.90404516 | K165: 31.87206021 | L165: 55.77610536 | M165: 135.4562559
C166: ='Input | Comms, IT, Other'!$E$55 -> Three phase Whole Current (Electronic) | D166: ='Input | Comms, IT, Other'!$F$55 -> Replacement | E166: $dollars | F166: ='Input | Comms, IT, Other'!$G$55 -> 2021-12-01 | G166: 0 | H166: 0 | I166: 0 | J166: 0 | K166: 0 | L166: 0 | M166: 0
C167: ='Input | Comms, IT, Other'!$E$56 -> Three phase LVCT (Electronic) | D167: ='Input | Comms, IT, Other'!$F$56 -> Replacement | E167: $dollars | F167: ='Input | Comms, IT, Other'!$G$56 -> 2021-12-01 | G167: 0 | H167: 0 | I167: 0 | J167: 0 | K167: 0 | L167: 0 | M167: 0
C168: ='Input | Comms, IT, Other'!$E$57 -> Three phase HV (Electronic) | D168: ='Input | Comms, IT, Other'!$F$57 -> Replacement | E168: $dollars | F168: ='Input | Comms, IT, Other'!$G$57 -> 2021-12-01 | G168: 0 | H168: 0 | I168: 0 | J168: 0 | K168: 0 | L168: 0 | M168: 0
C169: ='Input | Comms, IT, Other'!$E$58 -> Mechanical Meters | D169: ='Input | Comms, IT, Other'!$F$58 -> Replacement | E169: $dollars | F169: ='Input | Comms, IT, Other'!$G$58 -> 2021-12-01 | G169: 0 | H169: 0 | I169: 0 | J169: 0 | K169: 0 | L169: 0 | M169: 0
C170: ='Input | Comms, IT, Other'!$E$59 -> Unallocated | D170: ='Input | Comms, IT, Other'!$F$59 -> Replacement | E170: $dollars | F170: ='Input | Comms, IT, Other'!$G$59 -> 2021-12-01 | G170: 0 | H170: 0 | I170: 0 | J170: 0 | K170: 0 | L170: 0 | M170: 0
C171: ='Input | Comms, IT, Other'!$E$60 -> 0 | D171: ='Input | Comms, IT, Other'!$F$60 -> 0 | E171: $dollars | F171: ='Input | Comms, IT, Other'!$G$60 -> 2021-12-01 | G171: 0 | H171: 0 | I171: 0 | J171: 0 | K171: 0 | L171: 0 | M171: 0
C172: ='Input | Comms, IT, Other'!$E$61 -> 0 | D172: ='Input | Comms, IT, Other'!$F$61 -> 0 | E172: $dollars | F172: ='Input | Comms, IT, Other'!$G$61 -> 2021-12-01 | G172: 0 | H172: 0 | I172: 0 | J172: 0 | K172: 0 | L172: 0 | M172: 0
C173: ='Input | Comms, IT, Other'!$E$62 -> 0 | D173: ='Input | Comms, IT, Other'!$F$62 -> 0 | E173: $dollars | F173: ='Input | Comms, IT, Other'!$G$62 -> 2021-12-01 | G173: 0 | H173: 0 | I173: 0 | J173: 0 | K173: 0 | L173: 0 | M173: 0
C174: ='Input | Comms, IT, Other'!$E$63 -> 0 | D174: ='Input | Comms, IT, Other'!$F$63 -> 0 | E174: $dollars | F174: ='Input | Comms, IT, Other'!$G$63 -> 2021-12-01 | G174: 0 | H174: 0 | I174: 0 | J174: 0 | K174: 0 | L174: 0 | M174: 0
C175: ='Input | Comms, IT, Other'!$E$64 -> 0 | D175: ='Input | Comms, IT, Other'!$F$64 -> 0 | E175: $dollars | F175: ='Input | Comms, IT, Other'!$G$64 -> 2021-12-01 | G175: 0 | H175: 0 | I175: 0 | J175: 0 | K175: 0 | L175: 0 | M175: 0
B177: Workings - Buildings
C179: Project Name | D179: Units | E179: Basis | F179: ='Input | Comms, IT, Other'!K$144 -> 2022-23 | G179: ='Input | Comms, IT, Other'!L$144 -> 2023-24 | H179: ='Input | Comms, IT, Other'!M$144 -> 2024-25 | I179: ='Input | Comms, IT, Other'!N$144 -> 2025-26 | J179: ='Input | Comms, IT, Other'!O$144 -> 2026-27 | K179: ='Input | Comms, IT, Other'!P$144 -> 2027-28 | L179: ='Input | Comms, IT, Other'!Q$144 -> 2028-29 | M179: Overheads | N179: SCS Allocation
C180: Buildings | D180: $dollars | E180: =Basis_Capex -> 2021-12-01 | F180: 0 | G180: 0 | H180: 0 | I180: 0 | J180: 0 | K180: 0 | L180: 0 | M180: 0 | N180: 0
C181: Project 2 | D181: =D180 -> $dollars | E181: 2021-12-01 | M181: 0 | N181: 0
C182: Project 3 | D182: =D181 -> $dollars | E182: 2021-12-01 | M182: 0 | N182: 0
C183: Project 4 | D183: $dollars | E183: 2021-12-01 | M183: 0 | N183: 0
F184: =SUM(F180:F183) -> 0 | G184: 0 | H184: 0 | I184: 0 | J184: 0 | K184: 0 | L184: 0 | M184: =SUM(F184:L184) -> 0
C186: ACS | D186: Units | E186: Basis | F186: =F179 -> 2022-23 | G186: =G179 -> 2023-24 | H186: 2024-25 | I186: 2025-26 | J186: 2026-27 | K186: 2027-28 | L186: 2028-29
C187: Project cost | D187: =D180 -> $dollars | E187: =Basis_Capex -> 2021-12-01 | F187: =SUMPRODUCT(INDEX($F$180:$L$183,,'Calc | Capex Comm, IT, Other'!K$87-1),(1-'Input | Workings'!$N$180:$N$183)) -> 0 | G187: =SUMPRODUCT(INDEX($F$180:$L$183,,'Calc | Capex Comm, IT, Other'!L$87-1),(1-'Input | Workings'!$N$180:$N$183)) -> 0 | H187: =SUMPRODUCT(INDEX($F$180:$L$183,,'Calc | Capex Comm, IT, Other'!M$87-1),(1-'Input | Workings'!$N$180:$N$183)) -> 0 | I187: =SUMPRODUCT(INDEX($F$180:$L$183,,'Calc | Capex Comm, IT, Other'!N$87-1),(1-'Input | Workings'!$N$180:$N$183)) -> 0 | J187: =SUMPRODUCT(INDEX($F$180:$L$183,,'Calc | Capex Comm, IT, Other'!O$87-1),(1-'Input | Workings'!$N$180:$N$183)) -> 0 | K187: =SUMPRODUCT(INDEX($F$180:$L$183,,'Calc | Capex Comm, IT, Other'!P$87-1),(1-'Input | Workings'!$N$180:$N$183)) -> 0 | L187: =SUMPRODUCT(INDEX($F$180:$L$183,,'Calc | Capex Comm, IT, Other'!Q$87-1),(1-'Input | Workings'!$N$180:$N$183)) -> 0
C188: Overheads | D188: =D187 -> $dollars | E188: =Basis_Capex -> 2021-12-01 | F188: =SUMPRODUCT(INDEX($F$180:$L$183,,'Calc | Capex Comm, IT, Other'!K$87-1),(1-'Input | Workings'!$N$180:$N$183),($M$180:$M$183)) -> 0 | G188: =SUMPRODUCT(INDEX($F$180:$L$183,,'Calc | Capex Comm, IT, Other'!L$87-1),(1-'Input | Workings'!$N$180:$N$183),($M$180:$M$183)) -> 0 | H188: =SUMPRODUCT(INDEX($F$180:$L$183,,'Calc | Capex Comm, IT, Other'!M$87-1),(1-'Input | Workings'!$N$180:$N$183),($M$180:$M$183)) -> 0 | I188: =SUMPRODUCT(INDEX($F$180:$L$183,,'Calc | Capex Comm, IT, Other'!N$87-1),(1-'Input | Workings'!$N$180:$N$183),($M$180:$M$183)) -> 0 | J188: =SUMPRODUCT(INDEX($F$180:$L$183,,'Calc | Capex Comm, IT, Other'!O$87-1),(1-'Input | Workings'!$N$180:$N$183),($M$180:$M$183)) -> 0 | K188: =SUMPRODUCT(INDEX($F$180:$L$183,,'Calc | Capex Comm, IT, Other'!P$87-1),(1-'Input | Workings'!$N$180:$N$183),($M$180:$M$183)) -> 0 | L188: =SUMPRODUCT(INDEX($F$180:$L$183,,'Calc | Capex Comm, IT, Other'!Q$87-1),(1-'Input | Workings'!$N$180:$N$183),($M$180:$M$183)) -> 0
C189: Total | D189: =D187 -> $dollars | E189: =Basis_Capex -> 2021-12-01 | F189: =SUM(F187:F188) -> 0 | G189: =SUM(G187:G188) -> 0 | H189: 0 | I189: 0 | J189: 0 | K189: 0 | L189: 0
C191: SCS | D191: Units | E191: Basis | F191: =F179 -> 2022-23 | G191: =G179 -> 2023-24 | H191: 2024-25 | I191: 2025-26 | J191: 2026-27 | K191: 2027-28 | L191: 2028-29
C192: Project cost | D192: =D180 -> $dollars | E192: =Basis_Capex -> 2021-12-01 | F192: =SUMPRODUCT(INDEX($F$180:$L$183,,'Calc | Capex Comm, IT, Other'!K$87-1),('Input | Workings'!$N$180:$N$183)) -> 0 | G192: =SUMPRODUCT(INDEX($F$180:$L$183,,'Calc | Capex Comm, IT, Other'!L$87-1),('Input | Workings'!$N$180:$N$183)) -> 0 | H192: =SUMPRODUCT(INDEX($F$180:$L$183,,'Calc | Capex Comm, IT, Other'!M$87-1),('Input | Workings'!$N$180:$N$183)) -> 0 | I192: =SUMPRODUCT(INDEX($F$180:$L$183,,'Calc | Capex Comm, IT, Other'!N$87-1),('Input | Workings'!$N$180:$N$183)) -> 0 | J192: =SUMPRODUCT(INDEX($F$180:$L$183,,'Calc | Capex Comm, IT, Other'!O$87-1),('Input | Workings'!$N$180:$N$183)) -> 0 | K192: =SUMPRODUCT(INDEX($F$180:$L$183,,'Calc | Capex Comm, IT, Other'!P$87-1),('Input | Workings'!$N$180:$N$183)) -> 0 | L192: =SUMPRODUCT(INDEX($F$180:$L$183,,'Calc | Capex Comm, IT, Other'!Q$87-1),('Input | Workings'!$N$180:$N$183)) -> 0
C193: Overheads | D193: =D192 -> $dollars | E193: =Basis_Capex -> 2021-12-01 | F193: =SUMPRODUCT(INDEX($F$180:$L$183,,'Calc | Capex Comm, IT, Other'!K$87-1),('Input | Workings'!$N$180:$N$183),($M$180:$M$183)) -> 0 | G193: =SUMPRODUCT(INDEX($F$180:$L$183,,'Calc | Capex Comm, IT, Other'!L$87-1),('Input | Workings'!$N$180:$N$183),($M$180:$M$183)) -> 0 | H193: =SUMPRODUCT(INDEX($F$180:$L$183,,'Calc | Capex Comm, IT, Other'!M$87-1),('Input | Workings'!$N$180:$N$183),($M$180:$M$183)) -> 0 | I193: =SUMPRODUCT(INDEX($F$180:$L$183,,'Calc | Capex Comm, IT, Other'!N$87-1),('Input | Workings'!$N$180:$N$183),($M$180:$M$183)) -> 0 | J193: =SUMPRODUCT(INDEX($F$180:$L$183,,'Calc | Capex Comm, IT, Other'!O$87-1),('Input | Workings'!$N$180:$N$183),($M$180:$M$183)) -> 0 | K193: =SUMPRODUCT(INDEX($F$180:$L$183,,'Calc | Capex Comm, IT, Other'!P$87-1),('Input | Workings'!$N$180:$N$183),($M$180:$M$183)) -> 0 | L193: =SUMPRODUCT(INDEX($F$180:$L$183,,'Calc | Capex Comm, IT, Other'!Q$87-1),('Input | Workings'!$N$180:$N$183),($M$180:$M$183)) -> 0
C194: Total | D194: =D192 -> $dollars | E194: =Basis_Capex -> 2021-12-01 | F194: =SUM(F192:F193) -> 0 | G194: =SUM(G192:G193) -> 0 | H194: 0 | I194: 0 | J194: 0 | K194: 0 | L194: 0
C196: GRAND TOTAL | F196: =F189+F194 -> 0 | G196: 0 | H196: =H189+H194 -> 0 | I196: 0 | J196: 0 | K196: 0 | L196: 0
B198: Workings - in-house software
C200: Project Name | D200: Units | E200: Basis | F200: ='Input | Comms, IT, Other'!K$144 -> 2022-23 | G200: ='Input | Comms, IT, Other'!L$144 -> 2023-24 | H200: ='Input | Comms, IT, Other'!M$144 -> 2024-25 | I200: ='Input | Comms, IT, Other'!N$144 -> 2025-26 | J200: ='Input | Comms, IT, Other'!O$144 -> 2026-27 | K200: ='Input | Comms, IT, Other'!P$144 -> 2027-28 | L200: ='Input | Comms, IT, Other'!Q$144 -> 2028-29 | M200: Overheads | N200: SCS Allocation
C201: in-house software | D201: $dollars | E201: =Basis_Capex -> 2021-12-01 | F201: 0 | G201: 0 | H201: 0 | I201: 0 | J201: 0 | K201: 0 | L201: 0 | M201: 0 | N201: 0
C202: Project 2 | D202: =D201 -> $dollars | E202: 2021-12-01 | M202: 0 | N202: 0
C203: Project 3 | D203: =D202 -> $dollars | E203: 2021-12-01 | M203: 0 | N203: 0
C204: Project 4 | D204: $dollars | E204: 2021-12-01 | M204: 0 | N204: 0
F205: =SUM(F201:F204) -> 0 | G205: 0 | H205: 0 | I205: 0 | J205: 0 | K205: 0 | L205: 0 | M205: =SUM(F205:L205) -> 0
C207: ACS | D207: Units | E207: Basis | F207: =F200 -> 2022-23 | G207: =G200 -> 2023-24 | H207: 2024-25 | I207: 2025-26 | J207: 2026-27 | K207: 2027-28 | L207: 2028-29
C208: Project cost | D208: =D201 -> $dollars | E208: =Basis_Capex -> 2021-12-01 | F208: =SUMPRODUCT(INDEX($F$201:$L$204,,'Calc | Capex Comm, IT, Other'!K$87-1),(1-'Input | Workings'!$N$201:$N$204)) -> 0 | G208: =SUMPRODUCT(INDEX($F$201:$L$204,,'Calc | Capex Comm, IT, Other'!L$87-1),(1-'Input | Workings'!$N$201:$N$204)) -> 0 | H208: =SUMPRODUCT(INDEX($F$201:$L$204,,'Calc | Capex Comm, IT, Other'!M$87-1),(1-'Input | Workings'!$N$201:$N$204)) -> 0 | I208: =SUMPRODUCT(INDEX($F$201:$L$204,,'Calc | Capex Comm, IT, Other'!N$87-1),(1-'Input | Workings'!$N$201:$N$204)) -> 0 | J208: =SUMPRODUCT(INDEX($F$201:$L$204,,'Calc | Capex Comm, IT, Other'!O$87-1),(1-'Input | Workings'!$N$201:$N$204)) -> 0 | K208: =SUMPRODUCT(INDEX($F$201:$L$204,,'Calc | Capex Comm, IT, Other'!P$87-1),(1-'Input | Workings'!$N$201:$N$204)) -> 0 | L208: =SUMPRODUCT(INDEX($F$201:$L$204,,'Calc | Capex Comm, IT, Other'!Q$87-1),(1-'Input | Workings'!$N$201:$N$204)) -> 0
C209: Overheads | D209: =D208 -> $dollars | E209: =Basis_Capex -> 2021-12-01 | F209: =SUMPRODUCT(INDEX($F$201:$L$204,,'Calc | Capex Comm, IT, Other'!K$87-1),(1-'Input | Workings'!$N$201:$N$204),($M$201:$M$204)) -> 0 | G209: =SUMPRODUCT(INDEX($F$201:$L$204,,'Calc | Capex Comm, IT, Other'!L$87-1),(1-'Input | Workings'!$N$201:$N$204),($M$201:$M$204)) -> 0 | H209: =SUMPRODUCT(INDEX($F$201:$L$204,,'Calc | Capex Comm, IT, Other'!M$87-1),(1-'Input | Workings'!$N$201:$N$204),($M$201:$M$204)) -> 0 | I209: =SUMPRODUCT(INDEX($F$201:$L$204,,'Calc | Capex Comm, IT, Other'!N$87-1),(1-'Input | Workings'!$N$201:$N$204),($M$201:$M$204)) -> 0 | J209: =SUMPRODUCT(INDEX($F$201:$L$204,,'Calc | Capex Comm, IT, Other'!O$87-1),(1-'Input | Workings'!$N$201:$N$204),($M$201:$M$204)) -> 0 | K209: =SUMPRODUCT(INDEX($F$201:$L$204,,'Calc | Capex Comm, IT, Other'!P$87-1),(1-'Input | Workings'!$N$201:$N$204),($M$201:$M$204)) -> 0 | L209: =SUMPRODUCT(INDEX($F$201:$L$204,,'Calc | Capex Comm, IT, Other'!Q$87-1),(1-'Input | Workings'!$N$201:$N$204),($M$201:$M$204)) -> 0
C210: Total | D210: =D208 -> $dollars | E210: =Basis_Capex -> 2021-12-01 | F210: =SUM(F208:F209) -> 0 | G210: =SUM(G208:G209) -> 0 | H210: 0 | I210: 0 | J210: 0 | K210: 0 | L210: 0
C212: SCS | D212: Units | E212: Basis | F212: =F200 -> 2022-23 | G212: =G200 -> 2023-24 | H212: 2024-25 | I212: 2025-26 | J212: 2026-27 | K212: 2027-28 | L212: 2028-29
C213: Project cost | D213: =D201 -> $dollars | E213: =Basis_Capex -> 2021-12-01 | F213: =SUMPRODUCT(INDEX($F$201:$L$204,,'Calc | Capex Comm, IT, Other'!K$87-1),('Input | Workings'!$N$201:$N$204)) -> 0 | G213: =SUMPRODUCT(INDEX($F$201:$L$204,,'Calc | Capex Comm, IT, Other'!L$87-1),('Input | Workings'!$N$201:$N$204)) -> 0 | H213: =SUMPRODUCT(INDEX($F$201:$L$204,,'Calc | Capex Comm, IT, Other'!M$87-1),('Input | Workings'!$N$201:$N$204)) -> 0 | I213: =SUMPRODUCT(INDEX($F$201:$L$204,,'Calc | Capex Comm, IT, Other'!N$87-1),('Input | Workings'!$N$201:$N$204)) -> 0 | J213: =SUMPRODUCT(INDEX($F$201:$L$204,,'Calc | Capex Comm, IT, Other'!O$87-1),('Input | Workings'!$N$201:$N$204)) -> 0 | K213: =SUMPRODUCT(INDEX($F$201:$L$204,,'Calc | Capex Comm, IT, Other'!P$87-1),('Input | Workings'!$N$201:$N$204)) -> 0 | L213: =SUMPRODUCT(INDEX($F$201:$L$204,,'Calc | Capex Comm, IT, Other'!Q$87-1),('Input | Workings'!$N$201:$N$204)) -> 0
C214: Overheads | D214: =D213 -> $dollars | E214: =Basis_Capex -> 2021-12-01 | F214: =SUMPRODUCT(INDEX($F$201:$L$204,,'Calc | Capex Comm, IT, Other'!K$87-1),('Input | Workings'!$N$201:$N$204),($M$201:$M$204)) -> 0 | G214: =SUMPRODUCT(INDEX($F$201:$L$204,,'Calc | Capex Comm, IT, Other'!L$87-1),('Input | Workings'!$N$201:$N$204),($M$201:$M$204)) -> 0 | H214: =SUMPRODUCT(INDEX($F$201:$L$204,,'Calc | Capex Comm, IT, Other'!M$87-1),('Input | Workings'!$N$201:$N$204),($M$201:$M$204)) -> 0 | I214: =SUMPRODUCT(INDEX($F$201:$L$204,,'Calc | Capex Comm, IT, Other'!N$87-1),('Input | Workings'!$N$201:$N$204),($M$201:$M$204)) -> 0 | J214: =SUMPRODUCT(INDEX($F$201:$L$204,,'Calc | Capex Comm, IT, Other'!O$87-1),('Input | Workings'!$N$201:$N$204),($M$201:$M$204)) -> 0 | K214: =SUMPRODUCT(INDEX($F$201:$L$204,,'Calc | Capex Comm, IT, Other'!P$87-1),('Input | Workings'!$N$201:$N$204),($M$201:$M$204)) -> 0 | L214: =SUMPRODUCT(INDEX($F$201:$L$204,,'Calc | Capex Comm, IT, Other'!Q$87-1),('Input | Workings'!$N$201:$N$204),($M$201:$M$204)) -> 0
C215: Total | D215: =D213 -> $dollars | E215: =Basis_Capex -> 2021-12-01 | F215: =SUM(F213:F214) -> 0 | G215: =SUM(G213:G214) -> 0 | H215: 0 | I215: 0 | J215: 0 | K215: 0 | L215: 0
C217: GRAND TOTAL | F217: =F210+F215 -> 0 | G217: 0 | H217: =H210+H215 -> 0 | I217: =I210+I215 -> 0 | J217: 0 | K217: 0 | L217: 0
B219: End

Sheet Calculations >

Sheet Calc | Opex
B1: ='Input|General'!B1&" v"&'Input|General'!$D$2 -> AER Metering Opex & Capex Forecasting Model v1.08
B2: =MID(CELL("filename",A1),FIND("]",CELL("filename",A1))+1,255) -> Calc | Opex
J4: Value | L4: =IF(MONTH('Input|General'!$J$14)=6,LEFT(M4,4)-1&"-"&TEXT(MOD(MID(M4,6,2)-1,100),"00"),M4-1) -> 2018-19 | M4: =IF(MONTH('Input|General'!$J$14)=6,LEFT(N4,4)-1&"-"&TEXT(MOD(MID(N4,6,2)-1,100),"00"),N4-1) -> 2019-20 | N4: =IF(MONTH('Input|General'!$J$14)=6,LEFT(O4,4)-1&"-"&TEXT(MOD(MID(O4,6,2)-1,100),"00"),O4-1) -> 2020-21 | O4: =IF(MONTH('Input|General'!$J$14)=6,LEFT(P4,4)-1&"-"&TEXT(MOD(MID(P4,6,2)-1,100),"00"),P4-1) -> 2021-22 | P4: =IF(MONTH('Input|General'!$J$14)=6,LEFT(Q4,4)-1&"-"&TEXT(MOD(MID(Q4,6,2)-1,100),"00"),Q4-1) -> 2022-23 | Q4: =IF(MONTH('Input|General'!$J$14)=6,LEFT(R4,4)-1&"-"&TEXT(MOD(MID(R4,6,2)-1,100),"00"),R4-1) -> 2023-24 | R4: =FPFirstYear -> 2024-25 | S4: =IF(MONTH('Input|General'!$J$14)=6,LEFT(R4,4)+1&"-"&TEXT(MOD(MID(R4,6,2)+1,100),"00"),R4+1) -> 2025-26 | T4: =IF(MONTH('Input|General'!$J$14)=6,LEFT(S4,4)+1&"-"&TEXT(MOD(MID(S4,6,2)+1,100),"00"),S4+1) -> 2026-27 | U4: =IF(MONTH('Input|General'!$J$14)=6,LEFT(T4,4)+1&"-"&TEXT(MOD(MID(T4,6,2)+1,100),"00"),T4+1) -> 2027-28 | V4: =IF(MONTH('Input|General'!$J$14)=6,LEFT(U4,4)+1&"-"&TEXT(MOD(MID(U4,6,2)+1,100),"00"),U4+1) -> 2028-29
B6: Calcs
J8: Value | L8: =L4 -> 2018-19 | M8: =M4 -> 2019-20 | N8: 2020-21 | O8: 2021-22 | P8: 2022-23 | Q8: 2023-24 | R8: 2024-25 | S8: 2025-26 | T8: 2026-27 | U8: 2027-28 | V8: 2028-29
C10: Base
D12: Adjusted Base | F12: Total opex | G12: ='Input | Meter-Opex BST'!$G$9 -> $millions | H12: =Basis_OpexForecast -> 2024-06-01 | O12: ='Input | Meter-Opex BST'!O18 -> 6.352928924 | P12: ='Input | Meter-Opex BST'!P18 ->  | Q12: ='Input | Meter-Opex BST'!Q18 -> 
C14: Steps
D17: Steps (As Input) | F17: Total Steps | G17: ='Input | Meter-Opex BST'!$G$9 -> $millions | H17: =Basis_OpexForecast -> 2024-06-01 | P17: =SUM('Input | Meter-Opex BST'!P$23:P$30) -> 0 | Q17: =SUM('Input | Meter-Opex BST'!Q$23:Q$30) -> 0 | R17: =SUM('Input | Meter-Opex BST'!R$23:R$30) -> 0.06206335181 | S17: =SUM('Input | Meter-Opex BST'!S$23:S$30) -> 0.04723737016 | T17: =SUM('Input | Meter-Opex BST'!T$23:T$30) -> 0.05821228124 | U17: =SUM('Input | Meter-Opex BST'!U$23:U$30) -> 0.07329983648 | V17: =SUM('Input | Meter-Opex BST'!V$23:V$30) -> 0.06846644108
C20: Trend
D23: Forecast output change
E24: Weighted | F24: ='Input | Meter-Opex BST'!F35 -> Customer numbers (#) | G24: % | P24: =IFERROR(LN('Input | Meter-Opex BST'!P35/'Input | Meter-Opex BST'!O35)*'Input | Meter-Opex BST'!$J40,"") -> 0.02166336608 | Q24: =IFERROR(LN('Input | Meter-Opex BST'!Q35/'Input | Meter-Opex BST'!P35)*'Input | Meter-Opex BST'!$J40,"") -> 0.007075825261 | R24: =IFERROR(LN('Input | Meter-Opex BST'!R35/'Input | Meter-Opex BST'!Q35)*'Input | Meter-Opex BST'!$J40,"") -> -0.0004030890412 | S24: =IFERROR(LN('Input | Meter-Opex BST'!S35/'Input | Meter-Opex BST'!R35)*'Input | Meter-Opex BST'!$J40,"") -> 0.003334051421 | T24: =IFERROR(LN('Input | Meter-Opex BST'!T35/'Input | Meter-Opex BST'!S35)*'Input | Meter-Opex BST'!$J40,"") -> 0.003343320105 | U24: =IFERROR(LN('Input | Meter-Opex BST'!U35/'Input | Meter-Opex BST'!T35)*'Input | Meter-Opex BST'!$J40,"") -> 0.003329323813 | V24: =IFERROR(LN('Input | Meter-Opex BST'!V35/'Input | Meter-Opex BST'!U35)*'Input | Meter-Opex BST'!$J40,"") -> 0.003338407366
E25: Weighted | F25: ='Input | Meter-Opex BST'!F36 -> Circuit Length (km) | G25: % | P25: =IFERROR(LN('Input | Meter-Opex BST'!P36/'Input | Meter-Opex BST'!O36)*'Input | Meter-Opex BST'!$J41,"") ->  | Q25: =IFERROR(LN('Input | Meter-Opex BST'!Q36/'Input | Meter-Opex BST'!P36)*'Input | Meter-Opex BST'!$J41,"") ->  | R25: =IFERROR(LN('Input | Meter-Opex BST'!R36/'Input | Meter-Opex BST'!Q36)*'Input | Meter-Opex BST'!$J41,"") ->  | S25: =IFERROR(LN('Input | Meter-Opex BST'!S36/'Input | Meter-Opex BST'!R36)*'Input | Meter-Opex BST'!$J41,"") ->  | T25: =IFERROR(LN('Input | Meter-Opex BST'!T36/'Input | Meter-Opex BST'!S36)*'Input | Meter-Opex BST'!$J41,"") ->  | U25: =IFERROR(LN('Input | Meter-Opex BST'!U36/'Input | Meter-Opex BST'!T36)*'Input | Meter-Opex BST'!$J41,"") ->  | V25: =IFERROR(LN('Input | Meter-Opex BST'!V36/'Input | Meter-Opex BST'!U36)*'Input | Meter-Opex BST'!$J41,"") -> 
E26: Weighted | F26: ='Input | Meter-Opex BST'!F37 -> Ratcheted Maximum Demand (MW) | G26: % | P26: =IFERROR(LN('Input | Meter-Opex BST'!P37/'Input | Meter-Opex BST'!O37)*'Input | Meter-Opex BST'!$J42,"") ->  | Q26: =IFERROR(LN('Input | Meter-Opex BST'!Q37/'Input | Meter-Opex BST'!P37)*'Input | Meter-Opex BST'!$J42,"") ->  | R26: =IFERROR(LN('Input | Meter-Opex BST'!R37/'Input | Meter-Opex BST'!Q37)*'Input | Meter-Opex BST'!$J42,"") ->  | S26: =IFERROR(LN('Input | Meter-Opex BST'!S37/'Input | Meter-Opex BST'!R37)*'Input | Meter-Opex BST'!$J42,"") ->  | T26: =IFERROR(LN('Input | Meter-Opex BST'!T37/'Input | Meter-Opex BST'!S37)*'Input | Meter-Opex BST'!$J42,"") ->  | U26: =IFERROR(LN('Input | Meter-Opex BST'!U37/'Input | Meter-Opex BST'!T37)*'Input | Meter-Opex BST'!$J42,"") ->  | V26: =IFERROR(LN('Input | Meter-Opex BST'!V37/'Input | Meter-Opex BST'!U37)*'Input | Meter-Opex BST'!$J42,"") -> 
E27: Weighted | F27: ='Input | Meter-Opex BST'!F38 -> Output 4 | G27: % | P27: =IFERROR(LN('Input | Meter-Opex BST'!P38/'Input | Meter-Opex BST'!O38)*'Input | Meter-Opex BST'!$J43,"") ->  | Q27: =IFERROR(LN('Input | Meter-Opex BST'!Q38/'Input | Meter-Opex BST'!P38)*'Input | Meter-Opex BST'!$J43,"") ->  | R27: =IFERROR(LN('Input | Meter-Opex BST'!R38/'Input | Meter-Opex BST'!Q38)*'Input | Meter-Opex BST'!$J43,"") ->  | S27: =IFERROR(LN('Input | Meter-Opex BST'!S38/'Input | Meter-Opex BST'!R38)*'Input | Meter-Opex BST'!$J43,"") ->  | T27: =IFERROR(LN('Input | Meter-Opex BST'!T38/'Input | Meter-Opex BST'!S38)*'Input | Meter-Opex BST'!$J43,"") ->  | U27: =IFERROR(LN('Input | Meter-Opex BST'!U38/'Input | Meter-Opex BST'!T38)*'Input | Meter-Opex BST'!$J43,"") ->  | V27: =IFERROR(LN('Input | Meter-Opex BST'!V38/'Input | Meter-Opex BST'!U38)*'Input | Meter-Opex BST'!$J43,"") -> 
E28: Weighted | F28: Average forecast output change | G28: % | P28: =SUM(P24:P27) -> 0.02166336608 | Q28: 0.007075825261 | R28: -0.0004030890412 | S28: 0.003334051421 | T28: 0.003343320105 | U28: 0.003329323813 | V28: 0.003338407366
D31: Forecast Real Price Change
F32: ='Input | Meter-Opex BST'!F46 -> Forecast Weighted Real Price Change | G32: % | P32: ='Input | Meter-Opex BST'!P46 -> -0.0183210533 | Q32: ='Input | Meter-Opex BST'!Q46 -> 0.003176561267 | R32: ='Input | Meter-Opex BST'!R46 -> 0.007794342671 | S32: ='Input | Meter-Opex BST'!S46 -> 0.008466009173 | T32: ='Input | Meter-Opex BST'!T46 -> 0.005462877577 | U32: ='Input | Meter-Opex BST'!U46 -> 0.005371352473 | V32: ='Input | Meter-Opex BST'!V46 -> 0.006168275752
D34: Forecast Productivity change
F35: Economies of Scale Factor | G35: % | J35: ='Input | Meter-Opex BST'!J49 -> 1
F36: Scaled Growth Output | G36: % | P36: =P28*(1-$J$35) -> 0 | Q36: =Q28*(1-$J$35) -> 0 | R36: =R28*(1-$J$35) -> 0 | S36: 0 | T36: 0 | U36: 0 | V36: 0
F37: ='Input | Meter-Opex BST'!F50 -> Partial Factor Productivity - Annual improvement | G37: % | P37: ='Input | Meter-Opex BST'!P50 -> 0 | Q37: ='Input | Meter-Opex BST'!Q50 -> 0 | R37: ='Input | Meter-Opex BST'!R50 -> 0 | S37: ='Input | Meter-Opex BST'!S50 -> 0 | T37: ='Input | Meter-Opex BST'!T50 -> 0 | U37: ='Input | Meter-Opex BST'!U50 -> 0 | V37: ='Input | Meter-Opex BST'!V50 -> 0
F38: Sum | G38: % | P38: =SUM(P36:P37) -> 0 | Q38: =SUM(Q36:Q37) -> 0 | R38: 0 | S38: 0 | T38: 0 | U38: 0 | V38: 0
D41: Forecast rate of change, year-on-year | G41: % | P41: =(1+P28)*(1+P32)*(1-P38)-1 -> 0.002945417098 | Q41: 0.01027486332 | R41: 0.007388111816 | S41: 0.0118282867 | T41: 0.00882446183 | U41: 0.008718559258 | V41: 0.009527275335
D42: Forecast rate of change, Index | G42: Index | O42: =1 -> 1 | P42: =PRODUCT(1+$P41:P41) -> 1.002945417 | Q42: =PRODUCT(1+$P41:Q41) -> 1.013250544 | R42: =PRODUCT(1+$P41:R41) -> 1.020736552 | S42: =PRODUCT(1+$P41:S41) -> 1.032810117 | T42: =PRODUCT(1+$P41:T41) -> 1.041924111 | U42: =PRODUCT(1+$P41:U41) -> 1.051008188 | V42: =PRODUCT(1+$P41:V41) -> 1.061021432
D43: Forecast rate of change, Index base year movement | G43: Index | O43: =IF('Input | Meter-Opex BST'!$O$5=Opex_BaseYear,1,"") -> 1 | P43: =P$42/INDEX($O$42:$V$42,MATCH(Opex_BaseYear,$O$4:$V$4,0)) -> 1.002945417 | Q43: 1.013250544 | R43: 1.020736552 | S43: 1.032810117 | T43: 1.041924111 | U43: 1.051008188 | V43: 1.061021432
D44: Forecast rate of change, Cumulative % incl base year movement | G44: % | P44: =P43-1 -> 0.002945417098 | Q44: 0.01325054418 | R44: 0.0207365525 | S44: 0.03281011709 | T44: 0.04192411054 | U44: 0.05100818764 | V44: 0.06102143203
B46: Outputs (In Input $ real terms)
D48: BST Forecast | O48: =IF(O49=Opex_BaseYear,"Base Year","") -> Base Year | P48: =IF(P49=Opex_BaseYear,"Base Year","") ->  | Q48: =IF(Q49=Opex_BaseYear,"Base Year","") -> 
O49: =O8 -> 2021-22 | P49: 2022-23 | Q49: 2023-24 | R49: =R$8 -> 2024-25 | S49: =S$8 -> 2025-26 | T49: =T$8 -> 2026-27 | U49: =U$8 -> 2027-28 | V49: =V$8 -> 2028-29
F50: Base | G50: ='Input | Meter-Opex BST'!$G$9 -> $millions | H50: =Basis_OpexForecast -> 2024-06-01 | R50: =INDEX($O$12:$Q$12,MATCH(Opex_BaseYear,$O$4:$Q$4,0)) -> 6.352928924 | S50: =INDEX($O$12:$Q$12,MATCH(Opex_BaseYear,'Input | Meter-Opex BST'!$O$5:$Q$5,0)) -> 6.352928924 | T50: =INDEX($O$12:$Q$12,MATCH(Opex_BaseYear,'Input | Meter-Opex BST'!$O$5:$Q$5,0)) -> 6.352928924 | U50: =INDEX($O$12:$Q$12,MATCH(Opex_BaseYear,'Input | Meter-Opex BST'!$O$5:$Q$5,0)) -> 6.352928924 | V50: =INDEX($O$12:$Q$12,MATCH(Opex_BaseYear,'Input | Meter-Opex BST'!$O$5:$Q$5,0)) -> 6.352928924
F51: Trend | G51: ='Input | Meter-Opex BST'!$G$9 -> $millions | H51: =Basis_OpexForecast -> 2024-06-01 | R51: =R50*R44 -> 0.1317378441 | S51: =S50*S44 -> 0.2084403418 | T51: =T50*T44 -> 0.2663408945 | U51: =U50*U44 -> 0.3240513906 | V51: =V50*V44 -> 0.3876648205
F52: Steps | G52: ='Input | Meter-Opex BST'!$G$9 -> $millions | H52: =Basis_OpexForecast -> 2024-06-01 | R52: =R17 -> 0.06206335181 | S52: =S17 -> 0.04723737016 | T52: =T17 -> 0.05821228124 | U52: =U17 -> 0.07329983648 | V52: =V17 -> 0.06846644108
F53: Forecast Opex | G53: ='Input | Meter-Opex BST'!$G$9 -> $millions | H53: =Basis_OpexForecast -> 2024-06-01 | O53: =SUM('Input | Meter-Opex BST'!O9,'Input | Meter-Opex BST'!O12:O15)*'Input| Prices'!J$32 -> 6.352928924 | P53: =SUM('Input | Meter-Opex BST'!P9,'Input | Meter-Opex BST'!P12:P15)*'Input| Prices'!K$32 -> 0 | Q53: =SUM('Input | Meter-Opex BST'!Q9,'Input | Meter-Opex BST'!Q12:Q15)*'Input| Prices'!L$32 -> 0 | R53: =SUM(R50:R52) -> 6.54673012 | S53: =SUM(S50:S52) -> 6.608606636 | T53: 6.6774821 | U53: 6.750280151 | V53: =SUM(V50:V52) -> 6.809060186

Sheet Calc | Capex Meters
B1: ='Input|General'!B1&" v"&'Input|General'!$D$2 -> AER Metering Opex & Capex Forecasting Model v1.08
B2: =MID(CELL("filename",A1),FIND("]",CELL("filename",A1))+1,255) -> Calc | Capex Meters
A4: =PRODUCT(X48:X49,X89:X90,X110,X151,X163) -> 1 | C4: Sheet Check
B5: Summary: Yearly Meter Costs
C8: a | D8: Meter Costs by Labour/Non-Labour
D10: i | E10: Meters - Labour Component
E11: Unescalated
F12: =I_MeterTypes[[#Headers],[Meter Type]] -> Meter Type | G12: =I_MeterTypes[[#Headers],[RIN Subcategory 1]] -> RIN Subcategory 1 | H12: =I_MeterTypes[[#Headers],[RIN Subcategory 2]] -> RIN Subcategory 2 | I12: =I_MeterTypes[[#Headers],[AER Type]] -> AER Type | J12: =I_MeterTypes[[#Headers],[RIN Subcategory 3]] -> RIN Subcategory 3 | K12: =I_MeterTypes[[#Headers],[Meter Code]] -> Meter Code | L12: Units | M12: Basis | O12: ='Input | Meters Vols & Costs'!O$171 -> 2022-23 | P12: ='Input | Meters Vols & Costs'!P$171 -> 2023-24 | Q12: ='Input | Meters Vols & Costs'!Q$171 -> 2024-25 | R12: ='Input | Meters Vols & Costs'!R$171 -> 2025-26 | S12: ='Input | Meters Vols & Costs'!S$171 -> 2026-27 | T12: ='Input | Meters Vols & Costs'!T$171 -> 2027-28 | U12: ='Input | Meters Vols & Costs'!U$171 -> 2028-29 | V12: Total
F13: =I_MeterTypes[Meter Type] -> Single phase Bottom connected (Smart) | G13: =I_MeterTypes[RIN Subcategory 1] -> Single phase meter population | H13: =I_MeterTypes[RIN Subcategory 2] -> Direct connected meter population | I13: =I_MeterTypes[AER Type] -> Single phase single element (Smart) | J13: =I_MeterTypes[RIN Subcategory 3] -> Type 4 | K13: =I_MeterTypes[Meter Code] -> SM 1ph DC | L13: $dollars | M13: =Basis_Capex -> 2021-12-01 | O13: =INDEX(ICM_LabourCost,,1)*ICM_Vol1+ INDEX(ICM_LabourCost,,2)*ICM_Vol2+ INDEX(ICM_LabourCost,,3)*ICM_Vol3+ INDEX(ICM_LabourCost,,4)*ICM_Vol4+ INDEX(ICM_LabourCost,,5)*ICM_Vol5+ INDEX(ICM_LabourCost,,6)*ICM_Vol6+ INDEX(ICM_LabourCost,,7)*ICM_Vol7+ INDEX(ICM_LabourCost,,8)*ICM_Vol8+ INDEX(ICM_LabourCost,,9)*ICM_Vol9+ INDEX(ICM_LabourCost,,10)*ICM_Vol10 -> 898374.8722 | P13: 693960.7796 | Q13: 784533.0826 | R13: 784879.5933 | S13: 785226.104 | T13: 785572.6147 | U13: 527475.0991 | V13: =SUM(N13:U13) -> 5260022.146
F14: Single phase Plug in (Smart) | G14: Single phase meter population | H14: Direct connected meter population | I14: Single phase single element (Smart) | J14: Type 4 | K14: SM 1ph DC | L14: $dollars | M14: 2021-12-01 | O14: 1186550.144 | P14: 1042046.569 | Q14: 963622.1271 | R14: 963622.1271 | S14: 963622.1271 | T14: 963622.1271 | U14: 634341.7885 | V14: 6717427.01
F15: Single phase Two element (Smart) | G15: Single phase meter population | H15: Direct connected meter population | I15: Single phase two element with contactor (Smart) | J15: Type 4 | K15: SM 1ph DC | L15: $dollars | M15: 2021-12-01 | O15: 83850.39592 | P15: 63253.42323 | Q15: 21878.98261 | R15: 21878.98261 | S15: 5309.603492 | T15: 5309.603492 | U15: 5309.603492 | V15: 206790.5948
F16: Three phase Whole Current (Smart) | G16: Multiphase meter population | H16: Direct connected meter population | I16: Three phase direct connected (smart) | J16: Type 3 or 4 | K16: SM 3ph DC | L16: $dollars | M16: 2021-12-01 | O16: 791950.0388 | P16: 615347.4359 | Q16: 893359.5234 | R16: 893508.4053 | S16: 893664.5882 | T16: 893828.2669 | U16: 563531.5324 | V16: 5545189.791
F17: Three phase LVCT (Smart) | G17: Multiphase meter population | H17: Current transformer connected meter population | I17: Three phase current transformer connected (smart) | J17: Type 3 or 4 | K17: SM 3ph CT | L17: $dollars | M17: 2021-12-01 | O17: 264143.2394 | P17: 207064.5345 | Q17: 225304.239 | R17: 226903.2123 | S17: 228491.2454 | T17: 230076.4494 | U17: 231659.3067 | V17: 1613642.227
F18: Three phase HV (Smart) | G18: Multiphase meter population | H18: Current transformer connected meter population | I18: Three phase voltage transformer and current transformer connected (smart) | J18: Type 2, 3 or 4 | K18: SM 3ph HV | L18: $dollars | M18: 2021-12-01 | O18: 40677.8949 | P18: 31571.96634 | Q18: 32344.39848 | R18: 32570.69018 | S18: 35016.42782 | T18: 35239.52884 | U18: 37683.32329 | V18: 245104.2298
F19: Single phase Bottom connected (Electronic) | G19: Single phase meter population | H19: Direct connected meter population | I19: Single phase single element (Accumulation) | J19: Type 6 | K19: ACC 1ph DC | L19: $dollars | M19: 2021-12-01 | O19: 0 | P19: 0 | Q19: 0 | R19: 0 | S19: 0 | T19: 0 | U19: 0 | V19: 0
F20: Single phase Plug in (Electronic) | G20: Single phase meter population | H20: Direct connected meter population | I20: Single phase single element (Accumulation) | J20: Type 6 | K20: ACC 1ph DC | L20: $dollars | M20: 2021-12-01 | O20: 0 | P20: 0 | Q20: 0 | R20: 0 | S20: 0 | T20: 0 | U20: 0 | V20: 0
F21: Single phase Two element (Electronic) | G21: Single phase meter population | H21: Direct connected meter population | I21: Single phase two element with contactor (Accumulation) | J21: Type 6 | K21: ACC 1ph DC | L21: $dollars | M21: 2021-12-01 | O21: 0 | P21: 0 | Q21: 0 | R21: 0 | S21: 0 | T21: 0 | U21: 0 | V21: 0
F22: Three phase 3 X Single phase (Electronic) | G22: Multiphase meter population or single phase meter population | H22: Direct connected meter population | I22: Three phase direct connected (Accumulation) | J22: Type 6 | K22: ACC 3ph DC | L22: $dollars | M22: 2021-12-01 | O22: 0 | P22: 37617.1906 | Q22: 0 | R22: 0 | S22: 0 | T22: 0 | U22: 0 | V22: 37617.1906
F23: Three phase Whole Current (Electronic) | G23: Multiphase meter population | H23: Direct connected meter population | I23: Three phase direct connected (Accumulation) | J23: Type 6 | K23: ACC 3ph DC | L23: $dollars | M23: 2021-12-01 | O23: 0 | P23: 0 | Q23: 0 | R23: 0 | S23: 0 | T23: 0 | U23: 0 | V23: 0
F24: Three phase LVCT (Electronic) | G24: Multiphase meter population | H24: Current transformer connected meter population | I24: Three phase current transformer connected (Accumulation) | J24: Type 6 | K24: ACC 3ph CT | L24: $dollars | M24: 2021-12-01 | O24: 0 | P24: 0 | Q24: 0 | R24: 0 | S24: 0 | T24: 0 | U24: 0 | V24: 0
F25: Three phase HV (Electronic) | G25: Multiphase meter population | H25: Current transformer connected meter population | I25: Three phase voltage transformer and current transformer connected (Accumulation) | J25: Type 6 | K25: ACC 3ph HV | L25: $dollars | M25: 2021-12-01 | O25: 0 | P25: 0 | Q25: 0 | R25: 0 | S25: 0 | T25: 0 | U25: 0 | V25: 0
F26: Mechanical Meters | G26: Unallocated | H26: Unallocated | I26: Unallocated | J26: Type 6 | K26: Unallocated | L26: $dollars | M26: 2021-12-01 | O26: 0 | P26: 0 | Q26: 0 | R26: 0 | S26: 0 | T26: 0 | U26: 0 | V26: 0
F27: Unallocated | G27: Unallocated | H27: Unallocated | I27: Unallocated | J27: Unallocated | K27: Unallocated | L27: $dollars | M27: 2021-12-01 | O27: 0 | P27: 0 | Q27: 0 | R27: 0 | S27: 0 | T27: 0 | U27: 0 | V27: 0
F28: Total | L28: $dollars | M28: 2021-12-01 | O28: =SUM(O13:O26) -> 3265546.586 | P28: 2690861.899 | Q28: =SUM(Q13:Q27) -> 2921042.353 | R28: 2923363.011 | S28: 2911330.096 | T28: 2913648.591 | U28: 2000000.653 | V28: =SUM(Q28:U28) -> 13669384.7
E31: Incl Escalation of Labour Costs
F32: =I_MeterTypes[[#Headers],[Meter Type]] -> Meter Type | G32: =I_MeterTypes[[#Headers],[RIN Subcategory 1]] -> RIN Subcategory 1 | H32: =I_MeterTypes[[#Headers],[RIN Subcategory 2]] -> RIN Subcategory 2 | I32: =I_MeterTypes[[#Headers],[AER Type]] -> AER Type | J32: =I_MeterTypes[[#Headers],[RIN Subcategory 3]] -> RIN Subcategory 3 | K32: =I_MeterTypes[[#Headers],[Meter Code]] -> Meter Code | L32: Units | M32: Basis | O32: =O$12 -> 2022-23 | P32: =P$12 -> 2023-24 | Q32: 2024-25 | R32: 2025-26 | S32: 2026-27 | T32: 2027-28 | U32: 2028-29 | V32: Total
F33: =I_MeterTypes[Meter Type] -> Single phase Bottom connected (Smart) | G33: =I_MeterTypes[RIN Subcategory 1] -> Single phase meter population | H33: =I_MeterTypes[RIN Subcategory 2] -> Direct connected meter population | I33: =I_MeterTypes[AER Type] -> Single phase single element (Smart) | J33: =I_MeterTypes[RIN Subcategory 3] -> Type 4 | K33: =I_MeterTypes[Meter Code] -> SM 1ph DC | L33: $dollars | M33: =Basis_Capex -> 2021-12-01 | O33: =IF('Input | Meters Vols & Costs'!$P$77="Yes",'Input| Prices'!K$55,1)*O13 -> 870572.2136 | P33: =IF('Input | Meters Vols & Costs'!$P$77="Yes",'Input| Prices'!L$55,1)*P13 -> 676092.697 | Q33: =IF('Input | Meters Vols & Costs'!$P$77="Yes",'Input| Prices'!M$55,1)*Q13 -> 774396.2456 | R33: =IF('Input | Meters Vols & Costs'!$P$77="Yes",'Input| Prices'!N$55,1)*R13 -> 785817.572 | S33: =IF('Input | Meters Vols & Costs'!$P$77="Yes",'Input| Prices'!O$55,1)*S13 -> 793419.0921 | T33: =IF('Input | Meters Vols & Costs'!$P$77="Yes",'Input| Prices'!P$55,1)*T13 -> 800971.2693 | U33: =IF('Input | Meters Vols & Costs'!$P$77="Yes",'Input| Prices'!Q$55,1)*U13 -> 543418.269 | V33: =SUM(N33:U33) -> 5244687.359
F34: Single phase Plug in (Smart) | G34: Single phase meter population | H34: Direct connected meter population | I34: Single phase single element (Smart) | J34: Type 4 | K34: SM 1ph DC | L34: $dollars | M34: 2021-12-01 | O34: =IF('Input | Meters Vols & Costs'!$P$77="Yes",'Input| Prices'!K$55,1)*O14 -> 1149829.117 | P34: =IF('Input | Meters Vols & Costs'!$P$77="Yes",'Input| Prices'!L$55,1)*P14 -> 1015215.983 | Q34: =IF('Input | Meters Vols & Costs'!$P$77="Yes",'Input| Prices'!M$55,1)*Q14 -> 951171.3069 | R34: =IF('Input | Meters Vols & Costs'!$P$77="Yes",'Input| Prices'!N$55,1)*R14 -> 964773.714 | S34: =IF('Input | Meters Vols & Costs'!$P$77="Yes",'Input| Prices'!O$55,1)*S14 -> 973676.4854 | T34: =IF('Input | Meters Vols & Costs'!$P$77="Yes",'Input| Prices'!P$55,1)*T14 -> 982510.8766 | U34: =IF('Input | Meters Vols & Costs'!$P$77="Yes",'Input| Prices'!Q$55,1)*U14 -> 653515.0518 | V34: 6690692.535
F35: Single phase Two element (Smart) | G35: Single phase meter population | H35: Direct connected meter population | I35: Single phase two element with contactor (Smart) | J35: Type 4 | K35: SM 1ph DC | L35: $dollars | M35: 2021-12-01 | O35: =IF('Input | Meters Vols & Costs'!$P$77="Yes",'Input| Prices'!K$55,1)*O15 -> 81255.41691 | P35: =IF('Input | Meters Vols & Costs'!$P$77="Yes",'Input| Prices'!L$55,1)*P15 -> 61624.77587 | Q35: =IF('Input | Meters Vols & Costs'!$P$77="Yes",'Input| Prices'!M$55,1)*Q15 -> 21596.28748 | R35: =IF('Input | Meters Vols & Costs'!$P$77="Yes",'Input| Prices'!N$55,1)*R15 -> 21905.12932 | S35: =IF('Input | Meters Vols & Costs'!$P$77="Yes",'Input| Prices'!O$55,1)*S15 -> 5365.003481 | T35: =IF('Input | Meters Vols & Costs'!$P$77="Yes",'Input| Prices'!P$55,1)*T15 -> 5413.681395 | U35: =IF('Input | Meters Vols & Costs'!$P$77="Yes",'Input| Prices'!Q$55,1)*U15 -> 5470.088624 | V35: 202630.3831
F36: Three phase Whole Current (Smart) | G36: Multiphase meter population | H36: Direct connected meter population | I36: Three phase direct connected (smart) | J36: Type 3 or 4 | K36: SM 3ph DC | L36: $dollars | M36: 2021-12-01 | O36: =IF('Input | Meters Vols & Costs'!$P$77="Yes",'Input| Prices'!K$55,1)*O16 -> 767440.9866 | P36: =IF('Input | Meters Vols & Costs'!$P$77="Yes",'Input| Prices'!L$55,1)*P16 -> 599503.4874 | Q36: =IF('Input | Meters Vols & Costs'!$P$77="Yes",'Input| Prices'!M$55,1)*Q16 -> 881816.5559 | R36: =IF('Input | Meters Vols & Costs'!$P$77="Yes",'Input| Prices'!N$55,1)*R16 -> 894576.202 | S36: =IF('Input | Meters Vols & Costs'!$P$77="Yes",'Input| Prices'!O$55,1)*S16 -> 902989.015 | T36: =IF('Input | Meters Vols & Costs'!$P$77="Yes",'Input| Prices'!P$55,1)*T16 -> 911348.9296 | U36: =IF('Input | Meters Vols & Costs'!$P$77="Yes",'Input| Prices'!Q$55,1)*U16 -> 580564.5242 | V36: 5538239.701
F37: Three phase LVCT (Smart) | G37: Multiphase meter population | H37: Current transformer connected meter population | I37: Three phase current transformer connected (smart) | J37: Type 3 or 4 | K37: SM 3ph CT | L37: $dollars | M37: 2021-12-01 | O37: =IF('Input | Meters Vols & Costs'!$P$77="Yes",'Input| Prices'!K$55,1)*O17 -> 255968.607 | P37: =IF('Input | Meters Vols & Costs'!$P$77="Yes",'Input| Prices'!L$55,1)*P17 -> 201733.0426 | Q37: =IF('Input | Meters Vols & Costs'!$P$77="Yes",'Input| Prices'!M$55,1)*Q17 -> 222393.116 | R37: =IF('Input | Meters Vols & Costs'!$P$77="Yes",'Input| Prices'!N$55,1)*R17 -> 227174.3754 | S37: =IF('Input | Meters Vols & Costs'!$P$77="Yes",'Input| Prices'!O$55,1)*S17 -> 230875.3053 | T37: =IF('Input | Meters Vols & Costs'!$P$77="Yes",'Input| Prices'!P$55,1)*T17 -> 234586.367 | U37: =IF('Input | Meters Vols & Costs'!$P$77="Yes",'Input| Prices'!Q$55,1)*U17 -> 238661.3125 | V37: 1611392.126
F38: Three phase HV (Smart) | G38: Multiphase meter population | H38: Current transformer connected meter population | I38: Three phase voltage transformer and current transformer connected (smart) | J38: Type 2, 3 or 4 | K38: SM 3ph HV | L38: $dollars | M38: 2021-12-01 | O38: =IF('Input | Meters Vols & Costs'!$P$77="Yes",'Input| Prices'!K$55,1)*O18 -> 39419.00659 | P38: =IF('Input | Meters Vols & Costs'!$P$77="Yes",'Input| Prices'!L$55,1)*P18 -> 30759.05224 | Q38: =IF('Input | Meters Vols & Costs'!$P$77="Yes",'Input| Prices'!M$55,1)*Q18 -> 31926.48124 | R38: =IF('Input | Meters Vols & Costs'!$P$77="Yes",'Input| Prices'!N$55,1)*R18 -> 32609.61413 | S38: =IF('Input | Meters Vols & Costs'!$P$77="Yes",'Input| Prices'!O$55,1)*S18 -> 35381.7865 | T38: =IF('Input | Meters Vols & Costs'!$P$77="Yes",'Input| Prices'!P$55,1)*T18 -> 35930.28782 | U38: =IF('Input | Meters Vols & Costs'!$P$77="Yes",'Input| Prices'!Q$55,1)*U18 -> 38822.31853 | V38: 244848.547
F39: Single phase Bottom connected (Electronic) | G39: Single phase meter population | H39: Direct connected meter population | I39: Single phase single element (Accumulation) | J39: Type 6 | K39: ACC 1ph DC | L39: $dollars | M39: 2021-12-01 | O39: =IF('Input | Meters Vols & Costs'!$P$77="Yes",'Input| Prices'!K$55,1)*O19 -> 0 | P39: =IF('Input | Meters Vols & Costs'!$P$77="Yes",'Input| Prices'!L$55,1)*P19 -> 0 | Q39: =IF('Input | Meters Vols & Costs'!$P$77="Yes",'Input| Prices'!M$55,1)*Q19 -> 0 | R39: =IF('Input | Meters Vols & Costs'!$P$77="Yes",'Input| Prices'!N$55,1)*R19 -> 0 | S39: =IF('Input | Meters Vols & Costs'!$P$77="Yes",'Input| Prices'!O$55,1)*S19 -> 0 | T39: =IF('Input | Meters Vols & Costs'!$P$77="Yes",'Input| Prices'!P$55,1)*T19 -> 0 | U39: =IF('Input | Meters Vols & Costs'!$P$77="Yes",'Input| Prices'!Q$55,1)*U19 -> 0 | V39: 0
F40: Single phase Plug in (Electronic) | G40: Single phase meter population | H40: Direct connected meter population | I40: Single phase single element (Accumulation) | J40: Type 6 | K40: ACC 1ph DC | L40: $dollars | M40: 2021-12-01 | O40: =IF('Input | Meters Vols & Costs'!$P$77="Yes",'Input| Prices'!K$55,1)*O20 -> 0 | P40: =IF('Input | Meters Vols & Costs'!$P$77="Yes",'Input| Prices'!L$55,1)*P20 -> 0 | Q40: =IF('Input | Meters Vols & Costs'!$P$77="Yes",'Input| Prices'!M$55,1)*Q20 -> 0 | R40: =IF('Input | Meters Vols & Costs'!$P$77="Yes",'Input| Prices'!N$55,1)*R20 -> 0 | S40: =IF('Input | Meters Vols & Costs'!$P$77="Yes",'Input| Prices'!O$55,1)*S20 -> 0 | T40: =IF('Input | Meters Vols & Costs'!$P$77="Yes",'Input| Prices'!P$55,1)*T20 -> 0 | U40: =IF('Input | Meters Vols & Costs'!$P$77="Yes",'Input| Prices'!Q$55,1)*U20 -> 0 | V40: 0
F41: Single phase Two element (Electronic) | G41: Single phase meter population | H41: Direct connected meter population | I41: Single phase two element with contactor (Accumulation) | J41: Type 6 | K41: ACC 1ph DC | L41: $dollars | M41: 2021-12-01 | O41: =IF('Input | Meters Vols & Costs'!$P$77="Yes",'Input| Prices'!K$55,1)*O21 -> 0 | P41: =IF('Input | Meters Vols & Costs'!$P$77="Yes",'Input| Prices'!L$55,1)*P21 -> 0 | Q41: =IF('Input | Meters Vols & Costs'!$P$77="Yes",'Input| Prices'!M$55,1)*Q21 -> 0 | R41: =IF('Input | Meters Vols & Costs'!$P$77="Yes",'Input| Prices'!N$55,1)*R21 -> 0 | S41: =IF('Input | Meters Vols & Costs'!$P$77="Yes",'Input| Prices'!O$55,1)*S21 -> 0 | T41: =IF('Input | Meters Vols & Costs'!$P$77="Yes",'Input| Prices'!P$55,1)*T21 -> 0 | U41: =IF('Input | Meters Vols & Costs'!$P$77="Yes",'Input| Prices'!Q$55,1)*U21 -> 0 | V41: 0
F42: Three phase 3 X Single phase (Electronic) | G42: Multiphase meter population or single phase meter population | H42: Direct connected meter population | I42: Three phase direct connected (Accumulation) | J42: Type 6 | K42: ACC 3ph DC | L42: $dollars | M42: 2021-12-01 | O42: =IF('Input | Meters Vols & Costs'!$P$77="Yes",'Input| Prices'!K$55,1)*O22 -> 0 | P42: =IF('Input | Meters Vols & Costs'!$P$77="Yes",'Input| Prices'!L$55,1)*P22 -> 36648.62423 | Q42: =IF('Input | Meters Vols & Costs'!$P$77="Yes",'Input| Prices'!M$55,1)*Q22 -> 0 | R42: =IF('Input | Meters Vols & Costs'!$P$77="Yes",'Input| Prices'!N$55,1)*R22 -> 0 | S42: =IF('Input | Meters Vols & Costs'!$P$77="Yes",'Input| Prices'!O$55,1)*S22 -> 0 | T42: =IF('Input | Meters Vols & Costs'!$P$77="Yes",'Input| Prices'!P$55,1)*T22 -> 0 | U42: =IF('Input | Meters Vols & Costs'!$P$77="Yes",'Input| Prices'!Q$55,1)*U22 -> 0 | V42: 36648.62423
F43: Three phase Whole Current (Electronic) | G43: Multiphase meter population | H43: Direct connected meter population | I43: Three phase direct connected (Accumulation) | J43: Type 6 | K43: ACC 3ph DC | L43: $dollars | M43: 2021-12-01 | O43: =IF('Input | Meters Vols & Costs'!$P$77="Yes",'Input| Prices'!K$55,1)*O23 -> 0 | P43: =IF('Input | Meters Vols & Costs'!$P$77="Yes",'Input| Prices'!L$55,1)*P23 -> 0 | Q43: =IF('Input | Meters Vols & Costs'!$P$77="Yes",'Input| Prices'!M$55,1)*Q23 -> 0 | R43: =IF('Input | Meters Vols & Costs'!$P$77="Yes",'Input| Prices'!N$55,1)*R23 -> 0 | S43: =IF('Input | Meters Vols & Costs'!$P$77="Yes",'Input| Prices'!O$55,1)*S23 -> 0 | T43: =IF('Input | Meters Vols & Costs'!$P$77="Yes",'Input| Prices'!P$55,1)*T23 -> 0 | U43: =IF('Input | Meters Vols & Costs'!$P$77="Yes",'Input| Prices'!Q$55,1)*U23 -> 0 | V43: 0
F44: Three phase LVCT (Electronic) | G44: Multiphase meter population | H44: Current transformer connected meter population | I44: Three phase current transformer connected (Accumulation) | J44: Type 6 | K44: ACC 3ph CT | L44: $dollars | M44: 2021-12-01 | O44: =IF('Input | Meters Vols & Costs'!$P$77="Yes",'Input| Prices'!K$55,1)*O24 -> 0 | P44: =IF('Input | Meters Vols & Costs'!$P$77="Yes",'Input| Prices'!L$55,1)*P24 -> 0 | Q44: =IF('Input | Meters Vols & Costs'!$P$77="Yes",'Input| Prices'!M$55,1)*Q24 -> 0 | R44: =IF('Input | Meters Vols & Costs'!$P$77="Yes",'Input| Prices'!N$55,1)*R24 -> 0 | S44: =IF('Input | Meters Vols & Costs'!$P$77="Yes",'Input| Prices'!O$55,1)*S24 -> 0 | T44: =IF('Input | Meters Vols & Costs'!$P$77="Yes",'Input| Prices'!P$55,1)*T24 -> 0 | U44: =IF('Input | Meters Vols & Costs'!$P$77="Yes",'Input| Prices'!Q$55,1)*U24 -> 0 | V44: 0
F45: Three phase HV (Electronic) | G45: Multiphase meter population | H45: Current transformer connected meter population | I45: Three phase voltage transformer and current transformer connected (Accumulation) | J45: Type 6 | K45: ACC 3ph HV | L45: $dollars | M45: 2021-12-01 | O45: =IF('Input | Meters Vols & Costs'!$P$77="Yes",'Input| Prices'!K$55,1)*O25 -> 0 | P45: =IF('Input | Meters Vols & Costs'!$P$77="Yes",'Input| Prices'!L$55,1)*P25 -> 0 | Q45: =IF('Input | Meters Vols & Costs'!$P$77="Yes",'Input| Prices'!M$55,1)*Q25 -> 0 | R45: =IF('Input | Meters Vols & Costs'!$P$77="Yes",'Input| Prices'!N$55,1)*R25 -> 0 | S45: =IF('Input | Meters Vols & Costs'!$P$77="Yes",'Input| Prices'!O$55,1)*S25 -> 0 | T45: =IF('Input | Meters Vols & Costs'!$P$77="Yes",'Input| Prices'!P$55,1)*T25 -> 0 | U45: =IF('Input | Meters Vols & Costs'!$P$77="Yes",'Input| Prices'!Q$55,1)*U25 -> 0 | V45: 0
F46: Mechanical Meters | G46: Unallocated | H46: Unallocated | I46: Unallocated | J46: Type 6 | K46: Unallocated | L46: $dollars | M46: 2021-12-01 | O46: =IF('Input | Meters Vols & Costs'!$P$77="Yes",'Input| Prices'!K$55,1)*O26 -> 0 | P46: =IF('Input | Meters Vols & Costs'!$P$77="Yes",'Input| Prices'!L$55,1)*P26 -> 0 | Q46: =IF('Input | Meters Vols & Costs'!$P$77="Yes",'Input| Prices'!M$55,1)*Q26 -> 0 | R46: =IF('Input | Meters Vols & Costs'!$P$77="Yes",'Input| Prices'!N$55,1)*R26 -> 0 | S46: =IF('Input | Meters Vols & Costs'!$P$77="Yes",'Input| Prices'!O$55,1)*S26 -> 0 | T46: =IF('Input | Meters Vols & Costs'!$P$77="Yes",'Input| Prices'!P$55,1)*T26 -> 0 | U46: =IF('Input | Meters Vols & Costs'!$P$77="Yes",'Input| Prices'!Q$55,1)*U26 -> 0 | V46: 0
F47: Unallocated | G47: Unallocated | H47: Unallocated | I47: Unallocated | J47: Unallocated | K47: Unallocated | L47: $dollars | M47: 2021-12-01 | O47: =IF('Input | Meters Vols & Costs'!$P$77="Yes",'Input| Prices'!K$55,1)*O27 -> 0 | P47: =IF('Input | Meters Vols & Costs'!$P$77="Yes",'Input| Prices'!L$55,1)*P27 -> 0 | Q47: =IF('Input | Meters Vols & Costs'!$P$77="Yes",'Input| Prices'!M$55,1)*Q27 -> 0 | R47: =IF('Input | Meters Vols & Costs'!$P$77="Yes",'Input| Prices'!N$55,1)*R27 -> 0 | S47: =IF('Input | Meters Vols & Costs'!$P$77="Yes",'Input| Prices'!O$55,1)*S27 -> 0 | T47: =IF('Input | Meters Vols & Costs'!$P$77="Yes",'Input| Prices'!P$55,1)*T27 -> 0 | U47: =IF('Input | Meters Vols & Costs'!$P$77="Yes",'Input| Prices'!Q$55,1)*U27 -> 0 | V47: 0
F48: Total | L48: $dollars | M48: 2021-12-01 | O48: =SUM(O33:O47) -> 3164485.347 | P48: 2621577.663 | Q48: 2883299.993 | R48: 2926856.607 | S48: 2941706.688 | T48: 2970761.412 | U48: 2060451.565 | V48: =SUM(Q48:U48) -> 13783076.26 | X48: =(V48=SUM('Calc | Meters Detail'!V28,'Calc | Meters Detail'!V48,'Calc | Meters Detail'!V68,'Calc | Meters Detail'!V88,'Calc | Meters Detail'!V108,'Calc | Meters Detail'!V128,'Calc | Meters Detail'!V148,'Calc | Meters Detail'!V168,'Calc | Meters Detail'!V188,'Calc | Meters Detail'!V208))/1 -> 1
O49: =(O48='Calc | Meters Detail'!O228)/1 -> 1 | P49: =(P48='Calc | Meters Detail'!P228)/1 -> 1 | Q49: =(Q48='Calc | Meters Detail'!Q228)/1 -> 1 | R49: =(ROUND(R48-'Calc | Meters Detail'!R228,4)=0)/1 -> 1 | S49: =(S48='Calc | Meters Detail'!S228)/1 -> 1 | T49: =(T48='Calc | Meters Detail'!T228)/1 -> 1 | U49: =(U48='Calc | Meters Detail'!U228)/1 -> 1 | V49: =(V48='Calc | Meters Detail'!V228)/1 -> 1 | X49: =PRODUCT(O49:U49) -> 1
R50: Note: updated to add rounding to avoid it flagging an immaterial error
D51: ii | E51: Meters - Non-Labour Component
E52: Unescalated
F53: =I_MeterTypes[[#Headers],[Meter Type]] -> Meter Type | G53: =I_MeterTypes[[#Headers],[RIN Subcategory 1]] -> RIN Subcategory 1 | H53: =I_MeterTypes[[#Headers],[RIN Subcategory 2]] -> RIN Subcategory 2 | I53: =I_MeterTypes[[#Headers],[AER Type]] -> AER Type | J53: =I_MeterTypes[[#Headers],[RIN Subcategory 3]] -> RIN Subcategory 3 | K53: =I_MeterTypes[[#Headers],[Meter Code]] -> Meter Code | L53: Units | M53: Basis | O53: =O$12 -> 2022-23 | P53: =P$12 -> 2023-24 | Q53: 2024-25 | R53: 2025-26 | S53: 2026-27 | T53: 2027-28 | U53: 2028-29 | V53: Total
F54: =I_MeterTypes[Meter Type] -> Single phase Bottom connected (Smart) | G54: =I_MeterTypes[RIN Subcategory 1] -> Single phase meter population | H54: =I_MeterTypes[RIN Subcategory 2] -> Direct connected meter population | I54: =I_MeterTypes[AER Type] -> Single phase single element (Smart) | J54: =I_MeterTypes[RIN Subcategory 3] -> Type 4 | K54: =I_MeterTypes[Meter Code] -> SM 1ph DC | L54: $dollars | M54: =Basis_Capex -> 2021-12-01 | O54: =ICM_AddMetReq*ICM_UnitCost -> 532270.2546 | P54: 411158.7404 | Q54: 464821.1303 | R54: 465026.4314 | S54: 465231.7325 | T54: 465437.0336 | U54: 312519.0986 | V54: =SUM(N54:U54) -> 3116464.421
F55: Single phase Plug in (Smart) | G55: Single phase meter population | H55: Direct connected meter population | I55: Single phase single element (Smart) | J55: Type 4 | K55: SM 1ph DC | L55: $dollars | M55: 2021-12-01 | O55: 1272840.078 | P55: 1117827.714 | Q55: 1033699.982 | R55: 1033699.982 | S55: 1033699.982 | T55: 1033699.982 | U55: 680473.2654 | V55: 7205940.987
F56: Single phase Two element (Smart) | G56: Single phase meter population | H56: Direct connected meter population | I56: Single phase two element with contactor (Smart) | J56: Type 4 | K56: SM 1ph DC | L56: $dollars | M56: 2021-12-01 | O56: 43417.06447 | P56: 32752.11672 | Q56: 11328.76223 | R56: 11328.76223 | S56: 2749.270228 | T56: 2749.270228 | U56: 2749.270228 | V56: 107074.5163
F57: Three phase Whole Current (Smart) | G57: Multiphase meter population | H57: Direct connected meter population | I57: Three phase direct connected (smart) | J57: Type 3 or 4 | K57: SM 3ph DC | L57: $dollars | M57: 2021-12-01 | O57: 508999.7251 | P57: 395494.2362 | Q57: 574177.3212 | R57: 574273.0102 | S57: 574373.3916 | T57: 574478.5907 | U57: 362191.276 | V57: 3563987.551
F58: Three phase LVCT (Smart) | G58: Multiphase meter population | H58: Current transformer connected meter population | I58: Three phase current transformer connected (smart) | J58: Type 3 or 4 | K58: SM 3ph CT | L58: $dollars | M58: 2021-12-01 | O58: 80177.2316 | P58: 62851.73595 | Q58: 68388.16012 | R58: 68873.5076 | S58: 69355.53431 | T58: 69836.70228 | U58: 70317.15794 | V58: 489800.0298
F59: Three phase HV (Smart) | G59: Multiphase meter population | H59: Current transformer connected meter population | I59: Three phase voltage transformer and current transformer connected (smart) | J59: Type 2, 3 or 4 | K59: SM 3ph HV | L59: $dollars | M59: 2021-12-01 | O59: 10352.05574 | P59: 8034.701801 | Q59: 8231.276882 | R59: 8288.865513 | S59: 8911.277573 | T59: 8968.054215 | U59: 9589.971755 | V59: 62376.20348
F60: Single phase Bottom connected (Electronic) | G60: Single phase meter population | H60: Direct connected meter population | I60: Single phase single element (Accumulation) | J60: Type 6 | K60: ACC 1ph DC | L60: $dollars | M60: 2021-12-01 | O60: 0 | P60: 0 | Q60: 0 | R60: 0 | S60: 0 | T60: 0 | U60: 0 | V60: 0
F61: Single phase Plug in (Electronic) | G61: Single phase meter population | H61: Direct connected meter population | I61: Single phase single element (Accumulation) | J61: Type 6 | K61: ACC 1ph DC | L61: $dollars | M61: 2021-12-01 | O61: 0 | P61: 0 | Q61: 0 | R61: 0 | S61: 0 | T61: 0 | U61: 0 | V61: 0
F62: Single phase Two element (Electronic) | G62: Single phase meter population | H62: Direct connected meter population | I62: Single phase two element with contactor (Accumulation) | J62: Type 6 | K62: ACC 1ph DC | L62: $dollars | M62: 2021-12-01 | O62: 0 | P62: 0 | Q62: 0 | R62: 0 | S62: 0 | T62: 0 | U62: 0 | V62: 0
F63: Three phase 3 X Single phase (Electronic) | G63: Multiphase meter population or single phase meter population | H63: Direct connected meter population | I63: Three phase direct connected (Accumulation) | J63: Type 6 | K63: ACC 3ph DC | L63: $dollars | M63: 2021-12-01 | O63: 0 | P63: 21903.72764 | Q63: 0 | R63: 0 | S63: 0 | T63: 0 | U63: 0 | V63: 21903.72764
F64: Three phase Whole Current (Electronic) | G64: Multiphase meter population | H64: Direct connected meter population | I64: Three phase direct connected (Accumulation) | J64: Type 6 | K64: ACC 3ph DC | L64: $dollars | M64: 2021-12-01 | O64: 0 | P64: 0 | Q64: 0 | R64: 0 | S64: 0 | T64: 0 | U64: 0 | V64: 0
F65: Three phase LVCT (Electronic) | G65: Multiphase meter population | H65: Current transformer connected meter population | I65: Three phase current transformer connected (Accumulation) | J65: Type 6 | K65: ACC 3ph CT | L65: $dollars | M65: 2021-12-01 | O65: 0 | P65: 0 | Q65: 0 | R65: 0 | S65: 0 | T65: 0 | U65: 0 | V65: 0
F66: Three phase HV (Electronic) | G66: Multiphase meter population | H66: Current transformer connected meter population | I66: Three phase voltage transformer and current transformer connected (Accumulation) | J66: Type 6 | K66: ACC 3ph HV | L66: $dollars | M66: 2021-12-01 | O66: 0 | P66: 0 | Q66: 0 | R66: 0 | S66: 0 | T66: 0 | U66: 0 | V66: 0
F67: Mechanical Meters | G67: Unallocated | H67: Unallocated | I67: Unallocated | J67: Type 6 | K67: Unallocated | L67: $dollars | M67: 2021-12-01 | O67: 0 | P67: 0 | Q67: 0 | R67: 0 | S67: 0 | T67: 0 | U67: 0 | V67: 0
F68: Unallocated | G68: Unallocated | H68: Unallocated | I68: Unallocated | J68: Unallocated | K68: Unallocated | L68: $dollars | M68: 2021-12-01 | O68: 0 | P68: 0 | Q68: 0 | R68: 0 | S68: 0 | T68: 0 | U68: 0 | V68: 0
F69: Total | L69: $dollars | M69: 2021-12-01 | O69: =SUM(O54:O68) -> 2448056.409 | P69: 2050022.973 | Q69: 2160646.633 | R69: 2161490.559 | S69: 2154321.188 | T69: 2155169.633 | U69: 1437840.04 | V69: =SUM(Q69:U69) -> 10069468.05
D71: ii | E71: Meters - Non-Labour Component
E72: Incl Escalation of Non-Labour Costs
F73: =I_MeterTypes[[#Headers],[Meter Type]] -> Meter Type | G73: =I_MeterTypes[[#Headers],[RIN Subcategory 1]] -> RIN Subcategory 1 | H73: =I_MeterTypes[[#Headers],[RIN Subcategory 2]] -> RIN Subcategory 2 | I73: =I_MeterTypes[[#Headers],[AER Type]] -> AER Type | J73: =I_MeterTypes[[#Headers],[RIN Subcategory 3]] -> RIN Subcategory 3 | K73: =I_MeterTypes[[#Headers],[Meter Code]] -> Meter Code | L73: Units | M73: Basis | O73: =O$12 -> 2022-23 | P73: =P$12 -> 2023-24 | Q73: 2024-25 | R73: 2025-26 | S73: 2026-27 | T73: 2027-28 | U73: 2028-29 | V73: Total
F74: =I_MeterTypes[Meter Type] -> Single phase Bottom connected (Smart) | G74: =I_MeterTypes[RIN Subcategory 1] -> Single phase meter population | H74: =I_MeterTypes[RIN Subcategory 2] -> Direct connected meter population | I74: =I_MeterTypes[AER Type] -> Single phase single element (Smart) | J74: =I_MeterTypes[RIN Subcategory 3] -> Type 4 | K74: =I_MeterTypes[Meter Code] -> SM 1ph DC | L74: $dollars | M74: =Basis_Capex -> 2021-12-01 | O74: =IF('Input | Meters Vols & Costs'!$P$142="Yes",'Input| Prices'!K$59,1)*O54 -> 532270.2546 | P74: =IF('Input | Meters Vols & Costs'!$P$142="Yes",'Input| Prices'!L$59,1)*P54 -> 411158.7404 | Q74: =IF('Input | Meters Vols & Costs'!$P$142="Yes",'Input| Prices'!M$59,1)*Q54 -> 464821.1303 | R74: =IF('Input | Meters Vols & Costs'!$P$142="Yes",'Input| Prices'!N$59,1)*R54 -> 465026.4314 | S74: =IF('Input | Meters Vols & Costs'!$P$142="Yes",'Input| Prices'!O$59,1)*S54 -> 465231.7325 | T74: =IF('Input | Meters Vols & Costs'!$P$142="Yes",'Input| Prices'!P$59,1)*T54 -> 465437.0336 | U74: =IF('Input | Meters Vols & Costs'!$P$142="Yes",'Input| Prices'!Q$59,1)*U54 -> 312519.0986 | V74: =SUM(N74:U74) -> 3116464.421
F75: Single phase Plug in (Smart) | G75: Single phase meter population | H75: Direct connected meter population | I75: Single phase single element (Smart) | J75: Type 4 | K75: SM 1ph DC | L75: $dollars | M75: 2021-12-01 | O75: =IF('Input | Meters Vols & Costs'!$P$142="Yes",'Input| Prices'!K$59,1)*O55 -> 1272840.078 | P75: =IF('Input | Meters Vols & Costs'!$P$142="Yes",'Input| Prices'!L$59,1)*P55 -> 1117827.714 | Q75: =IF('Input | Meters Vols & Costs'!$P$142="Yes",'Input| Prices'!M$59,1)*Q55 -> 1033699.982 | R75: =IF('Input | Meters Vols & Costs'!$P$142="Yes",'Input| Prices'!N$59,1)*R55 -> 1033699.982 | S75: =IF('Input | Meters Vols & Costs'!$P$142="Yes",'Input| Prices'!O$59,1)*S55 -> 1033699.982 | T75: =IF('Input | Meters Vols & Costs'!$P$142="Yes",'Input| Prices'!P$59,1)*T55 -> 1033699.982 | U75: =IF('Input | Meters Vols & Costs'!$P$142="Yes",'Input| Prices'!Q$59,1)*U55 -> 680473.2654 | V75: 7205940.987
F76: Single phase Two element (Smart) | G76: Single phase meter population | H76: Direct connected meter population | I76: Single phase two element with contactor (Smart) | J76: Type 4 | K76: SM 1ph DC | L76: $dollars | M76: 2021-12-01 | O76: =IF('Input | Meters Vols & Costs'!$P$142="Yes",'Input| Prices'!K$59,1)*O56 -> 43417.06447 | P76: =IF('Input | Meters Vols & Costs'!$P$142="Yes",'Input| Prices'!L$59,1)*P56 -> 32752.11672 | Q76: =IF('Input | Meters Vols & Costs'!$P$142="Yes",'Input| Prices'!M$59,1)*Q56 -> 11328.76223 | R76: =IF('Input | Meters Vols & Costs'!$P$142="Yes",'Input| Prices'!N$59,1)*R56 -> 11328.76223 | S76: =IF('Input | Meters Vols & Costs'!$P$142="Yes",'Input| Prices'!O$59,1)*S56 -> 2749.270228 | T76: =IF('Input | Meters Vols & Costs'!$P$142="Yes",'Input| Prices'!P$59,1)*T56 -> 2749.270228 | U76: =IF('Input | Meters Vols & Costs'!$P$142="Yes",'Input| Prices'!Q$59,1)*U56 -> 2749.270228 | V76: 107074.5163
F77: Three phase Whole Current (Smart) | G77: Multiphase meter population | H77: Direct connected meter population | I77: Three phase direct connected (smart) | J77: Type 3 or 4 | K77: SM 3ph DC | L77: $dollars | M77: 2021-12-01 | O77: =IF('Input | Meters Vols & Costs'!$P$142="Yes",'Input| Prices'!K$59,1)*O57 -> 508999.7251 | P77: =IF('Input | Meters Vols & Costs'!$P$142="Yes",'Input| Prices'!L$59,1)*P57 -> 395494.2362 | Q77: =IF('Input | Meters Vols & Costs'!$P$142="Yes",'Input| Prices'!M$59,1)*Q57 -> 574177.3212 | R77: =IF('Input | Meters Vols & Costs'!$P$142="Yes",'Input| Prices'!N$59,1)*R57 -> 574273.0102 | S77: =IF('Input | Meters Vols & Costs'!$P$142="Yes",'Input| Prices'!O$59,1)*S57 -> 574373.3916 | T77: =IF('Input | Meters Vols & Costs'!$P$142="Yes",'Input| Prices'!P$59,1)*T57 -> 574478.5907 | U77: =IF('Input | Meters Vols & Costs'!$P$142="Yes",'Input| Prices'!Q$59,1)*U57 -> 362191.276 | V77: 3563987.551
F78: Three phase LVCT (Smart) | G78: Multiphase meter population | H78: Current transformer connected meter population | I78: Three phase current transformer connected (smart) | J78: Type 3 or 4 | K78: SM 3ph CT | L78: $dollars | M78: 2021-12-01 | O78: =IF('Input | Meters Vols & Costs'!$P$142="Yes",'Input| Prices'!K$59,1)*O58 -> 80177.2316 | P78: =IF('Input | Meters Vols & Costs'!$P$142="Yes",'Input| Prices'!L$59,1)*P58 -> 62851.73595 | Q78: =IF('Input | Meters Vols & Costs'!$P$142="Yes",'Input| Prices'!M$59,1)*Q58 -> 68388.16012 | R78: =IF('Input | Meters Vols & Costs'!$P$142="Yes",'Input| Prices'!N$59,1)*R58 -> 68873.5076 | S78: =IF('Input | Meters Vols & Costs'!$P$142="Yes",'Input| Prices'!O$59,1)*S58 -> 69355.53431 | T78: =IF('Input | Meters Vols & Costs'!$P$142="Yes",'Input| Prices'!P$59,1)*T58 -> 69836.70228 | U78: =IF('Input | Meters Vols & Costs'!$P$142="Yes",'Input| Prices'!Q$59,1)*U58 -> 70317.15794 | V78: 489800.0298
F79: Three phase HV (Smart) | G79: Multiphase meter population | H79: Current transformer connected meter population | I79: Three phase voltage transformer and current transformer connected (smart) | J79: Type 2, 3 or 4 | K79: SM 3ph HV | L79: $dollars | M79: 2021-12-01 | O79: =IF('Input | Meters Vols & Costs'!$P$142="Yes",'Input| Prices'!K$59,1)*O59 -> 10352.05574 | P79: =IF('Input | Meters Vols & Costs'!$P$142="Yes",'Input| Prices'!L$59,1)*P59 -> 8034.701801 | Q79: =IF('Input | Meters Vols & Costs'!$P$142="Yes",'Input| Prices'!M$59,1)*Q59 -> 8231.276882 | R79: =IF('Input | Meters Vols & Costs'!$P$142="Yes",'Input| Prices'!N$59,1)*R59 -> 8288.865513 | S79: =IF('Input | Meters Vols & Costs'!$P$142="Yes",'Input| Prices'!O$59,1)*S59 -> 8911.277573 | T79: =IF('Input | Meters Vols & Costs'!$P$142="Yes",'Input| Prices'!P$59,1)*T59 -> 8968.054215 | U79: =IF('Input | Meters Vols & Costs'!$P$142="Yes",'Input| Prices'!Q$59,1)*U59 -> 9589.971755 | V79: 62376.20348
F80: Single phase Bottom connected (Electronic) | G80: Single phase meter population | H80: Direct connected meter population | I80: Single phase single element (Accumulation) | J80: Type 6 | K80: ACC 1ph DC | L80: $dollars | M80: 2021-12-01 | O80: =IF('Input | Meters Vols & Costs'!$P$142="Yes",'Input| Prices'!K$59,1)*O60 -> 0 | P80: =IF('Input | Meters Vols & Costs'!$P$142="Yes",'Input| Prices'!L$59,1)*P60 -> 0 | Q80: =IF('Input | Meters Vols & Costs'!$P$142="Yes",'Input| Prices'!M$59,1)*Q60 -> 0 | R80: =IF('Input | Meters Vols & Costs'!$P$142="Yes",'Input| Prices'!N$59,1)*R60 -> 0 | S80: =IF('Input | Meters Vols & Costs'!$P$142="Yes",'Input| Prices'!O$59,1)*S60 -> 0 | T80: =IF('Input | Meters Vols & Costs'!$P$142="Yes",'Input| Prices'!P$59,1)*T60 -> 0 | U80: =IF('Input | Meters Vols & Costs'!$P$142="Yes",'Input| Prices'!Q$59,1)*U60 -> 0 | V80: 0
F81: Single phase Plug in (Electronic) | G81: Single phase meter population | H81: Direct connected meter population | I81: Single phase single element (Accumulation) | J81: Type 6 | K81: ACC 1ph DC | L81: $dollars | M81: 2021-12-01 | O81: =IF('Input | Meters Vols & Costs'!$P$142="Yes",'Input| Prices'!K$59,1)*O61 -> 0 | P81: =IF('Input | Meters Vols & Costs'!$P$142="Yes",'Input| Prices'!L$59,1)*P61 -> 0 | Q81: =IF('Input | Meters Vols & Costs'!$P$142="Yes",'Input| Prices'!M$59,1)*Q61 -> 0 | R81: =IF('Input | Meters Vols & Costs'!$P$142="Yes",'Input| Prices'!N$59,1)*R61 -> 0 | S81: =IF('Input | Meters Vols & Costs'!$P$142="Yes",'Input| Prices'!O$59,1)*S61 -> 0 | T81: =IF('Input | Meters Vols & Costs'!$P$142="Yes",'Input| Prices'!P$59,1)*T61 -> 0 | U81: =IF('Input | Meters Vols & Costs'!$P$142="Yes",'Input| Prices'!Q$59,1)*U61 -> 0 | V81: 0
F82: Single phase Two element (Electronic) | G82: Single phase meter population | H82: Direct connected meter population | I82: Single phase two element with contactor (Accumulation) | J82: Type 6 | K82: ACC 1ph DC | L82: $dollars | M82: 2021-12-01 | O82: =IF('Input | Meters Vols & Costs'!$P$142="Yes",'Input| Prices'!K$59,1)*O62 -> 0 | P82: =IF('Input | Meters Vols & Costs'!$P$142="Yes",'Input| Prices'!L$59,1)*P62 -> 0 | Q82: =IF('Input | Meters Vols & Costs'!$P$142="Yes",'Input| Prices'!M$59,1)*Q62 -> 0 | R82: =IF('Input | Meters Vols & Costs'!$P$142="Yes",'Input| Prices'!N$59,1)*R62 -> 0 | S82: =IF('Input | Meters Vols & Costs'!$P$142="Yes",'Input| Prices'!O$59,1)*S62 -> 0 | T82: =IF('Input | Meters Vols & Costs'!$P$142="Yes",'Input| Prices'!P$59,1)*T62 -> 0 | U82: =IF('Input | Meters Vols & Costs'!$P$142="Yes",'Input| Prices'!Q$59,1)*U62 -> 0 | V82: 0
F83: Three phase 3 X Single phase (Electronic) | G83: Multiphase meter population or single phase meter population | H83: Direct connected meter population | I83: Three phase direct connected (Accumulation) | J83: Type 6 | K83: ACC 3ph DC | L83: $dollars | M83: 2021-12-01 | O83: =IF('Input | Meters Vols & Costs'!$P$142="Yes",'Input| Prices'!K$59,1)*O63 -> 0 | P83: =IF('Input | Meters Vols & Costs'!$P$142="Yes",'Input| Prices'!L$59,1)*P63 -> 21903.72764 | Q83: =IF('Input | Meters Vols & Costs'!$P$142="Yes",'Input| Prices'!M$59,1)*Q63 -> 0 | R83: =IF('Input | Meters Vols & Costs'!$P$142="Yes",'Input| Prices'!N$59,1)*R63 -> 0 | S83: =IF('Input | Meters Vols & Costs'!$P$142="Yes",'Input| Prices'!O$59,1)*S63 -> 0 | T83: =IF('Input | Meters Vols & Costs'!$P$142="Yes",'Input| Prices'!P$59,1)*T63 -> 0 | U83: =IF('Input | Meters Vols & Costs'!$P$142="Yes",'Input| Prices'!Q$59,1)*U63 -> 0 | V83: 21903.72764
F84: Three phase Whole Current (Electronic) | G84: Multiphase meter population | H84: Direct connected meter population | I84: Three phase direct connected (Accumulation) | J84: Type 6 | K84: ACC 3ph DC | L84: $dollars | M84: 2021-12-01 | O84: =IF('Input | Meters Vols & Costs'!$P$142="Yes",'Input| Prices'!K$59,1)*O64 -> 0 | P84: =IF('Input | Meters Vols & Costs'!$P$142="Yes",'Input| Prices'!L$59,1)*P64 -> 0 | Q84: =IF('Input | Meters Vols & Costs'!$P$142="Yes",'Input| Prices'!M$59,1)*Q64 -> 0 | R84: =IF('Input | Meters Vols & Costs'!$P$142="Yes",'Input| Prices'!N$59,1)*R64 -> 0 | S84: =IF('Input | Meters Vols & Costs'!$P$142="Yes",'Input| Prices'!O$59,1)*S64 -> 0 | T84: =IF('Input | Meters Vols & Costs'!$P$142="Yes",'Input| Prices'!P$59,1)*T64 -> 0 | U84: =IF('Input | Meters Vols & Costs'!$P$142="Yes",'Input| Prices'!Q$59,1)*U64 -> 0 | V84: 0
F85: Three phase LVCT (Electronic) | G85: Multiphase meter population | H85: Current transformer connected meter population | I85: Three phase current transformer connected (Accumulation) | J85: Type 6 | K85: ACC 3ph CT | L85: $dollars | M85: 2021-12-01 | O85: =IF('Input | Meters Vols & Costs'!$P$142="Yes",'Input| Prices'!K$59,1)*O65 -> 0 | P85: =IF('Input | Meters Vols & Costs'!$P$142="Yes",'Input| Prices'!L$59,1)*P65 -> 0 | Q85: =IF('Input | Meters Vols & Costs'!$P$142="Yes",'Input| Prices'!M$59,1)*Q65 -> 0 | R85: =IF('Input | Meters Vols & Costs'!$P$142="Yes",'Input| Prices'!N$59,1)*R65 -> 0 | S85: =IF('Input | Meters Vols & Costs'!$P$142="Yes",'Input| Prices'!O$59,1)*S65 -> 0 | T85: =IF('Input | Meters Vols & Costs'!$P$142="Yes",'Input| Prices'!P$59,1)*T65 -> 0 | U85: =IF('Input | Meters Vols & Costs'!$P$142="Yes",'Input| Prices'!Q$59,1)*U65 -> 0 | V85: 0
F86: Three phase HV (Electronic) | G86: Multiphase meter population | H86: Current transformer connected meter population | I86: Three phase voltage transformer and current transformer connected (Accumulation) | J86: Type 6 | K86: ACC 3ph HV | L86: $dollars | M86: 2021-12-01 | O86: =IF('Input | Meters Vols & Costs'!$P$142="Yes",'Input| Prices'!K$59,1)*O66 -> 0 | P86: =IF('Input | Meters Vols & Costs'!$P$142="Yes",'Input| Prices'!L$59,1)*P66 -> 0 | Q86: =IF('Input | Meters Vols & Costs'!$P$142="Yes",'Input| Prices'!M$59,1)*Q66 -> 0 | R86: =IF('Input | Meters Vols & Costs'!$P$142="Yes",'Input| Prices'!N$59,1)*R66 -> 0 | S86: =IF('Input | Meters Vols & Costs'!$P$142="Yes",'Input| Prices'!O$59,1)*S66 -> 0 | T86: =IF('Input | Meters Vols & Costs'!$P$142="Yes",'Input| Prices'!P$59,1)*T66 -> 0 | U86: =IF('Input | Meters Vols & Costs'!$P$142="Yes",'Input| Prices'!Q$59,1)*U66 -> 0 | V86: 0
F87: Mechanical Meters | G87: Unallocated | H87: Unallocated | I87: Unallocated | J87: Type 6 | K87: Unallocated | L87: $dollars | M87: 2021-12-01 | O87: =IF('Input | Meters Vols & Costs'!$P$142="Yes",'Input| Prices'!K$59,1)*O67 -> 0 | P87: =IF('Input | Meters Vols & Costs'!$P$142="Yes",'Input| Prices'!L$59,1)*P67 -> 0 | Q87: =IF('Input | Meters Vols & Costs'!$P$142="Yes",'Input| Prices'!M$59,1)*Q67 -> 0 | R87: =IF('Input | Meters Vols & Costs'!$P$142="Yes",'Input| Prices'!N$59,1)*R67 -> 0 | S87: =IF('Input | Meters Vols & Costs'!$P$142="Yes",'Input| Prices'!O$59,1)*S67 -> 0 | T87: =IF('Input | Meters Vols & Costs'!$P$142="Yes",'Input| Prices'!P$59,1)*T67 -> 0 | U87: =IF('Input | Meters Vols & Costs'!$P$142="Yes",'Input| Prices'!Q$59,1)*U67 -> 0 | V87: 0
F88: Unallocated | G88: Unallocated | H88: Unallocated | I88: Unallocated | J88: Unallocated | K88: Unallocated | L88: $dollars | M88: 2021-12-01 | O88: =IF('Input | Meters Vols & Costs'!$P$142="Yes",'Input| Prices'!K$59,1)*O68 -> 0 | P88: =IF('Input | Meters Vols & Costs'!$P$142="Yes",'Input| Prices'!L$59,1)*P68 -> 0 | Q88: =IF('Input | Meters Vols & Costs'!$P$142="Yes",'Input| Prices'!M$59,1)*Q68 -> 0 | R88: =IF('Input | Meters Vols & Costs'!$P$142="Yes",'Input| Prices'!N$59,1)*R68 -> 0 | S88: =IF('Input | Meters Vols & Costs'!$P$142="Yes",'Input| Prices'!O$59,1)*S68 -> 0 | T88: =IF('Input | Meters Vols & Costs'!$P$142="Yes",'Input| Prices'!P$59,1)*T68 -> 0 | U88: =IF('Input | Meters Vols & Costs'!$P$142="Yes",'Input| Prices'!Q$59,1)*U68 -> 0 | V88: 0
F89: Total | L89: $dollars | M89: 2021-12-01 | O89: =SUM(O74:O88) -> 2448056.409 | P89: 2050022.973 | Q89: 2160646.633 | R89: 2161490.559 | S89: 2154321.188 | T89: 2155169.633 | U89: 1437840.04 | V89: =SUM(Q89:U89) -> 10069468.05 | X89: =(V89=SUM('Calc | Meters Detail'!V259,'Calc | Meters Detail'!V279,'Calc | Meters Detail'!V299,'Calc | Meters Detail'!V319,'Calc | Meters Detail'!V339,'Calc | Meters Detail'!V359,'Calc | Meters Detail'!V379,'Calc | Meters Detail'!V399,'Calc | Meters Detail'!V419,'Calc | Meters Detail'!V439))/1 -> 1
O90: =(ROUND(O69-'Calc | Meters Detail'!O459,4)=0)/1 -> 1 | P90: =(P89='Calc | Meters Detail'!P459)/1 -> 1 | Q90: =(Q89='Calc | Meters Detail'!Q459)/1 -> 1 | R90: =(R89='Calc | Meters Detail'!R459)/1 -> 1 | S90: =(S89='Calc | Meters Detail'!S459)/1 -> 1 | T90: =(T89='Calc | Meters Detail'!T459)/1 -> 1 | U90: =(U89='Calc | Meters Detail'!U459)/1 -> 1 | V90: =(V89='Calc | Meters Detail'!V459)/1 -> 1 | X90: =PRODUCT(O90:U90) -> 1
O91: Note: updated to add rounding to avoid it flagging an immaterial error
D93: iii | E93: Total Meter Costs (SCS & ACS)
F94: =I_MeterTypes[[#Headers],[Meter Type]] -> Meter Type | G94: =I_MeterTypes[[#Headers],[RIN Subcategory 1]] -> RIN Subcategory 1 | H94: =I_MeterTypes[[#Headers],[RIN Subcategory 2]] -> RIN Subcategory 2 | I94: =I_MeterTypes[[#Headers],[AER Type]] -> AER Type | J94: =I_MeterTypes[[#Headers],[RIN Subcategory 3]] -> RIN Subcategory 3 | K94: =I_MeterTypes[[#Headers],[Meter Code]] -> Meter Code | L94: Units | M94: Basis | O94: =O$12 -> 2022-23 | P94: =P$12 -> 2023-24 | Q94: 2024-25 | R94: 2025-26 | S94: 2026-27 | T94: 2027-28 | U94: 2028-29 | V94: Total
F95: =I_MeterTypes[Meter Type] -> Single phase Bottom connected (Smart) | G95: =I_MeterTypes[RIN Subcategory 1] -> Single phase meter population | H95: =I_MeterTypes[RIN Subcategory 2] -> Direct connected meter population | I95: =I_MeterTypes[AER Type] -> Single phase single element (Smart) | J95: =I_MeterTypes[RIN Subcategory 3] -> Type 4 | K95: =I_MeterTypes[Meter Code] -> SM 1ph DC | L95: $dollars | M95: =Basis_Capex -> 2021-12-01 | O95: =O33+O74 -> 1402842.468 | P95: =P33+P74 -> 1087251.437 | Q95: 1239217.376 | R95: 1250844.003 | S95: 1258650.825 | T95: 1266408.303 | U95: 855937.3676 | V95: =SUM(N95:U95) -> 8361151.78
F96: Single phase Plug in (Smart) | G96: Single phase meter population | H96: Direct connected meter population | I96: Single phase single element (Smart) | J96: Type 4 | K96: SM 1ph DC | L96: $dollars | M96: 2021-12-01 | O96: =O34+O75 -> 2422669.194 | P96: =P34+P75 -> 2133043.698 | Q96: 1984871.289 | R96: 1998473.696 | S96: 2007376.468 | T96: 2016210.859 | U96: 1333988.317 | V96: 13896633.52
F97: Single phase Two element (Smart) | G97: Single phase meter population | H97: Direct connected meter population | I97: Single phase two element with contactor (Smart) | J97: Type 4 | K97: SM 1ph DC | L97: $dollars | M97: 2021-12-01 | O97: 124672.4814 | P97: =P35+P76 -> 94376.89259 | Q97: 32925.04971 | R97: 33233.89155 | S97: 8114.273709 | T97: 8162.951623 | U97: 8219.358852 | V97: 309704.8994
F98: Three phase Whole Current (Smart) | G98: Multiphase meter population | H98: Direct connected meter population | I98: Three phase direct connected (smart) | J98: Type 3 or 4 | K98: SM 3ph DC | L98: $dollars | M98: 2021-12-01 | O98: 1276440.712 | P98: =P36+P77 -> 994997.7235 | Q98: 1455993.877 | R98: 1468849.212 | S98: 1477362.407 | T98: 1485827.52 | U98: 942755.8002 | V98: 9102227.252
F99: Three phase LVCT (Smart) | G99: Multiphase meter population | H99: Current transformer connected meter population | I99: Three phase current transformer connected (smart) | J99: Type 3 or 4 | K99: SM 3ph CT | L99: $dollars | M99: 2021-12-01 | O99: 336145.8386 | P99: =P37+P78 -> 264584.7786 | Q99: 290781.2761 | R99: 296047.883 | S99: 300230.8396 | T99: 304423.0693 | U99: 308978.4704 | V99: 2101192.156
F100: Three phase HV (Smart) | G100: Multiphase meter population | H100: Current transformer connected meter population | I100: Three phase voltage transformer and current transformer connected (smart) | J100: Type 2, 3 or 4 | K100: SM 3ph HV | L100: $dollars | M100: 2021-12-01 | O100: 49771.06233 | P100: =P38+P79 -> 38793.75404 | Q100: 40157.75813 | R100: 40898.47964 | S100: 44293.06407 | T100: 44898.34203 | U100: 48412.29029 | V100: 307224.7505
F101: Single phase Bottom connected (Electronic) | G101: Single phase meter population | H101: Direct connected meter population | I101: Single phase single element (Accumulation) | J101: Type 6 | K101: ACC 1ph DC | L101: $dollars | M101: 2021-12-01 | O101: 0 | P101: =P39+P80 -> 0 | Q101: 0 | R101: 0 | S101: 0 | T101: 0 | U101: 0 | V101: 0
F102: Single phase Plug in (Electronic) | G102: Single phase meter population | H102: Direct connected meter population | I102: Single phase single element (Accumulation) | J102: Type 6 | K102: ACC 1ph DC | L102: $dollars | M102: 2021-12-01 | O102: 0 | P102: =P40+P81 -> 0 | Q102: 0 | R102: 0 | S102: 0 | T102: 0 | U102: 0 | V102: 0
F103: Single phase Two element (Electronic) | G103: Single phase meter population | H103: Direct connected meter population | I103: Single phase two element with contactor (Accumulation) | J103: Type 6 | K103: ACC 1ph DC | L103: $dollars | M103: 2021-12-01 | O103: 0 | P103: =P41+P82 -> 0 | Q103: 0 | R103: 0 | S103: 0 | T103: 0 | U103: 0 | V103: 0
F104: Three phase 3 X Single phase (Electronic) | G104: Multiphase meter population or single phase meter population | H104: Direct connected meter population | I104: Three phase direct connected (Accumulation) | J104: Type 6 | K104: ACC 3ph DC | L104: $dollars | M104: 2021-12-01 | O104: 0 | P104: =P42+P83 -> 58552.35187 | Q104: 0 | R104: 0 | S104: 0 | T104: 0 | U104: 0 | V104: 58552.35187
F105: Three phase Whole Current (Electronic) | G105: Multiphase meter population | H105: Direct connected meter population | I105: Three phase direct connected (Accumulation) | J105: Type 6 | K105: ACC 3ph DC | L105: $dollars | M105: 2021-12-01 | O105: 0 | P105: =P43+P84 -> 0 | Q105: 0 | R105: 0 | S105: 0 | T105: 0 | U105: 0 | V105: 0
F106: Three phase LVCT (Electronic) | G106: Multiphase meter population | H106: Current transformer connected meter population | I106: Three phase current transformer connected (Accumulation) | J106: Type 6 | K106: ACC 3ph CT | L106: $dollars | M106: 2021-12-01 | O106: 0 | P106: =P44+P85 -> 0 | Q106: 0 | R106: 0 | S106: 0 | T106: 0 | U106: 0 | V106: 0
F107: Three phase HV (Electronic) | G107: Multiphase meter population | H107: Current transformer connected meter population | I107: Three phase voltage transformer and current transformer connected (Accumulation) | J107: Type 6 | K107: ACC 3ph HV | L107: $dollars | M107: 2021-12-01 | O107: 0 | P107: =P45+P86 -> 0 | Q107: 0 | R107: 0 | S107: 0 | T107: 0 | U107: 0 | V107: 0
F108: Mechanical Meters | G108: Unallocated | H108: Unallocated | I108: Unallocated | J108: Type 6 | K108: Unallocated | L108: $dollars | M108: 2021-12-01 | O108: 0 | P108: =P46+P87 -> 0 | Q108: 0 | R108: 0 | S108: 0 | T108: 0 | U108: 0 | V108: 0
F109: Unallocated | G109: Unallocated | H109: Unallocated | I109: Unallocated | J109: Unallocated | K109: Unallocated | L109: $dollars | M109: 2021-12-01 | O109: 0 | P109: =P47+P88 -> 0 | Q109: 0 | R109: 0 | S109: 0 | T109: 0 | U109: 0 | V109: 0
F110: Total | L110: $dollars | M110: 2021-12-01 | O110: =SUM(O95:O108) -> 5612541.756 | P110: 4671600.636 | Q110: =SUM(Q95:Q108) -> 5043946.626 | R110: 5088347.166 | S110: 5096027.876 | T110: 5125931.045 | U110: 3498291.605 | V110: =SUM(Q110:U110) -> 23852544.32 | X110: =(V110=(V89+V48))/1 -> 1
C112: b | D112: Meter Costs by SCS/ACS
D114: i | E114: Meters - SCS
F115: =I_MeterTypes[[#Headers],[Meter Type]] -> Meter Type | G115: =I_MeterTypes[[#Headers],[RIN Subcategory 1]] -> RIN Subcategory 1 | H115: =I_MeterTypes[[#Headers],[RIN Subcategory 2]] -> RIN Subcategory 2 | I115: =I_MeterTypes[[#Headers],[AER Type]] -> AER Type | J115: =I_MeterTypes[[#Headers],[RIN Subcategory 3]] -> RIN Subcategory 3 | K115: =I_MeterTypes[[#Headers],[Meter Code]] -> Meter Code | L115: Units | M115: Basis | O115: =O$12 -> 2022-23 | P115: =P$12 -> 2023-24 | Q115: 2024-25 | R115: 2025-26 | S115: 2026-27 | T115: 2027-28 | U115: 2028-29 | V115: Total
F116: =I_MeterTypes[Meter Type] -> Single phase Bottom connected (Smart) | G116: =I_MeterTypes[RIN Subcategory 1] -> Single phase meter population | H116: =I_MeterTypes[RIN Subcategory 2] -> Direct connected meter population | I116: =I_MeterTypes[AER Type] -> Single phase single element (Smart) | J116: =I_MeterTypes[RIN Subcategory 3] -> Type 4 | K116: =I_MeterTypes[Meter Code] -> SM 1ph DC | L116: $dollars | M116: =Basis_Capex -> 2021-12-01 | O116: ='Input | Meters Vols & Costs'!J29*ICM_D_TC1+ 'Input | Meters Vols & Costs'!J30*ICM_D_TC2+ 'Input | Meters Vols & Costs'!J31*ICM_D_TC3+ 'Input | Meters Vols & Costs'!J32*ICM_D_TC4+ 'Input | Meters Vols & Costs'!J33*ICM_D_TC5+ 'Input | Meters Vols & Costs'!J34*ICM_D_TC6+ 'Input | Meters Vols & Costs'!J35*ICM_D_TC7+ 'Input | Meters Vols & Costs'!J36*ICM_D_TC8+ 'Input | Meters Vols & Costs'!J37*ICM_D_TC9+ 'Input | Meters Vols & Costs'!J38*ICM_D_TC10 -> 0 | P116: 0 | Q116: 0 | R116: 0 | S116: 0 | T116: 0 | U116: 0 | V116: =SUM(N116:U116) -> 0
F117: Single phase Plug in (Smart) | G117: Single phase meter population | H117: Direct connected meter population | I117: Single phase single element (Smart) | J117: Type 4 | K117: SM 1ph DC | L117: $dollars | M117: 2021-12-01 | O117: 0 | P117: 0 | Q117: 0 | R117: 0 | S117: 0 | T117: 0 | U117: 0 | V117: 0
F118: Single phase Two element (Smart) | G118: Single phase meter population | H118: Direct connected meter population | I118: Single phase two element with contactor (Smart) | J118: Type 4 | K118: SM 1ph DC | L118: $dollars | M118: 2021-12-01 | O118: 0 | P118: 0 | Q118: 0 | R118: 0 | S118: 0 | T118: 0 | U118: 0 | V118: 0
F119: Three phase Whole Current (Smart) | G119: Multiphase meter population | H119: Direct connected meter population | I119: Three phase direct connected (smart) | J119: Type 3 or 4 | K119: SM 3ph DC | L119: $dollars | M119: 2021-12-01 | O119: 0 | P119: 0 | Q119: 0 | R119: 0 | S119: 0 | T119: 0 | U119: 0 | V119: 0
F120: Three phase LVCT (Smart) | G120: Multiphase meter population | H120: Current transformer connected meter population | I120: Three phase current transformer connected (smart) | J120: Type 3 or 4 | K120: SM 3ph CT | L120: $dollars | M120: 2021-12-01 | O120: 0 | P120: 0 | Q120: 0 | R120: 0 | S120: 0 | T120: 0 | U120: 0 | V120: 0
F121: Three phase HV (Smart) | G121: Multiphase meter population | H121: Current transformer connected meter population | I121: Three phase voltage transformer and current transformer connected (smart) | J121: Type 2, 3 or 4 | K121: SM 3ph HV | L121: $dollars | M121: 2021-12-01 | O121: 0 | P121: 0 | Q121: 0 | R121: 0 | S121: 0 | T121: 0 | U121: 0 | V121: 0
F122: Single phase Bottom connected (Electronic) | G122: Single phase meter population | H122: Direct connected meter population | I122: Single phase single element (Accumulation) | J122: Type 6 | K122: ACC 1ph DC | L122: $dollars | M122: 2021-12-01 | O122: 0 | P122: 0 | Q122: 0 | R122: 0 | S122: 0 | T122: 0 | U122: 0 | V122: 0
F123: Single phase Plug in (Electronic) | G123: Single phase meter population | H123: Direct connected meter population | I123: Single phase single element (Accumulation) | J123: Type 6 | K123: ACC 1ph DC | L123: $dollars | M123: 2021-12-01 | O123: 0 | P123: 0 | Q123: 0 | R123: 0 | S123: 0 | T123: 0 | U123: 0 | V123: 0
F124: Single phase Two element (Electronic) | G124: Single phase meter population | H124: Direct connected meter population | I124: Single phase two element with contactor (Accumulation) | J124: Type 6 | K124: ACC 1ph DC | L124: $dollars | M124: 2021-12-01 | O124: 0 | P124: 0 | Q124: 0 | R124: 0 | S124: 0 | T124: 0 | U124: 0 | V124: 0
F125: Three phase 3 X Single phase (Electronic) | G125: Multiphase meter population or single phase meter population | H125: Direct connected meter population | I125: Three phase direct connected (Accumulation) | J125: Type 6 | K125: ACC 3ph DC | L125: $dollars | M125: 2021-12-01 | O125: 0 | P125: 0 | Q125: 0 | R125: 0 | S125: 0 | T125: 0 | U125: 0 | V125: 0
F126: Three phase Whole Current (Electronic) | G126: Multiphase meter population | H126: Direct connected meter population | I126: Three phase direct connected (Accumulation) | J126: Type 6 | K126: ACC 3ph DC | L126: $dollars | M126: 2021-12-01 | O126: 0 | P126: 0 | Q126: 0 | R126: 0 | S126: 0 | T126: 0 | U126: 0 | V126: 0
F127: Three phase LVCT (Electronic) | G127: Multiphase meter population | H127: Current transformer connected meter population | I127: Three phase current transformer connected (Accumulation) | J127: Type 6 | K127: ACC 3ph CT | L127: $dollars | M127: 2021-12-01 | O127: 0 | P127: 0 | Q127: 0 | R127: 0 | S127: 0 | T127: 0 | U127: 0 | V127: 0
F128: Three phase HV (Electronic) | G128: Multiphase meter population | H128: Current transformer connected meter population | I128: Three phase voltage transformer and current transformer connected (Accumulation) | J128: Type 6 | K128: ACC 3ph HV | L128: $dollars | M128: 2021-12-01 | O128: 0 | P128: 0 | Q128: 0 | R128: 0 | S128: 0 | T128: 0 | U128: 0 | V128: 0
F129: Mechanical Meters | G129: Unallocated | H129: Unallocated | I129: Unallocated | J129: Type 6 | K129: Unallocated | L129: $dollars | M129: 2021-12-01 | O129: 0 | P129: 0 | Q129: 0 | R129: 0 | S129: 0 | T129: 0 | U129: 0 | V129: 0
F130: Unallocated | G130: Unallocated | H130: Unallocated | I130: Unallocated | J130: Unallocated | K130: Unallocated | L130: $dollars | M130: 2021-12-01 | O130: 0 | P130: 0 | Q130: 0 | R130: 0 | S130: 0 | T130: 0 | U130: 0 | V130: 0
F131: Total | L131: $dollars | M131: 2021-12-01 | O131: =SUM(O116:O129) -> 0 | P131: 0 | Q131: 0 | R131: 0 | S131: 0 | T131: 0 | U131: 0 | V131: =SUM(O131:U131) -> 0
D134: ii | E134: Meters - ACS
F135: =I_MeterTypes[[#Headers],[Meter Type]] -> Meter Type | G135: =I_MeterTypes[[#Headers],[RIN Subcategory 1]] -> RIN Subcategory 1 | H135: =I_MeterTypes[[#Headers],[RIN Subcategory 2]] -> RIN Subcategory 2 | I135: =I_MeterTypes[[#Headers],[AER Type]] -> AER Type | J135: =I_MeterTypes[[#Headers],[RIN Subcategory 3]] -> RIN Subcategory 3 | K135: =I_MeterTypes[[#Headers],[Meter Code]] -> Meter Code | L135: Units | M135: Basis | O135: =O$12 -> 2022-23 | P135: =P$12 -> 2023-24 | Q135: 2024-25 | R135: 2025-26 | S135: 2026-27 | T135: 2027-28 | U135: 2028-29 | V135: Total
F136: =I_MeterTypes[Meter Type] -> Single phase Bottom connected (Smart) | G136: =I_MeterTypes[RIN Subcategory 1] -> Single phase meter population | H136: =I_MeterTypes[RIN Subcategory 2] -> Direct connected meter population | I136: =I_MeterTypes[AER Type] -> Single phase single element (Smart) | J136: =I_MeterTypes[RIN Subcategory 3] -> Type 4 | K136: =I_MeterTypes[Meter Code] -> SM 1ph DC | L136: $dollars | M136: =Basis_Capex -> 2021-12-01 | O136: =(1-'Input | Meters Vols & Costs'!J29)*ICM_D_TC1+ (1-'Input | Meters Vols & Costs'!J30)*ICM_D_TC2+ (1-'Input | Meters Vols & Costs'!J31)*ICM_D_TC3+ (1-'Input | Meters Vols & Costs'!J32)*ICM_D_TC4+ (1-'Input | Meters Vols & Costs'!J33)*ICM_D_TC5+ (1-'Input | Meters Vols & Costs'!J34)*ICM_D_TC6+ (1-'Input | Meters Vols & Costs'!J35)*ICM_D_TC7+ (1-'Input | Meters Vols & Costs'!J36)*ICM_D_TC8+ (1-'Input | Meters Vols & Costs'!J37)*ICM_D_TC9+ (1-'Input | Meters Vols & Costs'!J38)*ICM_D_TC10 -> 1402842.468 | P136: 1087251.437 | Q136: 1239217.376 | R136: 1250844.003 | S136: 1258650.825 | T136: 1266408.303 | U136: 855937.3676 | V136: =SUM(N136:U136) -> 8361151.78
F137: Single phase Plug in (Smart) | G137: Single phase meter population | H137: Direct connected meter population | I137: Single phase single element (Smart) | J137: Type 4 | K137: SM 1ph DC | L137: $dollars | M137: 2021-12-01 | O137: 2422669.194 | P137: 2133043.698 | Q137: 1984871.289 | R137: 1998473.696 | S137: 2007376.468 | T137: 2016210.859 | U137: 1333988.317 | V137: =SUM(N137:U137) -> 13896633.52
F138: Single phase Two element (Smart) | G138: Single phase meter population | H138: Direct connected meter population | I138: Single phase two element with contactor (Smart) | J138: Type 4 | K138: SM 1ph DC | L138: $dollars | M138: 2021-12-01 | O138: 124672.4814 | P138: 94376.89259 | Q138: 32925.04971 | R138: 33233.89155 | S138: 8114.273709 | T138: 8162.951623 | U138: 8219.358852 | V138: 309704.8994
F139: Three phase Whole Current (Smart) | G139: Multiphase meter population | H139: Direct connected meter population | I139: Three phase direct connected (smart) | J139: Type 3 or 4 | K139: SM 3ph DC | L139: $dollars | M139: 2021-12-01 | O139: 1276440.712 | P139: 994997.7235 | Q139: 1455993.877 | R139: 1468849.212 | S139: 1477362.407 | T139: 1485827.52 | U139: 942755.8002 | V139: 9102227.252
F140: Three phase LVCT (Smart) | G140: Multiphase meter population | H140: Current transformer connected meter population | I140: Three phase current transformer connected (smart) | J140: Type 3 or 4 | K140: SM 3ph CT | L140: $dollars | M140: 2021-12-01 | O140: 336145.8386 | P140: 264584.7786 | Q140: 290781.2761 | R140: 296047.883 | S140: 300230.8396 | T140: 304423.0693 | U140: 308978.4704 | V140: 2101192.156
F141: Three phase HV (Smart) | G141: Multiphase meter population | H141: Current transformer connected meter population | I141: Three phase voltage transformer and current transformer connected (smart) | J141: Type 2, 3 or 4 | K141: SM 3ph HV | L141: $dollars | M141: 2021-12-01 | O141: 49771.06233 | P141: 38793.75404 | Q141: 40157.75813 | R141: 40898.47964 | S141: 44293.06407 | T141: 44898.34203 | U141: 48412.29029 | V141: 307224.7505
F142: Single phase Bottom connected (Electronic) | G142: Single phase meter population | H142: Direct connected meter population | I142: Single phase single element (Accumulation) | J142: Type 6 | K142: ACC 1ph DC | L142: $dollars | M142: 2021-12-01 | O142: 0 | P142: 0 | Q142: 0 | R142: 0 | S142: 0 | T142: 0 | U142: 0 | V142: 0
F143: Single phase Plug in (Electronic) | G143: Single phase meter population | H143: Direct connected meter population | I143: Single phase single element (Accumulation) | J143: Type 6 | K143: ACC 1ph DC | L143: $dollars | M143: 2021-12-01 | O143: 0 | P143: 0 | Q143: 0 | R143: 0 | S143: 0 | T143: 0 | U143: 0 | V143: 0
F144: Single phase Two element (Electronic) | G144: Single phase meter population | H144: Direct connected meter population | I144: Single phase two element with contactor (Accumulation) | J144: Type 6 | K144: ACC 1ph DC | L144: $dollars | M144: 2021-12-01 | O144: 0 | P144: 0 | Q144: 0 | R144: 0 | S144: 0 | T144: 0 | U144: 0 | V144: 0
F145: Three phase 3 X Single phase (Electronic) | G145: Multiphase meter population or single phase meter population | H145: Direct connected meter population | I145: Three phase direct connected (Accumulation) | J145: Type 6 | K145: ACC 3ph DC | L145: $dollars | M145: 2021-12-01 | O145: 0 | P145: 58552.35187 | Q145: 0 | R145: 0 | S145: 0 | T145: 0 | U145: 0 | V145: 58552.35187
F146: Three phase Whole Current (Electronic) | G146: Multiphase meter population | H146: Direct connected meter population | I146: Three phase direct connected (Accumulation) | J146: Type 6 | K146: ACC 3ph DC | L146: $dollars | M146: 2021-12-01 | O146: 0 | P146: 0 | Q146: 0 | R146: 0 | S146: 0 | T146: 0 | U146: 0 | V146: 0
F147: Three phase LVCT (Electronic) | G147: Multiphase meter population | H147: Current transformer connected meter population | I147: Three phase current transformer connected (Accumulation) | J147: Type 6 | K147: ACC 3ph CT | L147: $dollars | M147: 2021-12-01 | O147: 0 | P147: 0 | Q147: 0 | R147: 0 | S147: 0 | T147: 0 | U147: 0 | V147: 0
F148: Three phase HV (Electronic) | G148: Multiphase meter population | H148: Current transformer connected meter population | I148: Three phase voltage transformer and current transformer connected (Accumulation) | J148: Type 6 | K148: ACC 3ph HV | L148: $dollars | M148: 2021-12-01 | O148: 0 | P148: 0 | Q148: 0 | R148: 0 | S148: 0 | T148: 0 | U148: 0 | V148: 0
F149: Mechanical Meters | G149: Unallocated | H149: Unallocated | I149: Unallocated | J149: Type 6 | K149: Unallocated | L149: $dollars | M149: 2021-12-01 | O149: 0 | P149: 0 | Q149: 0 | R149: 0 | S149: 0 | T149: 0 | U149: 0 | V149: 0
F150: Unallocated | G150: Unallocated | H150: Unallocated | I150: Unallocated | J150: Unallocated | K150: Unallocated | L150: $dollars | M150: 2021-12-01 | O150: 0 | P150: 0 | Q150: 0 | R150: 0 | S150: 0 | T150: 0 | U150: 0 | V150: 0
F151: Total | L151: $dollars | M151: 2021-12-01 | O151: =SUM(O136:O149) -> 5612541.756 | P151: 4671600.636 | Q151: 5043946.626 | R151: 5088347.166 | S151: 5096027.876 | T151: =SUM(T136:T149) -> 5125931.045 | U151: =SUM(U136:U149) -> 3498291.605 | V151: =SUM(Q151:U151) -> 23852544.32 | X151: =(V151+V131=V110)/1 -> 1
A156: Output - Meter Capex (ACS) to Metering RFM/PTRM
D159: Total (Including Overheads and Additional Costs)
F160: Total Metering ACS | L160: Units | M160: Basis | O160: ='Input | Meters Vols & Costs'!O$171 -> 2022-23 | P160: ='Input | Meters Vols & Costs'!P$171 -> 2023-24 | Q160: ='Input | Meters Vols & Costs'!Q$171 -> 2024-25 | R160: ='Input | Meters Vols & Costs'!R$171 -> 2025-26 | S160: ='Input | Meters Vols & Costs'!S$171 -> 2026-27 | T160: ='Input | Meters Vols & Costs'!T$171 -> 2027-28 | U160: ='Input | Meters Vols & Costs'!U$171 -> 2028-29 | V160: Total
F161: Overheads | L161: $dollars | M161: =Basis_Capex -> 2021-12-01 | O161: ='Input | Meters Vols & Costs'!O55* IF('Input | Meters Vols & Costs'!$L55="$millions",10^6,IF('Input | Meters Vols & Costs'!$L55="$000",10^3,1))/IF($L161="$millions",10^6,IF($L161="$000",10^3,1)) -> 0 | P161: ='Input | Meters Vols & Costs'!P55* IF('Input | Meters Vols & Costs'!$L55="$millions",10^6,IF('Input | Meters Vols & Costs'!$L55="$000",10^3,1))/IF($L161="$millions",10^6,IF($L161="$000",10^3,1)) -> 2652097.204 | Q161: ='Input | Meters Vols & Costs'!Q55* IF('Input | Meters Vols & Costs'!$L55="$millions",10^6,IF('Input | Meters Vols & Costs'!$L55="$000",10^3,1))/IF($L161="$millions",10^6,IF($L161="$000",10^3,1)) -> 2921010.703 | R161: ='Input | Meters Vols & Costs'!R55* IF('Input | Meters Vols & Costs'!$L55="$millions",10^6,IF('Input | Meters Vols & Costs'!$L55="$000",10^3,1))/IF($L161="$millions",10^6,IF($L161="$000",10^3,1)) -> 2940078.378 | S161: ='Input | Meters Vols & Costs'!S55* IF('Input | Meters Vols & Costs'!$L55="$millions",10^6,IF('Input | Meters Vols & Costs'!$L55="$000",10^3,1))/IF($L161="$millions",10^6,IF($L161="$000",10^3,1)) -> 2934866.495 | T161: ='Input | Meters Vols & Costs'!T55* IF('Input | Meters Vols & Costs'!$L55="$millions",10^6,IF('Input | Meters Vols & Costs'!$L55="$000",10^3,1))/IF($L161="$millions",10^6,IF($L161="$000",10^3,1)) -> 2947779.313 | U161: ='Input | Meters Vols & Costs'!U55* IF('Input | Meters Vols & Costs'!$L55="$millions",10^6,IF('Input | Meters Vols & Costs'!$L55="$000",10^3,1))/IF($L161="$millions",10^6,IF($L161="$000",10^3,1)) -> 1974927.554 | V161: =SUM(Q161:U161) -> 13718662.44
F162: Additional Projects | L162: $dollars | M162: =Basis_Capex -> 2021-12-01 | O162: ='Input | Meters Vols & Costs'!O50* IF('Input | Meters Vols & Costs'!$L50="$millions",10^6,IF('Input | Meters Vols & Costs'!$L50="$000",10^3,1))/IF($L162="$millions",10^6,IF($L162="$000",10^3,1)) -> 0 | P162: ='Input | Meters Vols & Costs'!P50* IF('Input | Meters Vols & Costs'!$L50="$millions",10^6,IF('Input | Meters Vols & Costs'!$L50="$000",10^3,1))/IF($L162="$millions",10^6,IF($L162="$000",10^3,1)) -> 1579227.871 | Q162: ='Input | Meters Vols & Costs'!Q50* IF('Input | Meters Vols & Costs'!$L50="$millions",10^6,IF('Input | Meters Vols & Costs'!$L50="$000",10^3,1))/IF($L162="$millions",10^6,IF($L162="$000",10^3,1)) -> 1840694.306 | R162: ='Input | Meters Vols & Costs'!R50* IF('Input | Meters Vols & Costs'!$L50="$millions",10^6,IF('Input | Meters Vols & Costs'!$L50="$000",10^3,1))/IF($L162="$millions",10^6,IF($L162="$000",10^3,1)) -> 1841235.094 | S162: ='Input | Meters Vols & Costs'!S50* IF('Input | Meters Vols & Costs'!$L50="$millions",10^6,IF('Input | Meters Vols & Costs'!$L50="$000",10^3,1))/IF($L162="$millions",10^6,IF($L162="$000",10^3,1)) -> 1821270.298 | T162: ='Input | Meters Vols & Costs'!T50* IF('Input | Meters Vols & Costs'!$L50="$millions",10^6,IF('Input | Meters Vols & Costs'!$L50="$000",10^3,1))/IF($L162="$millions",10^6,IF($L162="$000",10^3,1)) -> 1821801.841 | U162: ='Input | Meters Vols & Costs'!U50* IF('Input | Meters Vols & Costs'!$L50="$millions",10^6,IF('Input | Meters Vols & Costs'!$L50="$000",10^3,1))/IF($L162="$millions",10^6,IF($L162="$000",10^3,1)) -> 1156490.065 | V162: =SUM(Q162:U162) -> 8481491.605
F163: ACS Meter Costs | L163: $dollars | M163: =Basis_Capex -> 2021-12-01 | P163: ='Calc | Capex Meters'!P151 -> 4671600.636 | Q163: ='Calc | Capex Meters'!Q151 -> 5043946.626 | R163: ='Calc | Capex Meters'!R151 -> 5088347.166 | S163: ='Calc | Capex Meters'!S151 -> 5096027.876 | T163: ='Calc | Capex Meters'!T151 -> 5125931.045 | U163: ='Calc | Capex Meters'!U151 -> 3498291.605 | V163: =SUM(Q163:U163) -> 23852544.32 | X163: =(V163=V151)/1 -> 1
F164: Total | L164: $dollars | M164: =Basis_Capex -> 2021-12-01 | O164: =SUM(O161:O163) -> 0 | P164: 8902925.71 | Q164: =SUM(Q161:Q163) -> 9805651.635 | R164: =SUM(R161:R163) -> 9869660.638 | S164: =SUM(S161:S163) -> 9852164.669 | T164: =SUM(T161:T163) -> 9895512.199 | U164: =SUM(U161:U163) -> 6629709.223 | V164: =SUM(Q164:U164) -> 46052698.37
P165: 8901546.52 | Q165: 4019826.774 | R165: 3850006.943 | S165: 6375370.674 | T165: 6338756.108 | U165: 6273019.346

Sheet Calc | Meters Detail
B1: ='Input|General'!B1&" v"&'Input|General'!$D$2 -> AER Metering Opex & Capex Forecasting Model v1.08
B2: =MID(CELL("filename",A1),FIND("]",CELL("filename",A1))+1,255) -> Calc | Meters Detail
A6: Extra: Detailed Cost Tables - including real price escalation
O8: 1 | P8: 2 | Q8: 3 | R8: 4 | S8: 5 | T8: 6 | U8: 7
B9: a | C9: Labour Costs
D10: 1 | E10: ='Input | Meters Vols & Costs'!$G$29 -> New Meter Installations - Growth
F12: =I_MeterTypes[[#Headers],[Meter Type]] -> Meter Type | G12: =I_MeterTypes[[#Headers],[RIN Subcategory 1]] -> RIN Subcategory 1 | H12: =I_MeterTypes[[#Headers],[RIN Subcategory 2]] -> RIN Subcategory 2 | I12: =I_MeterTypes[[#Headers],[AER Type]] -> AER Type | J12: =I_MeterTypes[[#Headers],[RIN Subcategory 3]] -> RIN Subcategory 3 | K12: =I_MeterTypes[[#Headers],[Meter Code]] -> Meter Code | L12: Units | M12: Basis | O12: ='Input | Meters Vols & Costs'!O$171 -> 2022-23 | P12: ='Input | Meters Vols & Costs'!P$171 -> 2023-24 | Q12: ='Input | Meters Vols & Costs'!Q$171 -> 2024-25 | R12: ='Input | Meters Vols & Costs'!R$171 -> 2025-26 | S12: ='Input | Meters Vols & Costs'!S$171 -> 2026-27 | T12: ='Input | Meters Vols & Costs'!T$171 -> 2027-28 | U12: ='Input | Meters Vols & Costs'!U$171 -> 2028-29 | V12: Total
F13: =I_MeterTypes[Meter Type] -> Single phase Bottom connected (Smart) | G13: =I_MeterTypes[RIN Subcategory 1] -> Single phase meter population | H13: =I_MeterTypes[RIN Subcategory 2] -> Direct connected meter population | I13: =I_MeterTypes[AER Type] -> Single phase single element (Smart) | J13: =I_MeterTypes[RIN Subcategory 3] -> Type 4 | K13: =I_MeterTypes[Meter Code] -> SM 1ph DC | L13: $dollars | M13: =Basis_Capex -> 2021-12-01 | O13: =IF('Input | Meters Vols & Costs'!$P$77="Yes",'Input| Prices'!K$55,1)*INDEX(ICM_LabourCost,,$D10)*INDEX(ICM_Vol1,,O$8) -> 110134.1684 | P13: ='Input| Prices'!L$55*INDEX(ICM_LabourCost,,$D10)*INDEX(ICM_Vol1,,P$8) -> 86110.21918 | Q13: ='Input| Prices'!M$55*INDEX(ICM_LabourCost,,$D10)*INDEX(ICM_Vol1,,Q$8) -> 87585.99009 | R13: ='Input| Prices'!N$55*INDEX(ICM_LabourCost,,$D10)*INDEX(ICM_Vol1,,R$8) -> 89185.45509 | S13: ='Input| Prices'!O$55*INDEX(ICM_LabourCost,,$D10)*INDEX(ICM_Vol1,,S$8) -> 90358.56981 | T13: ='Input| Prices'!P$55*INDEX(ICM_LabourCost,,$D10)*INDEX(ICM_Vol1,,T$8) -> 91531.71689 | U13: ='Input| Prices'!Q$55*INDEX(ICM_LabourCost,,$D10)*INDEX(ICM_Vol1,,U$8) -> 92842.40521 | V13: =SUM(N13:U13) -> 647748.5247
F14: Single phase Plug in (Smart) | G14: Single phase meter population | H14: Direct connected meter population | I14: Single phase single element (Smart) | J14: Type 4 | K14: SM 1ph DC | L14: $dollars | M14: 2021-12-01 | O14: 0 | P14: 0 | Q14: 0 | R14: 0 | S14: 0 | T14: 0 | U14: 0 | V14: 0
F15: Single phase Two element (Smart) | G15: Single phase meter population | H15: Direct connected meter population | I15: Single phase two element with contactor (Smart) | J15: Type 4 | K15: SM 1ph DC | L15: $dollars | M15: 2021-12-01 | O15: 0 | P15: 0 | Q15: 0 | R15: 0 | S15: 0 | T15: 0 | U15: 0 | V15: 0
F16: Three phase Whole Current (Smart) | G16: Multiphase meter population | H16: Direct connected meter population | I16: Three phase direct connected (smart) | J16: Type 3 or 4 | K16: SM 3ph DC | L16: $dollars | M16: 2021-12-01 | O16: 90428.22965 | P16: 70556.99216 | Q16: 71625.8927 | R16: 72799.25231 | S16: 73628.84422 | T16: 74463.78282 | U16: 75416.2041 | V16: 528919.198
F17: Three phase LVCT (Smart) | G17: Multiphase meter population | H17: Current transformer connected meter population | I17: Three phase current transformer connected (smart) | J17: Type 3 or 4 | K17: SM 3ph CT | L17: $dollars | M17: 2021-12-01 | O17: 46969.04558 | P17: 36647.7879 | Q17: 37202.98221 | R17: 37812.43327 | S17: 38243.32903 | T17: 38677.00189 | U17: 39171.69607 | V17: 274724.276
F18: Three phase HV (Smart) | G18: Multiphase meter population | H18: Current transformer connected meter population | I18: Three phase voltage transformer and current transformer connected (smart) | J18: Type 2, 3 or 4 | K18: SM 3ph HV | L18: $dollars | M18: 2021-12-01 | O18: 8337.560472 | P18: 6493.302699 | Q18: 8771.725729 | R18: 8897.16747 | S18: 11224.08632 | T18: 11325.92504 | U18: 13732.72105 | V18: 68782.48877
F19: Single phase Bottom connected (Electronic) | G19: Single phase meter population | H19: Direct connected meter population | I19: Single phase single element (Accumulation) | J19: Type 6 | K19: ACC 1ph DC | L19: $dollars | M19: 2021-12-01 | O19: 0 | P19: 0 | Q19: 0 | R19: 0 | S19: 0 | T19: 0 | U19: 0 | V19: 0
F20: Single phase Plug in (Electronic) | G20: Single phase meter population | H20: Direct connected meter population | I20: Single phase single element (Accumulation) | J20: Type 6 | K20: ACC 1ph DC | L20: $dollars | M20: 2021-12-01 | O20: 0 | P20: 0 | Q20: 0 | R20: 0 | S20: 0 | T20: 0 | U20: 0 | V20: 0
F21: Single phase Two element (Electronic) | G21: Single phase meter population | H21: Direct connected meter population | I21: Single phase two element with contactor (Accumulation) | J21: Type 6 | K21: ACC 1ph DC | L21: $dollars | M21: 2021-12-01 | O21: 0 | P21: 0 | Q21: 0 | R21: 0 | S21: 0 | T21: 0 | U21: 0 | V21: 0
F22: Three phase 3 X Single phase (Electronic) | G22: Multiphase meter population or single phase meter population | H22: Direct connected meter population | I22: Three phase direct connected (Accumulation) | J22: Type 6 | K22: ACC 3ph DC | L22: $dollars | M22: 2021-12-01 | O22: 0 | P22: 0 | Q22: 0 | R22: 0 | S22: 0 | T22: 0 | U22: 0 | V22: 0
F23: Three phase Whole Current (Electronic) | G23: Multiphase meter population | H23: Direct connected meter population | I23: Three phase direct connected (Accumulation) | J23: Type 6 | K23: ACC 3ph DC | L23: $dollars | M23: 2021-12-01 | O23: 0 | P23: 0 | Q23: 0 | R23: 0 | S23: 0 | T23: 0 | U23: 0 | V23: 0
F24: Three phase LVCT (Electronic) | G24: Multiphase meter population | H24: Current transformer connected meter population | I24: Three phase current transformer connected (Accumulation) | J24: Type 6 | K24: ACC 3ph CT | L24: $dollars | M24: 2021-12-01 | O24: 0 | P24: 0 | Q24: 0 | R24: 0 | S24: 0 | T24: 0 | U24: 0 | V24: 0
F25: Three phase HV (Electronic) | G25: Multiphase meter population | H25: Current transformer connected meter population | I25: Three phase voltage transformer and current transformer connected (Accumulation) | J25: Type 6 | K25: ACC 3ph HV | L25: $dollars | M25: 2021-12-01 | O25: 0 | P25: 0 | Q25: 0 | R25: 0 | S25: 0 | T25: 0 | U25: 0 | V25: 0
F26: Mechanical Meters | G26: Unallocated | H26: Unallocated | I26: Unallocated | J26: Type 6 | K26: Unallocated | L26: $dollars | M26: 2021-12-01 | O26: 0 | P26: 0 | Q26: 0 | R26: 0 | S26: 0 | T26: 0 | U26: 0 | V26: 0
F27: Unallocated | G27: Unallocated | H27: Unallocated | I27: Unallocated | J27: Unallocated | K27: Unallocated | L27: $dollars | M27: 2021-12-01 | O27: 0 | P27: 0 | Q27: 0 | R27: 0 | S27: 0 | T27: 0 | U27: 0 | V27: 0
F28: Total | L28: $dollars | M28: 2021-12-01 | O28: =SUM(O13:O27) -> 255869.0041 | P28: =SUM(P13:P27) -> 199808.3019 | Q28: 205186.5907 | R28: 208694.3081 | S28: 213454.8294 | T28: 215998.4266 | U28: 221163.0264 | V28: =SUM(Q28:U28) -> 1064497.181
D30: 2 | E30: ='Input | Meters Vols & Costs'!$G$30 -> Replacement - End of life
F32: =I_MeterTypes[[#Headers],[Meter Type]] -> Meter Type | G32: =I_MeterTypes[[#Headers],[RIN Subcategory 1]] -> RIN Subcategory 1 | H32: =I_MeterTypes[[#Headers],[RIN Subcategory 2]] -> RIN Subcategory 2 | I32: =I_MeterTypes[[#Headers],[AER Type]] -> AER Type | J32: =I_MeterTypes[[#Headers],[RIN Subcategory 3]] -> RIN Subcategory 3 | K32: =I_MeterTypes[[#Headers],[Meter Code]] -> Meter Code | L32: Units | M32: Basis | O32: =O$12 -> 2022-23 | P32: =P$12 -> 2023-24 | Q32: 2024-25 | R32: 2025-26 | S32: 2026-27 | T32: 2027-28 | U32: 2028-29 | V32: Total
F33: =I_MeterTypes[Meter Type] -> Single phase Bottom connected (Smart) | G33: =I_MeterTypes[RIN Subcategory 1] -> Single phase meter population | H33: =I_MeterTypes[RIN Subcategory 2] -> Direct connected meter population | I33: =I_MeterTypes[AER Type] -> Single phase single element (Smart) | J33: =I_MeterTypes[RIN Subcategory 3] -> Type 4 | K33: =I_MeterTypes[Meter Code] -> SM 1ph DC | L33: $dollars | M33: =Basis_Capex -> 2021-12-01 | O33: =IF('Input | Meters Vols & Costs'!$P$77="Yes",'Input| Prices'!K$55,1)*INDEX(ICM_LabourCost,,$D30)*INDEX(ICM_Vol2,,O$8) -> 672199.8176 | P33: =IF('Input | Meters Vols & Costs'!$P$77="Yes",'Input| Prices'!L$55,1)*INDEX(ICM_LabourCost,,$D30)*INDEX(ICM_Vol2,,P$8) -> 508421.3416 | Q33: =IF('Input | Meters Vols & Costs'!$P$77="Yes",'Input| Prices'!M$55,1)*INDEX(ICM_LabourCost,,$D30)*INDEX(ICM_Vol2,,Q$8) -> 637761.7724 | R33: =IF('Input | Meters Vols & Costs'!$P$77="Yes",'Input| Prices'!N$55,1)*INDEX(ICM_LabourCost,,$D30)*INDEX(ICM_Vol2,,R$8) -> 646882.2065 | S33: =IF('Input | Meters Vols & Costs'!$P$77="Yes",'Input| Prices'!O$55,1)*INDEX(ICM_LabourCost,,$D30)*INDEX(ICM_Vol2,,S$8) -> 652851.528 | T33: =IF('Input | Meters Vols & Costs'!$P$77="Yes",'Input| Prices'!P$55,1)*INDEX(ICM_LabourCost,,$D30)*INDEX(ICM_Vol2,,T$8) -> 658775.0004 | U33: =IF('Input | Meters Vols & Costs'!$P$77="Yes",'Input| Prices'!Q$55,1)*INDEX(ICM_LabourCost,,$D30)*INDEX(ICM_Vol2,,U$8) -> 399383.4184 | V33: =SUM(N33:U33) -> 4176275.085
F34: Single phase Plug in (Smart) | G34: Single phase meter population | H34: Direct connected meter population | I34: Single phase single element (Smart) | J34: Type 4 | K34: SM 1ph DC | L34: $dollars | M34: 2021-12-01 | O34: 1008697.739 | P34: 762933.0513 | Q34: 866735.3485 | R34: 879130.263 | S34: 887242.7309 | T34: 895292.8888 | U34: 565388.3061 | V34: 5865420.328
F35: Single phase Two element (Smart) | G35: Single phase meter population | H35: Direct connected meter population | I35: Single phase two element with contactor (Smart) | J35: Type 4 | K35: SM 1ph DC | L35: $dollars | M35: 2021-12-01 | O35: 71826.85923 | P35: 54326.56656 | Q35: 16355.2886 | R35: 16589.18053 | S35: 0 | T35: 0 | U35: 0 | V35: 159097.8949
F36: Three phase Whole Current (Smart) | G36: Multiphase meter population | H36: Direct connected meter population | I36: Three phase direct connected (smart) | J36: Type 3 or 4 | K36: SM 3ph DC | L36: $dollars | M36: 2021-12-01 | O36: 598454.8704 | P36: 452644.0206 | Q36: 766523.1363 | R36: 777484.947 | S36: 784659.4488 | T36: 791778.8449 | U36: 459572.0382 | V36: 4631117.306
F37: Three phase LVCT (Smart) | G37: Multiphase meter population | H37: Current transformer connected meter population | I37: Three phase current transformer connected (smart) | J37: Type 3 or 4 | K37: SM 3ph CT | L37: $dollars | M37: 2021-12-01 | O37: 194275.9896 | P37: 146941.5145 | Q37: 176949.955 | R37: 179480.4617 | S37: 181136.6775 | T37: 182780.1724 | U37: 184684.6293 | V37: 1246249.4
F38: Three phase HV (Smart) | G38: Multiphase meter population | H38: Current transformer connected meter population | I38: Three phase voltage transformer and current transformer connected (smart) | J38: Type 2, 3 or 4 | K38: SM 3ph HV | L38: $dollars | M38: 2021-12-01 | O38: 28891.82475 | P38: 21852.461 | Q38: 21929.31432 | R38: 22242.91868 | S38: 22448.17263 | T38: 22651.85008 | U38: 22887.86842 | V38: 162904.4099
F39: Single phase Bottom connected (Electronic) | G39: Single phase meter population | H39: Direct connected meter population | I39: Single phase single element (Accumulation) | J39: Type 6 | K39: ACC 1ph DC | L39: $dollars | M39: 2021-12-01 | O39: 0 | P39: 0 | Q39: 0 | R39: 0 | S39: 0 | T39: 0 | U39: 0 | V39: 0
F40: Single phase Plug in (Electronic) | G40: Single phase meter population | H40: Direct connected meter population | I40: Single phase single element (Accumulation) | J40: Type 6 | K40: ACC 1ph DC | L40: $dollars | M40: 2021-12-01 | O40: 0 | P40: 0 | Q40: 0 | R40: 0 | S40: 0 | T40: 0 | U40: 0 | V40: 0
F41: Single phase Two element (Electronic) | G41: Single phase meter population | H41: Direct connected meter population | I41: Single phase two element with contactor (Accumulation) | J41: Type 6 | K41: ACC 1ph DC | L41: $dollars | M41: 2021-12-01 | O41: 0 | P41: 0 | Q41: 0 | R41: 0 | S41: 0 | T41: 0 | U41: 0 | V41: 0
F42: Three phase 3 X Single phase (Electronic) | G42: Multiphase meter population or single phase meter population | H42: Direct connected meter population | I42: Three phase direct connected (Accumulation) | J42: Type 6 | K42: ACC 3ph DC | L42: $dollars | M42: 2021-12-01 | O42: 0 | P42: 0 | Q42: 0 | R42: 0 | S42: 0 | T42: 0 | U42: 0 | V42: 0
F43: Three phase Whole Current (Electronic) | G43: Multiphase meter population | H43: Direct connected meter population | I43: Three phase direct connected (Accumulation) | J43: Type 6 | K43: ACC 3ph DC | L43: $dollars | M43: 2021-12-01 | O43: 0 | P43: 0 | Q43: 0 | R43: 0 | S43: 0 | T43: 0 | U43: 0 | V43: 0
F44: Three phase LVCT (Electronic) | G44: Multiphase meter population | H44: Current transformer connected meter population | I44: Three phase current transformer connected (Accumulation) | J44: Type 6 | K44: ACC 3ph CT | L44: $dollars | M44: 2021-12-01 | O44: 0 | P44: 0 | Q44: 0 | R44: 0 | S44: 0 | T44: 0 | U44: 0 | V44: 0
F45: Three phase HV (Electronic) | G45: Multiphase meter population | H45: Current transformer connected meter population | I45: Three phase voltage transformer and current transformer connected (Accumulation) | J45: Type 6 | K45: ACC 3ph HV | L45: $dollars | M45: 2021-12-01 | O45: 0 | P45: 0 | Q45: 0 | R45: 0 | S45: 0 | T45: 0 | U45: 0 | V45: 0
F46: Mechanical Meters | G46: Unallocated | H46: Unallocated | I46: Unallocated | J46: Type 6 | K46: Unallocated | L46: $dollars | M46: 2021-12-01 | O46: 0 | P46: 0 | Q46: 0 | R46: 0 | S46: 0 | T46: 0 | U46: 0 | V46: 0
F47: Unallocated | G47: Unallocated | H47: Unallocated | I47: Unallocated | J47: Unallocated | K47: Unallocated | L47: $dollars | M47: 2021-12-01 | O47: 0 | P47: 0 | Q47: 0 | R47: 0 | S47: 0 | T47: 0 | U47: 0 | V47: 0
F48: Total | L48: $dollars | M48: 2021-12-01 | O48: =SUM(O33:O47) -> 2574347.101 | P48: =SUM(P33:P47) -> 1947118.956 | Q48: 2486254.815 | R48: 2521809.977 | S48: 2528338.558 | T48: 2551278.756 | U48: 1631916.26 | V48: =SUM(Q48:U48) -> 11719598.37
D50: 3 | E50: ='Input | Meters Vols & Costs'!$G$31 -> Replacement - Failures and Faults (Mechanical and Electronic)
F52: =I_MeterTypes[[#Headers],[Meter Type]] -> Meter Type | G52: =I_MeterTypes[[#Headers],[RIN Subcategory 1]] -> RIN Subcategory 1 | H52: =I_MeterTypes[[#Headers],[RIN Subcategory 2]] -> RIN Subcategory 2 | I52: =I_MeterTypes[[#Headers],[AER Type]] -> AER Type | J52: =I_MeterTypes[[#Headers],[RIN Subcategory 3]] -> RIN Subcategory 3 | K52: =I_MeterTypes[[#Headers],[Meter Code]] -> Meter Code | L52: Units | M52: Basis | O52: =O$12 -> 2022-23 | P52: =P$12 -> 2023-24 | Q52: 2024-25 | R52: 2025-26 | S52: 2026-27 | T52: 2027-28 | U52: 2028-29 | V52: Total
F53: =I_MeterTypes[Meter Type] -> Single phase Bottom connected (Smart) | G53: =I_MeterTypes[RIN Subcategory 1] -> Single phase meter population | H53: =I_MeterTypes[RIN Subcategory 2] -> Direct connected meter population | I53: =I_MeterTypes[AER Type] -> Single phase single element (Smart) | J53: =I_MeterTypes[RIN Subcategory 3] -> Type 4 | K53: =I_MeterTypes[Meter Code] -> SM 1ph DC | L53: $dollars | M53: =Basis_Capex -> 2021-12-01 | O53: =IF('Input | Meters Vols & Costs'!$P$77="Yes",'Input| Prices'!K$55,1)*INDEX(ICM_LabourCost,,$D50)*INDEX(ICM_Vol3,,O$8) -> 37294.29811 | P53: =IF('Input | Meters Vols & Costs'!$P$77="Yes",'Input| Prices'!L$55,1)*INDEX(ICM_LabourCost,,$D50)*INDEX(ICM_Vol3,,P$8) -> 25413.34598 | Q53: =IF('Input | Meters Vols & Costs'!$P$77="Yes",'Input| Prices'!M$55,1)*INDEX(ICM_LabourCost,,$D50)*INDEX(ICM_Vol3,,Q$8) -> 20537.25713 | R53: =IF('Input | Meters Vols & Costs'!$P$77="Yes",'Input| Prices'!N$55,1)*INDEX(ICM_LabourCost,,$D50)*INDEX(ICM_Vol3,,R$8) -> 15559.73894 | S53: =IF('Input | Meters Vols & Costs'!$P$77="Yes",'Input| Prices'!O$55,1)*INDEX(ICM_LabourCost,,$D50)*INDEX(ICM_Vol3,,S$8) -> 10434.97101 | T53: =IF('Input | Meters Vols & Costs'!$P$77="Yes",'Input| Prices'!P$55,1)*INDEX(ICM_LabourCost,,$D50)*INDEX(ICM_Vol3,,T$8) -> 5237.214241 | U53: =IF('Input | Meters Vols & Costs'!$P$77="Yes",'Input| Prices'!Q$55,1)*INDEX(ICM_LabourCost,,$D50)*INDEX(ICM_Vol3,,U$8) -> -33.1828951 | V53: =SUM(N53:U53) -> 114443.6425
F54: Single phase Plug in (Smart) | G54: Single phase meter population | H54: Direct connected meter population | I54: Single phase single element (Smart) | J54: Type 4 | K54: SM 1ph DC | L54: $dollars | M54: 2021-12-01 | O54: 55963.52931 | P54: 38135.06634 | Q54: 30818.0459 | R54: 23348.82142 | S54: 15658.63511 | T54: 7858.922342 | U54: -49.79399042 | V54: 171733.2264
F55: Single phase Two element (Smart) | G55: Single phase meter population | H55: Direct connected meter population | I55: Single phase two element with contactor (Smart) | J55: Type 4 | K55: SM 1ph DC | L55: $dollars | M55: 2021-12-01 | O55: 3985.023843 | P55: 2715.503302 | Q55: 2194.476461 | R55: 1662.611547 | S55: 1115.012492 | T55: 559.6143292 | U55: -3.545706311 | V55: 12228.69627
F56: Three phase Whole Current (Smart) | G56: Multiphase meter population | H56: Direct connected meter population | I56: Three phase direct connected (smart) | J56: Type 3 or 4 | K56: SM 3ph DC | L56: $dollars | M56: 2021-12-01 | O56: 33202.85689 | P56: 22625.32698 | Q56: 18284.17865 | R56: 13852.72847 | S56: 9290.182856 | T56: 4662.655787 | U56: -29.54250309 | V56: 101888.3871
F57: Three phase LVCT (Smart) | G57: Multiphase meter population | H57: Current transformer connected meter population | I57: Three phase current transformer connected (smart) | J57: Type 3 or 4 | K57: SM 3ph CT | L57: $dollars | M57: 2021-12-01 | O57: 0 | P57: 0 | Q57: 0 | R57: 0 | S57: 0 | T57: 0 | U57: 0 | V57: 0
F58: Three phase HV (Smart) | G58: Multiphase meter population | H58: Current transformer connected meter population | I58: Three phase voltage transformer and current transformer connected (smart) | J58: Type 2, 3 or 4 | K58: SM 3ph HV | L58: $dollars | M58: 2021-12-01 | O58: 0 | P58: 0 | Q58: 0 | R58: 0 | S58: 0 | T58: 0 | U58: 0 | V58: 0
F59: Single phase Bottom connected (Electronic) | G59: Single phase meter population | H59: Direct connected meter population | I59: Single phase single element (Accumulation) | J59: Type 6 | K59: ACC 1ph DC | L59: $dollars | M59: 2021-12-01 | O59: 0 | P59: 0 | Q59: 0 | R59: 0 | S59: 0 | T59: 0 | U59: 0 | V59: 0
F60: Single phase Plug in (Electronic) | G60: Single phase meter population | H60: Direct connected meter population | I60: Single phase single element (Accumulation) | J60: Type 6 | K60: ACC 1ph DC | L60: $dollars | M60: 2021-12-01 | O60: 0 | P60: 0 | Q60: 0 | R60: 0 | S60: 0 | T60: 0 | U60: 0 | V60: 0
F61: Single phase Two element (Electronic) | G61: Single phase meter population | H61: Direct connected meter population | I61: Single phase two element with contactor (Accumulation) | J61: Type 6 | K61: ACC 1ph DC | L61: $dollars | M61: 2021-12-01 | O61: 0 | P61: 0 | Q61: 0 | R61: 0 | S61: 0 | T61: 0 | U61: 0 | V61: 0
F62: Three phase 3 X Single phase (Electronic) | G62: Multiphase meter population or single phase meter population | H62: Direct connected meter population | I62: Three phase direct connected (Accumulation) | J62: Type 6 | K62: ACC 3ph DC | L62: $dollars | M62: 2021-12-01 | O62: 0 | P62: 0 | Q62: 0 | R62: 0 | S62: 0 | T62: 0 | U62: 0 | V62: 0
F63: Three phase Whole Current (Electronic) | G63: Multiphase meter population | H63: Direct connected meter population | I63: Three phase direct connected (Accumulation) | J63: Type 6 | K63: ACC 3ph DC | L63: $dollars | M63: 2021-12-01 | O63: 0 | P63: 0 | Q63: 0 | R63: 0 | S63: 0 | T63: 0 | U63: 0 | V63: 0
F64: Three phase LVCT (Electronic) | G64: Multiphase meter population | H64: Current transformer connected meter population | I64: Three phase current transformer connected (Accumulation) | J64: Type 6 | K64: ACC 3ph CT | L64: $dollars | M64: 2021-12-01 | O64: 0 | P64: 0 | Q64: 0 | R64: 0 | S64: 0 | T64: 0 | U64: 0 | V64: 0
F65: Three phase HV (Electronic) | G65: Multiphase meter population | H65: Current transformer connected meter population | I65: Three phase voltage transformer and current transformer connected (Accumulation) | J65: Type 6 | K65: ACC 3ph HV | L65: $dollars | M65: 2021-12-01 | O65: 0 | P65: 0 | Q65: 0 | R65: 0 | S65: 0 | T65: 0 | U65: 0 | V65: 0
F66: Mechanical Meters | G66: Unallocated | H66: Unallocated | I66: Unallocated | J66: Type 6 | K66: Unallocated | L66: $dollars | M66: 2021-12-01 | O66: 0 | P66: 0 | Q66: 0 | R66: 0 | S66: 0 | T66: 0 | U66: 0 | V66: 0
F67: Unallocated | G67: Unallocated | H67: Unallocated | I67: Unallocated | J67: Unallocated | K67: Unallocated | L67: $dollars | M67: 2021-12-01 | O67: 0 | P67: 0 | Q67: 0 | R67: 0 | S67: 0 | T67: 0 | U67: 0 | V67: 0
F68: Total | L68: $dollars | M68: 2021-12-01 | O68: =SUM(O53:O60) -> 130445.7082 | P68: =SUM(P53:P60) -> 88889.2426 | Q68: 71833.95814 | R68: 54423.90038 | S68: 36498.80146 | T68: 18318.4067 | U68: -116.0650949 | V68: =SUM(Q68:U68) -> 180959.0016
D70: 4 | E70: ='Input | Meters Vols & Costs'!$G$32 -> Replacement - Failures and Faults (Smart)
F72: =I_MeterTypes[[#Headers],[Meter Type]] -> Meter Type | G72: =I_MeterTypes[[#Headers],[RIN Subcategory 1]] -> RIN Subcategory 1 | H72: =I_MeterTypes[[#Headers],[RIN Subcategory 2]] -> RIN Subcategory 2 | I72: =I_MeterTypes[[#Headers],[AER Type]] -> AER Type | J72: =I_MeterTypes[[#Headers],[RIN Subcategory 3]] -> RIN Subcategory 3 | K72: =I_MeterTypes[[#Headers],[Meter Code]] -> Meter Code | L72: Units | M72: Basis | O72: =O$12 -> 2022-23 | P72: =P$12 -> 2023-24 | Q72: 2024-25 | R72: 2025-26 | S72: 2026-27 | T72: 2027-28 | U72: 2028-29 | V72: Total
F73: =I_MeterTypes[Meter Type] -> Single phase Bottom connected (Smart) | G73: =I_MeterTypes[RIN Subcategory 1] -> Single phase meter population | H73: =I_MeterTypes[RIN Subcategory 2] -> Direct connected meter population | I73: =I_MeterTypes[AER Type] -> Single phase single element (Smart) | J73: =I_MeterTypes[RIN Subcategory 3] -> Type 4 | K73: =I_MeterTypes[Meter Code] -> SM 1ph DC | L73: $dollars | M73: =Basis_Capex -> 2021-12-01 | O73: =IF('Input | Meters Vols & Costs'!$P$77="Yes",'Input| Prices'!K$55,1)*INDEX(ICM_LabourCost,,$D70)*INDEX(ICM_Vol4,,O$8) -> 19923.76186 | P73: =IF('Input | Meters Vols & Costs'!$P$77="Yes",'Input| Prices'!L$55,1)*INDEX(ICM_LabourCost,,$D70)*INDEX(ICM_Vol4,,P$8) -> 22997.75088 | Q73: =IF('Input | Meters Vols & Costs'!$P$77="Yes",'Input| Prices'!M$55,1)*INDEX(ICM_LabourCost,,$D70)*INDEX(ICM_Vol4,,Q$8) -> 28511.226 | R73: =IF('Input | Meters Vols & Costs'!$P$77="Yes",'Input| Prices'!N$55,1)*INDEX(ICM_LabourCost,,$D70)*INDEX(ICM_Vol4,,R$8) -> 34190.1714 | S73: =IF('Input | Meters Vols & Costs'!$P$77="Yes",'Input| Prices'!O$55,1)*INDEX(ICM_LabourCost,,$D70)*INDEX(ICM_Vol4,,S$8) -> 39774.02324 | T73: =IF('Input | Meters Vols & Costs'!$P$77="Yes",'Input| Prices'!P$55,1)*INDEX(ICM_LabourCost,,$D70)*INDEX(ICM_Vol4,,T$8) -> 45427.33778 | U73: =IF('Input | Meters Vols & Costs'!$P$77="Yes",'Input| Prices'!Q$55,1)*INDEX(ICM_LabourCost,,$D70)*INDEX(ICM_Vol4,,U$8) -> 51225.62838 | V73: =SUM(N73:U73) -> 242049.8995
F74: Single phase Plug in (Smart) | G74: Single phase meter population | H74: Direct connected meter population | I74: Single phase single element (Smart) | J74: Type 4 | K74: SM 1ph DC | L74: $dollars | M74: 2021-12-01 | O74: 29897.43976 | P74: 34510.2434 | Q74: 42783.72065 | R74: 51305.50127 | S74: 59684.58526 | T74: 68167.90443 | U74: 76868.77352 | V74: 363218.1683
F75: Single phase Two element (Smart) | G75: Single phase meter population | H75: Direct connected meter population | I75: Single phase two element with contactor (Smart) | J75: Type 4 | K75: SM 1ph DC | L75: $dollars | M75: 2021-12-01 | O75: 2128.922385 | P75: 2457.388668 | Q75: 3046.522423 | R75: 3653.337242 | S75: 4249.99099 | T75: 4854.067065 | U75: 5473.63433 | V75: 25863.8631
F76: Three phase Whole Current (Smart) | G76: Multiphase meter population | H76: Direct connected meter population | I76: Three phase direct connected (smart) | J76: Type 3 or 4 | K76: SM 3ph DC | L76: $dollars | M76: 2021-12-01 | O76: 17737.98804 | P76: 20474.73929 | Q76: 25383.34825 | R76: 30439.27424 | S76: 35410.53909 | T76: 40443.64612 | U76: 45605.82432 | V76: 215495.3594
F77: Three phase LVCT (Smart) | G77: Multiphase meter population | H77: Current transformer connected meter population | I77: Three phase current transformer connected (smart) | J77: Type 3 or 4 | K77: SM 3ph CT | L77: $dollars | M77: 2021-12-01 | O77: 5758.270757 | P77: 6646.70042 | Q77: 8240.178741 | R77: 9881.480489 | S77: 11495.29875 | T77: 13129.1928 | U77: 14804.98713 | V77: 69956.10908
F78: Three phase HV (Smart) | G78: Multiphase meter population | H78: Current transformer connected meter population | I78: Three phase voltage transformer and current transformer connected (smart) | J78: Type 2, 3 or 4 | K78: SM 3ph HV | L78: $dollars | M78: 2021-12-01 | O78: 856.3433387 | P78: 988.4664806 | Q78: 1225.441191 | R78: 1469.52798 | S78: 1709.527552 | T78: 1952.512702 | U78: 2201.729068 | V78: 10403.54831
F79: Single phase Bottom connected (Electronic) | G79: Single phase meter population | H79: Direct connected meter population | I79: Single phase single element (Accumulation) | J79: Type 6 | K79: ACC 1ph DC | L79: $dollars | M79: 2021-12-01 | O79: 0 | P79: 0 | Q79: 0 | R79: 0 | S79: 0 | T79: 0 | U79: 0 | V79: 0
F80: Single phase Plug in (Electronic) | G80: Single phase meter population | H80: Direct connected meter population | I80: Single phase single element (Accumulation) | J80: Type 6 | K80: ACC 1ph DC | L80: $dollars | M80: 2021-12-01 | O80: 0 | P80: 0 | Q80: 0 | R80: 0 | S80: 0 | T80: 0 | U80: 0 | V80: 0
F81: Single phase Two element (Electronic) | G81: Single phase meter population | H81: Direct connected meter population | I81: Single phase two element with contactor (Accumulation) | J81: Type 6 | K81: ACC 1ph DC | L81: $dollars | M81: 2021-12-01 | O81: 0 | P81: 0 | Q81: 0 | R81: 0 | S81: 0 | T81: 0 | U81: 0 | V81: 0
F82: Three phase 3 X Single phase (Electronic) | G82: Multiphase meter population or single phase meter population | H82: Direct connected meter population | I82: Three phase direct connected (Accumulation) | J82: Type 6 | K82: ACC 3ph DC | L82: $dollars | M82: 2021-12-01 | O82: 0 | P82: 0 | Q82: 0 | R82: 0 | S82: 0 | T82: 0 | U82: 0 | V82: 0
F83: Three phase Whole Current (Electronic) | G83: Multiphase meter population | H83: Direct connected meter population | I83: Three phase direct connected (Accumulation) | J83: Type 6 | K83: ACC 3ph DC | L83: $dollars | M83: 2021-12-01 | O83: 0 | P83: 0 | Q83: 0 | R83: 0 | S83: 0 | T83: 0 | U83: 0 | V83: 0
F84: Three phase LVCT (Electronic) | G84: Multiphase meter population | H84: Current transformer connected meter population | I84: Three phase current transformer connected (Accumulation) | J84: Type 6 | K84: ACC 3ph CT | L84: $dollars | M84: 2021-12-01 | O84: 0 | P84: 0 | Q84: 0 | R84: 0 | S84: 0 | T84: 0 | U84: 0 | V84: 0
F85: Three phase HV (Electronic) | G85: Multiphase meter population | H85: Current transformer connected meter population | I85: Three phase voltage transformer and current transformer connected (Accumulation) | J85: Type 6 | K85: ACC 3ph HV | L85: $dollars | M85: 2021-12-01 | O85: 0 | P85: 0 | Q85: 0 | R85: 0 | S85: 0 | T85: 0 | U85: 0 | V85: 0
F86: Mechanical Meters | G86: Unallocated | H86: Unallocated | I86: Unallocated | J86: Type 6 | K86: Unallocated | L86: $dollars | M86: 2021-12-01 | O86: 0 | P86: 0 | Q86: 0 | R86: 0 | S86: 0 | T86: 0 | U86: 0 | V86: 0
F87: Unallocated | G87: Unallocated | H87: Unallocated | I87: Unallocated | J87: Unallocated | K87: Unallocated | L87: $dollars | M87: 2021-12-01 | O87: 0 | P87: 0 | Q87: 0 | R87: 0 | S87: 0 | T87: 0 | U87: 0 | V87: 0
F88: Total | L88: $dollars | M88: 2021-12-01 | O88: =SUM(O73:O87) -> 76302.72614 | P88: =SUM(P73:P87) -> 88075.28914 | Q88: 109190.4373 | R88: 130939.2926 | S88: 152323.9649 | T88: 173974.6609 | U88: 196180.5767 | V88: =SUM(Q88:U88) -> 762608.9324
D90: 5 | E90: ='Input | Meters Vols & Costs'!$G$33 -> Replacement - Prepaid
F92: =I_MeterTypes[[#Headers],[Meter Type]] -> Meter Type | G92: =I_MeterTypes[[#Headers],[RIN Subcategory 1]] -> RIN Subcategory 1 | H92: =I_MeterTypes[[#Headers],[RIN Subcategory 2]] -> RIN Subcategory 2 | I92: =I_MeterTypes[[#Headers],[AER Type]] -> AER Type | J92: =I_MeterTypes[[#Headers],[RIN Subcategory 3]] -> RIN Subcategory 3 | K92: =I_MeterTypes[[#Headers],[Meter Code]] -> Meter Code | L92: Units | M92: Basis | O92: =O$12 -> 2022-23 | P92: =P$12 -> 2023-24 | Q92: 2024-25 | R92: 2025-26 | S92: 2026-27 | T92: 2027-28 | U92: 2028-29 | V92: Total
F93: =I_MeterTypes[Meter Type] -> Single phase Bottom connected (Smart) | G93: =I_MeterTypes[RIN Subcategory 1] -> Single phase meter population | H93: =I_MeterTypes[RIN Subcategory 2] -> Direct connected meter population | I93: =I_MeterTypes[AER Type] -> Single phase single element (Smart) | J93: =I_MeterTypes[RIN Subcategory 3] -> Type 4 | K93: =I_MeterTypes[Meter Code] -> SM 1ph DC | L93: $dollars | M93: =Basis_Capex -> 2021-12-01 | O93: =IF('Input | Meters Vols & Costs'!$P$77="Yes",'Input| Prices'!K$55,1)*INDEX(ICM_LabourCost,,$D90)*INDEX(ICM_Vol5,,O$8) -> 0 | P93: =IF('Input | Meters Vols & Costs'!$P$77="Yes",'Input| Prices'!L$55,1)*INDEX(ICM_LabourCost,,$D90)*INDEX(ICM_Vol5,,P$8) -> 0 | Q93: =IF('Input | Meters Vols & Costs'!$P$77="Yes",'Input| Prices'!M$55,1)*INDEX(ICM_LabourCost,,$D90)*INDEX(ICM_Vol5,,Q$8) -> 0 | R93: =IF('Input | Meters Vols & Costs'!$P$77="Yes",'Input| Prices'!N$55,1)*INDEX(ICM_LabourCost,,$D90)*INDEX(ICM_Vol5,,R$8) -> 0 | S93: =IF('Input | Meters Vols & Costs'!$P$77="Yes",'Input| Prices'!O$55,1)*INDEX(ICM_LabourCost,,$D90)*INDEX(ICM_Vol5,,S$8) -> 0 | T93: =IF('Input | Meters Vols & Costs'!$P$77="Yes",'Input| Prices'!P$55,1)*INDEX(ICM_LabourCost,,$D90)*INDEX(ICM_Vol5,,T$8) -> 0 | U93: =IF('Input | Meters Vols & Costs'!$P$77="Yes",'Input| Prices'!Q$55,1)*INDEX(ICM_LabourCost,,$D90)*INDEX(ICM_Vol5,,U$8) -> 0 | V93: =SUM(N93:U93) -> 0
F94: Single phase Plug in (Smart) | G94: Single phase meter population | H94: Direct connected meter population | I94: Single phase single element (Smart) | J94: Type 4 | K94: SM 1ph DC | L94: $dollars | M94: 2021-12-01 | O94: 8721.789541 | P94: 10693.40126 | Q94: 10834.19186 | R94: 10989.12829 | S94: 11090.53414 | T94: 11191.16111 | U94: 11307.76612 | V94: 74827.97231
F95: Single phase Two element (Smart) | G95: Single phase meter population | H95: Direct connected meter population | I95: Single phase two element with contactor (Smart) | J95: Type 4 | K95: SM 1ph DC | L95: $dollars | M95: 2021-12-01 | O95: 0 | P95: 0 | Q95: 0 | R95: 0 | S95: 0 | T95: 0 | U95: 0 | V95: 0
F96: Three phase Whole Current (Smart) | G96: Multiphase meter population | H96: Direct connected meter population | I96: Three phase direct connected (smart) | J96: Type 3 or 4 | K96: SM 3ph DC | L96: $dollars | M96: 2021-12-01 | O96: 0 | P96: 0 | Q96: 0 | R96: 0 | S96: 0 | T96: 0 | U96: 0 | V96: 0
F97: Three phase LVCT (Smart) | G97: Multiphase meter population | H97: Current transformer connected meter population | I97: Three phase current transformer connected (smart) | J97: Type 3 or 4 | K97: SM 3ph CT | L97: $dollars | M97: 2021-12-01 | O97: 0 | P97: 0 | Q97: 0 | R97: 0 | S97: 0 | T97: 0 | U97: 0 | V97: 0
F98: Three phase HV (Smart) | G98: Multiphase meter population | H98: Current transformer connected meter population | I98: Three phase voltage transformer and current transformer connected (smart) | J98: Type 2, 3 or 4 | K98: SM 3ph HV | L98: $dollars | M98: 2021-12-01 | O98: 0 | P98: 0 | Q98: 0 | R98: 0 | S98: 0 | T98: 0 | U98: 0 | V98: 0
F99: Single phase Bottom connected (Electronic) | G99: Single phase meter population | H99: Direct connected meter population | I99: Single phase single element (Accumulation) | J99: Type 6 | K99: ACC 1ph DC | L99: $dollars | M99: 2021-12-01 | O99: 0 | P99: 0 | Q99: 0 | R99: 0 | S99: 0 | T99: 0 | U99: 0 | V99: 0
F100: Single phase Plug in (Electronic) | G100: Single phase meter population | H100: Direct connected meter population | I100: Single phase single element (Accumulation) | J100: Type 6 | K100: ACC 1ph DC | L100: $dollars | M100: 2021-12-01 | O100: 0 | P100: 0 | Q100: 0 | R100: 0 | S100: 0 | T100: 0 | U100: 0 | V100: 0
F101: Single phase Two element (Electronic) | G101: Single phase meter population | H101: Direct connected meter population | I101: Single phase two element with contactor (Accumulation) | J101: Type 6 | K101: ACC 1ph DC | L101: $dollars | M101: 2021-12-01 | O101: 0 | P101: 0 | Q101: 0 | R101: 0 | S101: 0 | T101: 0 | U101: 0 | V101: 0
F102: Three phase 3 X Single phase (Electronic) | G102: Multiphase meter population or single phase meter population | H102: Direct connected meter population | I102: Three phase direct connected (Accumulation) | J102: Type 6 | K102: ACC 3ph DC | L102: $dollars | M102: 2021-12-01 | O102: 0 | P102: 0 | Q102: 0 | R102: 0 | S102: 0 | T102: 0 | U102: 0 | V102: 0
F103: Three phase Whole Current (Electronic) | G103: Multiphase meter population | H103: Direct connected meter population | I103: Three phase direct connected (Accumulation) | J103: Type 6 | K103: ACC 3ph DC | L103: $dollars | M103: 2021-12-01 | O103: 0 | P103: 0 | Q103: 0 | R103: 0 | S103: 0 | T103: 0 | U103: 0 | V103: 0
F104: Three phase LVCT (Electronic) | G104: Multiphase meter population | H104: Current transformer connected meter population | I104: Three phase current transformer connected (Accumulation) | J104: Type 6 | K104: ACC 3ph CT | L104: $dollars | M104: 2021-12-01 | O104: 0 | P104: 0 | Q104: 0 | R104: 0 | S104: 0 | T104: 0 | U104: 0 | V104: 0
F105: Three phase HV (Electronic) | G105: Multiphase meter population | H105: Current transformer connected meter population | I105: Three phase voltage transformer and current transformer connected (Accumulation) | J105: Type 6 | K105: ACC 3ph HV | L105: $dollars | M105: 2021-12-01 | O105: 0 | P105: 0 | Q105: 0 | R105: 0 | S105: 0 | T105: 0 | U105: 0 | V105: 0
